﻿Department family,Entity,Date of payment,Expense type,Expense area,Supplier,Transaction number,Amount in Sterling,Supplier VAT Registration Number
Department of Health,Guys and St Thomas NHS Foundation Trust,25/09/2020,(84400) Transport,(id:42276) Cancer Supportive Services and R&D,CITYSPRINT (UK) LTD,id:13312923  ,1805.86
Department of Health,Guys and St Thomas NHS Foundation Trust,25/09/2020,(81200) Medical Surgical Supplies & Equipment,(id:42276) Cancer Supportive Services and R&D,NHS SUPPLY CHAIN (MAIDSTONE),id:13325094,  69.50
Department of Health,Guys and St Thomas NHS Foundation Trust,22/09/2020,(82800) Bedding & Linen,(id:42279) Cancer Supportive Services and R&D,NHS SUPPLY CHAIN (MAIDSTONE),id:13331277  ,  60.26
Department of Health,Guys and St Thomas NHS Foundation Trust,25/09/2020,(83410) Office Equipment,(id:42277) Cancer Supportive Services and R&D,RICOH UK LTD,id:13342154  , 556.40
Department of Health,Guys and St Thomas NHS Foundation Trust,11/09/2020,(81200) Medical Surgical Supplies & Equipment,(id:42270) Haematology,TERUMO BCT EUROPE NV/SA  (PREVIOUSLY CARIDIAN),id:13312957,4169.38
Department of Health,Guys and St Thomas NHS Foundation Trust,11/09/2020,(81200) Medical Surgical Supplies & Equipment,(id:42270) Haematology,TERUMO BCT EUROPE NV/SA  (PREVIOUSLY CARIDIAN),id:13313923,4169.38
Department of Health,Guys and St Thomas NHS Foundation Trust,04/09/2020,(81200) Medical Surgical Supplies & Equipment,(id:42270) Haematology,NHS SUPPLY CHAIN (MAIDSTONE),id:13291359   ,1203.26
Department of Health,Guys and St Thomas NHS Foundation Trust,11/09/2020,(81200) Medical Surgical Supplies & Equipment,(id:42270) Haematology,TERUMO BCT EUROPE NV/SA  (PREVIOUSLY CARIDIAN),id:13313921,4169.38
Department of Health,Guys and St Thomas NHS Foundation Trust,25/09/2020,(81200) Medical Surgical Supplies & Equipment,(id:42270) Haematology,TERUMO BCT EUROPE NV/SA  (PREVIOUSLY CARIDIAN),id:13341234, 640.51
Department of Health,Guys and St Thomas NHS Foundation Trust,25/09/2020,(81100) Dressings,(id:42270) Haematology,NHS SUPPLY CHAIN (MAIDSTONE),id:13325094 ,  59.26
Department of Health,Guys and St Thomas NHS Foundation Trust,04/09/2020,(81100) Dressings,(id:42270) Haematology,NHS SUPPLY CHAIN (MAIDSTONE),id:13269121 , 185.25
Department of Health,Guys and St Thomas NHS Foundation Trust,04/09/2020,(83400) Office Equipment,(id:42270) Haematology,NHS SUPPLY CHAIN (MAIDSTONE),id:13287744    , 434.59
Department of Health,Guys and St Thomas NHS Foundation Trust,25/09/2020,(81700) Lab Equipment Purchase,(id:42270) Haematology,NHS SUPPLY CHAIN (MAIDSTONE),id:13325094   , 130.41
Department of Health,Guys and St Thomas NHS Foundation Trust,04/09/2020,(81700) Lab Equipment Purchase,(id:42270) Haematology,NHS SUPPLY CHAIN (MAIDSTONE),id:13269121   , 184.12
Department of Health,Guys and St Thomas NHS Foundation Trust,04/09/2020,(82600) Uniforms & Clothing,(id:42270) Haematology,NHS SUPPLY CHAIN (MAIDSTONE),id:13269121 ,  50.52
Department of Health,Guys and St Thomas NHS Foundation Trust,04/09/2020,(82800) Bedding & Linen,(id:42270) Haematology,NHS SUPPLY CHAIN (MAIDSTONE),id:13204335,  39.03
Department of Health,Guys and St Thomas NHS Foundation Trust,04/09/2020,(82800) Bedding & Linen,(id:42270) Haematology,NHS SUPPLY CHAIN (MAIDSTONE),id:13269121,  46.82
Department of Health,Guys and St Thomas NHS Foundation Trust,04/09/2020,(81275) Medical Surgical Supplies & Equipment,(id:42270) Haematology,NHS SUPPLY CHAIN (MAIDSTONE),id:13268734   ,  24.70
Department of Health,Guys and St Thomas NHS Foundation Trust,25/09/2020,(82700) Uniforms & Clothing,(id:42270) Haematology,NHS SUPPLY CHAIN (MAIDSTONE),id:13300894 ,  52.97
Department of Health,Guys and St Thomas NHS Foundation Trust,11/09/2020,(80010) Drug Costs,(id:42270) Haematology,FRESENIUS KABI LTD,id:13313920,1122.05
Department of Health,Guys and St Thomas NHS Foundation Trust,04/09/2020,(81230) Medical Surgical Supplies & Equipment,(id:42270) Haematology,NHS SUPPLY CHAIN (MAIDSTONE),id:13268734   ,2622.00
Department of Health,Guys and St Thomas NHS Foundation Trust,04/09/2020,(81000) Surgical Appliances,(id:42268) Haematology,TALAR MADE ORTHOTICS LTD,id:13299108, 252.00
Department of Health,Guys and St Thomas NHS Foundation Trust,11/09/2020,(89595) Non-Healthcare from Foundation Trusts,(id:42267) Haematology,KING'S COLLEGE HOSPITAL NHS FOUNDATION TRUST,id:10841855  ,2138.00
Department of Health,Guys and St Thomas NHS Foundation Trust,04/09/2020,(82000) Provisions & Kitchens,(id:42265) Haematology,NHS SUPPLY CHAIN (MAIDSTONE),id:13268734    , 606.77
Department of Health,Guys and St Thomas NHS Foundation Trust,25/09/2020,(82000) Provisions & Kitchens,(id:42265) Haematology,NHS SUPPLY CHAIN (MAIDSTONE),id:13312947    ,  55.01
Department of Health,Guys and St Thomas NHS Foundation Trust,04/09/2020,(82800) Bedding & Linen,(id:42265) Haematology,NHS SUPPLY CHAIN (MAIDSTONE),id:13268734, 236.71
Department of Health,Guys and St Thomas NHS Foundation Trust,22/09/2020,(81100) Dressings,(id:42265) Haematology,NHS SUPPLY CHAIN (MAIDSTONE),id:13331277 , 242.71
Department of Health,Guys and St Thomas NHS Foundation Trust,04/09/2020,(81200) Medical Surgical Supplies & Equipment,(id:42265) Haematology,NHS SUPPLY CHAIN (MAIDSTONE),id:13287744   ,1635.70
Department of Health,Guys and St Thomas NHS Foundation Trust,04/09/2020,(81200) Medical Surgical Supplies & Equipment,(id:42265) Haematology,NHS SUPPLY CHAIN (MAIDSTONE),id:13269121   ,1775.76
Department of Health,Guys and St Thomas NHS Foundation Trust,25/09/2020,(81200) Medical Surgical Supplies & Equipment,(id:42265) Haematology,NHS SUPPLY CHAIN (MAIDSTONE),id:13325094   ,1410.93
Department of Health,Guys and St Thomas NHS Foundation Trust,04/09/2020,(83400) Office Equipment,(id:42265) Haematology,NHS SUPPLY CHAIN (MAIDSTONE),id:13269121    , 256.44
Department of Health,Guys and St Thomas NHS Foundation Trust,04/09/2020,(83400) Office Equipment,(id:42265) Haematology,NHS SUPPLY CHAIN (MAIDSTONE),id:13268734    , 276.81
Department of Health,Guys and St Thomas NHS Foundation Trust,25/09/2020,(83400) Office Equipment,(id:42265) Haematology,NHS SUPPLY CHAIN (MAIDSTONE),id:13300894    ,  60.07
Department of Health,Guys and St Thomas NHS Foundation Trust,04/09/2020,(81225) Medical Surgical Supplies & Equipment,(id:42265) Haematology,NHS SUPPLY CHAIN (MAIDSTONE),id:13204335   ,   3.00
Department of Health,Guys and St Thomas NHS Foundation Trust,04/09/2020,(81225) Medical Surgical Supplies & Equipment,(id:42265) Haematology,NHS SUPPLY CHAIN (MAIDSTONE),id:13268734   ,  33.93
Department of Health,Guys and St Thomas NHS Foundation Trust,04/09/2020,(81700) Lab Equipment Purchase,(id:42265) Haematology,NHS SUPPLY CHAIN (MAIDSTONE),id:13204335   ,  52.42
Department of Health,Guys and St Thomas NHS Foundation Trust,04/09/2020,(82000) Provisions & Kitchens,(id:42272) Haematology,NHS SUPPLY CHAIN (MAIDSTONE),id:13269121    ,  15.60
Department of Health,Guys and St Thomas NHS Foundation Trust,04/09/2020,(82800) Bedding & Linen,(id:42272) Haematology,NHS SUPPLY CHAIN (MAIDSTONE),id:13269121, 841.62
Department of Health,Guys and St Thomas NHS Foundation Trust,25/09/2020,(81200) Medical Surgical Supplies & Equipment,(id:42272) Haematology,NHS SUPPLY CHAIN (MAIDSTONE),id:13300894   , 144.96
Department of Health,Guys and St Thomas NHS Foundation Trust,25/09/2020,(83410) Office Equipment,(id:42272) Haematology,RICOH UK LTD,id:13342154, 128.85
Department of Health,Guys and St Thomas NHS Foundation Trust,04/09/2020,(81000) Surgical Appliances,(id:42272) Haematology,MEDI UK LTD,id:13299954   , 357.62
Department of Health,Guys and St Thomas NHS Foundation Trust,11/09/2020,(82600) Uniforms & Clothing,(id:42271) Haematology,COURIER SYSTEMS (ECOURIER),id:13312940   , 604.37
Department of Health,Guys and St Thomas NHS Foundation Trust,04/09/2020,(80205) Drug Costs,(id:42273) Haematology,SHIRE PHARMACEUTICALS LTD,id:13307215   ,1420.00
Department of Health,Guys and St Thomas NHS Foundation Trust,04/09/2020,(80205) Drug Costs,(id:42273) Haematology,HEALTHCARE AT HOME LTD,id:13307141 ,2127.00
Department of Health,Guys and St Thomas NHS Foundation Trust,04/09/2020,(80205) Drug Costs,(id:42273) Haematology,SHIRE PHARMACEUTICALS LTD,id:13307208   ,3940.00
Department of Health,Guys and St Thomas NHS Foundation Trust,04/09/2020,(80205) Drug Costs,(id:42273) Haematology,HEALTHCARE AT HOME LTD,id:13307126 ,4627.00
Department of Health,Guys and St Thomas NHS Foundation Trust,04/09/2020,(80205) Drug Costs,(id:42273) Haematology,HEALTHCARE AT HOME LTD,id:13307135 ,4927.00
Department of Health,Guys and St Thomas NHS Foundation Trust,04/09/2020,(80205) Drug Costs,(id:42273) Haematology,HEALTHCARE AT HOME LTD,id:13307197 ,5247.00
Department of Health,Guys and St Thomas NHS Foundation Trust,04/09/2020,(80205) Drug Costs,(id:42273) Haematology,HEALTHCARE AT HOME LTD,id:13307128 ,6127.00
Department of Health,Guys and St Thomas NHS Foundation Trust,04/09/2020,(80205) Drug Costs,(id:42273) Haematology,HEALTHCARE AT HOME LTD,id:13307124 ,6287.00
Department of Health,Guys and St Thomas NHS Foundation Trust,04/09/2020,(80205) Drug Costs,(id:42273) Haematology,HEALTHCARE AT HOME LTD,id:13307180 ,8127.00
Department of Health,Guys and St Thomas NHS Foundation Trust,25/09/2020,(80205) Drug Costs,(id:42273) Haematology,HEALTHCARE AT HOME LTD,id:13337894 , 773.00
Department of Health,Guys and St Thomas NHS Foundation Trust,25/09/2020,(80205) Drug Costs,(id:42273) Haematology,HEALTHCARE AT HOME LTD,id:13337934 ,4102.00
Department of Health,Guys and St Thomas NHS Foundation Trust,25/09/2020,(80205) Drug Costs,(id:42273) Haematology,HEALTHCARE AT HOME LTD,id:13338019 ,4127.00
Department of Health,Guys and St Thomas NHS Foundation Trust,25/09/2020,(80205) Drug Costs,(id:42273) Haematology,HEALTHCARE AT HOME LTD,id:13338005 ,4927.00
Department of Health,Guys and St Thomas NHS Foundation Trust,25/09/2020,(80205) Drug Costs,(id:42273) Haematology,HEALTHCARE AT HOME LTD,id:13337997 ,5762.00
Department of Health,Guys and St Thomas NHS Foundation Trust,25/09/2020,(80205) Drug Costs,(id:42273) Haematology,HEALTHCARE AT HOME LTD,id:13337990 ,6067.00
Department of Health,Guys and St Thomas NHS Foundation Trust,25/09/2020,(80205) Drug Costs,(id:42273) Haematology,HEALTHCARE AT HOME LTD,id:13337898 ,    38997.00
Department of Health,Guys and St Thomas NHS Foundation Trust,25/09/2020,(54052) Technical Officers,(id:42128) Haematology,TOTAL ASSIST RECRUITMENT LTD,id:13343458  , 939.18
Department of Health,Guys and St Thomas NHS Foundation Trust,25/09/2020,(54052) Technical Officers,(id:42128) Haematology,TOTAL ASSIST RECRUITMENT LTD,id:13343566  ,1246.55
Department of Health,Guys and St Thomas NHS Foundation Trust,18/09/2020,(54052) Technical Officers,(id:42128) Haematology,TOTAL ASSIST RECRUITMENT LTD,id:13328992  ,1024.56
Department of Health,Guys and St Thomas NHS Foundation Trust,04/09/2020,(81700) Lab Equipment Purchase,(id:42128) Haematology,NHS SUPPLY CHAIN (MAIDSTONE),id:13287744   , 133.18
Department of Health,Guys and St Thomas NHS Foundation Trust,18/09/2020,(81700) Lab Equipment Purchase,(id:42128) Haematology,SHEFFIELD CHILDREN'S NHS FOUNDATION TRUST,id:13049534,1065.00
Department of Health,Guys and St Thomas NHS Foundation Trust,18/09/2020,(81700) Lab Equipment Purchase,(id:42128) Haematology,SHEFFIELD CHILDREN'S NHS FOUNDATION TRUST,id:13307011,1276.40
Department of Health,Guys and St Thomas NHS Foundation Trust,18/09/2020,(81700) Lab Equipment Purchase,(id:42128) Haematology,SHEFFIELD CHILDREN'S NHS FOUNDATION TRUST,id:13307014,2263.00
Department of Health,Guys and St Thomas NHS Foundation Trust,04/09/2020,(83400) Office Equipment,(id:42258) Oncology Services,NHS SUPPLY CHAIN (MAIDSTONE),id:13287744   ,  99.01
Department of Health,Guys and St Thomas NHS Foundation Trust,25/09/2020,(83400) Office Equipment,(id:42258) Oncology Services,NHS SUPPLY CHAIN (MAIDSTONE),id:13312947   ,  50.54
Department of Health,Guys and St Thomas NHS Foundation Trust,25/09/2020,(82800) Bedding & Linen,(id:42258) Oncology Services,NHS SUPPLY CHAIN (MAIDSTONE),id:13312947    , 110.91
Department of Health,Guys and St Thomas NHS Foundation Trust,04/09/2020,(81200) Medical Surgical Supplies & Equipment,(id:42258) Oncology Services,NHS SUPPLY CHAIN (MAIDSTONE),id:13287744  , 222.18
Department of Health,Guys and St Thomas NHS Foundation Trust,25/09/2020,(81200) Medical Surgical Supplies & Equipment,(id:42258) Oncology Services,NHS SUPPLY CHAIN (MAIDSTONE),id:13325094  , 215.29
Department of Health,Guys and St Thomas NHS Foundation Trust,15/09/2020,(52062) Radiographers,(id:42258) Oncology Services,PRICEWATERHOUSECOOPERS LLP,id:13325204   ,1009.96
Department of Health,Guys and St Thomas NHS Foundation Trust,04/09/2020,(89595) Non-Healthcare from Foundation Trusts,(id:42258) Oncology Services,OXLEAS NHS FOUNDATION TRUST,id:13303634   ,    13256.00
Department of Health,Guys and St Thomas NHS Foundation Trust,04/09/2020,(81100) Dressings,(id:42258) Oncology Services,NHS SUPPLY CHAIN (MAIDSTONE),id:13287744, 971.54
Department of Health,Guys and St Thomas NHS Foundation Trust,04/09/2020,(81100) Dressings,(id:42258) Oncology Services,NHS SUPPLY CHAIN (MAIDSTONE),id:13268734, 554.69
Department of Health,Guys and St Thomas NHS Foundation Trust,04/09/2020,(81100) Dressings,(id:42258) Oncology Services,NHS SUPPLY CHAIN (MAIDSTONE),id:13204335, 530.04
Department of Health,Guys and St Thomas NHS Foundation Trust,18/09/2020,(50202) Consultants,(id:42257) Oncology Services,CHARTERHOUSE MEDICAL UK,id:13328897   ,5994.00
Department of Health,Guys and St Thomas NHS Foundation Trust,11/09/2020,(83500) Furniture & Fittings,(id:42261) Oncology Services,OFFICE DEPOT UK LTD,id:13307857   , 771.60
Department of Health,Guys and St Thomas NHS Foundation Trust,25/09/2020,(83410) Office Equipment,(id:42261) Oncology Services,RICOH UK LTD,id:13342154    ,  60.89
Department of Health,Guys and St Thomas NHS Foundation Trust,18/09/2020,(81900) Lab Equipment Purchase,(id:42261) Oncology Services,VIAPATH SERVICES LLP,id:13324324,1750.00
Department of Health,Guys and St Thomas NHS Foundation Trust,18/09/2020,(84400) Transport,(id:42261) Oncology Services,CITYSPRINT (UK) LTD,id:13310085    ,2272.82
Department of Health,Guys and St Thomas NHS Foundation Trust,04/09/2020,(89595) Non-Healthcare from Foundation Trusts,(id:42261) Oncology Services,KING'S COLLEGE HOSPITAL NHS FOUNDATION TRUST,id:13297288 ,    38402.00
Department of Health,Guys and St Thomas NHS Foundation Trust,04/09/2020,(81000) Surgical Appliances,(id:42261) Oncology Services,MEDI UK LTD,id:13299959  , 132.87
Department of Health,Guys and St Thomas NHS Foundation Trust,04/09/2020,(81200) Medical Surgical Supplies & Equipment,(id:4631424) Oncology Services,NHS SUPPLY CHAIN (MAIDSTONE),id:13287744, 208.54
Department of Health,Guys and St Thomas NHS Foundation Trust,25/09/2020,(81200) Medical Surgical Supplies & Equipment,(id:42260) Oncology Services,NHS SUPPLY CHAIN (MAIDSTONE),id:13325094  ,    10311.73
Department of Health,Guys and St Thomas NHS Foundation Trust,22/09/2020,(81200) Medical Surgical Supplies & Equipment,(id:42260) Oncology Services,NHS SUPPLY CHAIN (MAIDSTONE),id:13331277  ,5863.89
Department of Health,Guys and St Thomas NHS Foundation Trust,04/09/2020,(82800) Bedding & Linen,(id:42260) Oncology Services,NHS SUPPLY CHAIN (MAIDSTONE),id:13269121    , 316.22
Department of Health,Guys and St Thomas NHS Foundation Trust,04/09/2020,(82800) Bedding & Linen,(id:42260) Oncology Services,NHS SUPPLY CHAIN (MAIDSTONE),id:13268734    , 314.29
Department of Health,Guys and St Thomas NHS Foundation Trust,25/09/2020,(82800) Bedding & Linen,(id:42260) Oncology Services,NHS SUPPLY CHAIN (MAIDSTONE),id:13300894    , 380.74
Department of Health,Guys and St Thomas NHS Foundation Trust,04/09/2020,(83400) Office Equipment,(id:42260) Oncology Services,NHS SUPPLY CHAIN (MAIDSTONE),id:13269121   , 676.30
Department of Health,Guys and St Thomas NHS Foundation Trust,25/09/2020,(83400) Office Equipment,(id:42260) Oncology Services,NHS SUPPLY CHAIN (MAIDSTONE),id:13300894   , 964.42
Department of Health,Guys and St Thomas NHS Foundation Trust,04/09/2020,(81700) Lab Equipment Purchase,(id:42260) Oncology Services,NHS SUPPLY CHAIN (MAIDSTONE),id:13291359  , 200.88
Department of Health,Guys and St Thomas NHS Foundation Trust,25/09/2020,(81100) Dressings,(id:42260) Oncology Services,NHS SUPPLY CHAIN (MAIDSTONE),id:13325094,1235.53
Department of Health,Guys and St Thomas NHS Foundation Trust,25/09/2020,(82800) Bedding & Linen,(id:42259) Oncology Services,NHS SUPPLY CHAIN (MAIDSTONE),id:13300894    , 126.92
Department of Health,Guys and St Thomas NHS Foundation Trust,04/09/2020,(82800) Bedding & Linen,(id:42259) Oncology Services,NHS SUPPLY CHAIN (MAIDSTONE),id:13287744    ,  95.68
Department of Health,Guys and St Thomas NHS Foundation Trust,25/09/2020,(81100) Dressings,(id:42259) Oncology Services,NHS SUPPLY CHAIN (MAIDSTONE),id:13312947, 378.88
Department of Health,Guys and St Thomas NHS Foundation Trust,25/09/2020,(81200) Medical Surgical Supplies & Equipment,(id:42259) Oncology Services,NHS SUPPLY CHAIN (MAIDSTONE),id:13325094  ,1372.05
Department of Health,Guys and St Thomas NHS Foundation Trust,04/09/2020,(83400) Office Equipment,(id:42259) Oncology Services,NHS SUPPLY CHAIN (MAIDSTONE),id:13291359   ,  56.47
Department of Health,Guys and St Thomas NHS Foundation Trust,25/09/2020,(83400) Office Equipment,(id:42259) Oncology Services,NHS SUPPLY CHAIN (MAIDSTONE),id:13312947   , 121.93
Department of Health,Guys and St Thomas NHS Foundation Trust,25/09/2020,(83400) Office Equipment,(id:42259) Oncology Services,NHS SUPPLY CHAIN (MAIDSTONE),id:13325094   , 251.24
Department of Health,Guys and St Thomas NHS Foundation Trust,22/09/2020,(81225) Medical Surgical Supplies & Equipment,(id:42259) Oncology Services,NHS SUPPLY CHAIN (MAIDSTONE),id:13331277  ,  14.54
Department of Health,Guys and St Thomas NHS Foundation Trust,04/09/2020,(81225) Medical Surgical Supplies & Equipment,(id:42259) Oncology Services,NHS SUPPLY CHAIN (MAIDSTONE),id:13204335  ,   9.70
Department of Health,Guys and St Thomas NHS Foundation Trust,04/09/2020,(81225) Medical Surgical Supplies & Equipment,(id:42259) Oncology Services,NHS SUPPLY CHAIN (MAIDSTONE),id:13268734  ,   9.70
Department of Health,Guys and St Thomas NHS Foundation Trust,25/09/2020,(81700) Lab Equipment Purchase,(id:42259) Oncology Services,NHS SUPPLY CHAIN (MAIDSTONE),id:13312947  ,  15.79
Department of Health,Guys and St Thomas NHS Foundation Trust,04/09/2020,(81255) Medical Surgical Supplies & Equipment,(id:42259) Oncology Services,NHS SUPPLY CHAIN (MAIDSTONE),id:13287744  ,   5.50
Department of Health,Guys and St Thomas NHS Foundation Trust,04/09/2020,(81255) Medical Surgical Supplies & Equipment,(id:42259) Oncology Services,NHS SUPPLY CHAIN (MAIDSTONE),id:13204335  ,   4.68
Department of Health,Guys and St Thomas NHS Foundation Trust,04/09/2020,(81255) Medical Surgical Supplies & Equipment,(id:42259) Oncology Services,NHS SUPPLY CHAIN (MAIDSTONE),id:13269121  ,   3.46
Department of Health,Guys and St Thomas NHS Foundation Trust,25/09/2020,(81255) Medical Surgical Supplies & Equipment,(id:42259) Oncology Services,NHS SUPPLY CHAIN (MAIDSTONE),id:13312947  ,   3.46
Department of Health,Guys and St Thomas NHS Foundation Trust,04/09/2020,(82800) Bedding & Linen,(id:42280) Surgical Oncology,NHS SUPPLY CHAIN (MAIDSTONE),id:13269121    ,  57.17
Department of Health,Guys and St Thomas NHS Foundation Trust,18/09/2020,(81100) Dressings,(id:42280) Surgical Oncology,KCI MEDICAL LTD,id:13323970   , 698.40
Department of Health,Guys and St Thomas NHS Foundation Trust,04/09/2020,(81100) Dressings,(id:42280) Surgical Oncology,NHS SUPPLY CHAIN (MAIDSTONE),id:13268734, 126.18
Department of Health,Guys and St Thomas NHS Foundation Trust,18/09/2020,(81200) Medical Surgical Supplies & Equipment,(id:42280) Surgical Oncology,IDEAL MEDICAL SOLUTIONS LTD,id:13325187   , 623.40
Department of Health,Guys and St Thomas NHS Foundation Trust,04/09/2020,(81200) Medical Surgical Supplies & Equipment,(id:42280) Surgical Oncology,NHS SUPPLY CHAIN (MAIDSTONE),id:13204335  ,   3.74
Department of Health,Guys and St Thomas NHS Foundation Trust,04/09/2020,(81200) Medical Surgical Supplies & Equipment,(id:42280) Surgical Oncology,Q MEDICAL TECHNOLOGIES LTD,id:13289416    ,2650.80
Department of Health,Guys and St Thomas NHS Foundation Trust,04/09/2020,(81200) Medical Surgical Supplies & Equipment,(id:42280) Surgical Oncology,IDEAL MEDICAL SOLUTIONS LTD,id:13298444   , 623.40
Department of Health,Guys and St Thomas NHS Foundation Trust,04/09/2020,(81200) Medical Surgical Supplies & Equipment,(id:243406) Surgical Oncology,NHS SUPPLY CHAIN (MAIDSTONE),id:13291359 ,1508.60
Department of Health,Guys and St Thomas NHS Foundation Trust,04/09/2020,(81200) Medical Surgical Supplies & Equipment,(id:243406) Surgical Oncology,NHS SUPPLY CHAIN (MAIDSTONE),id:13204335 ,1159.46
Department of Health,Guys and St Thomas NHS Foundation Trust,04/09/2020,(81200) Medical Surgical Supplies & Equipment,(id:243406) Surgical Oncology,NHS SUPPLY CHAIN (MAIDSTONE),id:13269121 , 866.01
Department of Health,Guys and St Thomas NHS Foundation Trust,04/09/2020,(81200) Medical Surgical Supplies & Equipment,(id:243406) Surgical Oncology,NHS SUPPLY CHAIN (MAIDSTONE),id:13287744 ,2395.71
Department of Health,Guys and St Thomas NHS Foundation Trust,25/09/2020,(81200) Medical Surgical Supplies & Equipment,(id:243406) Surgical Oncology,NHS SUPPLY CHAIN (MAIDSTONE),id:13325094 , 229.70
Department of Health,Guys and St Thomas NHS Foundation Trust,04/09/2020,(81700) Lab Equipment Purchase,(id:243406) Surgical Oncology,NHS SUPPLY CHAIN (MAIDSTONE),id:13269121 ,  12.17
Department of Health,Guys and St Thomas NHS Foundation Trust,04/09/2020,(81700) Lab Equipment Purchase,(id:243406) Surgical Oncology,NHS SUPPLY CHAIN (MAIDSTONE),id:13268734 ,  27.54
Department of Health,Guys and St Thomas NHS Foundation Trust,25/09/2020,(81700) Lab Equipment Purchase,(id:243406) Surgical Oncology,NHS SUPPLY CHAIN (MAIDSTONE),id:13312947 ,  18.58
Department of Health,Guys and St Thomas NHS Foundation Trust,04/09/2020,(81255) Medical Surgical Supplies & Equipment,(id:243406) Surgical Oncology,NHS SUPPLY CHAIN (MAIDSTONE),id:13268734 ,   4.68
Department of Health,Guys and St Thomas NHS Foundation Trust,04/09/2020,(81100) Dressings,(id:243406) Surgical Oncology,NHS SUPPLY CHAIN (MAIDSTONE),id:13204335    , 993.35
Department of Health,Guys and St Thomas NHS Foundation Trust,25/09/2020,(82700) Uniforms & Clothing,(id:243406) Surgical Oncology,NHS SUPPLY CHAIN (MAIDSTONE),id:13312947    ,  31.68
Department of Health,Guys and St Thomas NHS Foundation Trust,25/09/2020,(82800) Bedding & Linen,(id:243406) Surgical Oncology,NHS SUPPLY CHAIN (MAIDSTONE),id:13312947   ,  34.93
Department of Health,Guys and St Thomas NHS Foundation Trust,25/09/2020,(81225) Medical Surgical Supplies & Equipment,(id:243406) Surgical Oncology,NHS SUPPLY CHAIN (MAIDSTONE),id:13312947 ,   9.70
Department of Health,Guys and St Thomas NHS Foundation Trust,04/09/2020,(81100) Dressings,(id:42474) Surgical Oncology,STRYKER UK LTD,id:13291116    , 352.80
Department of Health,Guys and St Thomas NHS Foundation Trust,16/09/2020,(81200) Medical Surgical Supplies & Equipment,(id:42474) Surgical Oncology,SOLUVOS MEDICAL BV,id:13048354  , 888.00
Department of Health,Guys and St Thomas NHS Foundation Trust,25/09/2020,(83410) Office Equipment,(id:42474) Surgical Oncology,RICOH UK LTD,id:13342154    , 345.60
Department of Health,Guys and St Thomas NHS Foundation Trust,22/09/2020,(81225) Medical Surgical Supplies & Equipment,(id:42474) Surgical Oncology,NHS SUPPLY CHAIN (MAIDSTONE),id:13331277  , 121.80
Department of Health,Guys and St Thomas NHS Foundation Trust,04/09/2020,(81700) Lab Equipment Purchase,(id:42474) Surgical Oncology,NHS SUPPLY CHAIN (MAIDSTONE),id:13204335  ,  36.00
Department of Health,Guys and St Thomas NHS Foundation Trust,25/09/2020,(82800) Bedding & Linen,(id:42473) Surgical Oncology,NHS SUPPLY CHAIN (MAIDSTONE),id:13312947    , 110.40
Department of Health,Guys and St Thomas NHS Foundation Trust,25/09/2020,(81100) Dressings,(id:42473) Surgical Oncology,NHS SUPPLY CHAIN (MAIDSTONE),id:13312947,   1.23
Department of Health,Guys and St Thomas NHS Foundation Trust,25/09/2020,(81100) Dressings,(id:42473) Surgical Oncology,NHS SUPPLY CHAIN (MAIDSTONE),id:13300894,   1.64
Department of Health,Guys and St Thomas NHS Foundation Trust,22/09/2020,(81100) Dressings,(id:42473) Surgical Oncology,NHS SUPPLY CHAIN (MAIDSTONE),id:13331277,   1.64
Department of Health,Guys and St Thomas NHS Foundation Trust,18/09/2020,(81200) Medical Surgical Supplies & Equipment,(id:42473) Surgical Oncology,DELTA SURGICAL LTD,id:13312926  ,1785.60
Department of Health,Guys and St Thomas NHS Foundation Trust,25/09/2020,(81200) Medical Surgical Supplies & Equipment,(id:42473) Surgical Oncology,NHS SUPPLY CHAIN (MAIDSTONE),id:13312947  ,5484.85
Department of Health,Guys and St Thomas NHS Foundation Trust,04/09/2020,(81200) Medical Surgical Supplies & Equipment,(id:42473) Surgical Oncology,MEDTRONIC LTD,id:13299037  , 572.40
Department of Health,Guys and St Thomas NHS Foundation Trust,25/09/2020,(81200) Medical Surgical Supplies & Equipment,(id:42473) Surgical Oncology,SQUADRON MEDICAL LTD,id:13322280,1018.87
Department of Health,Guys and St Thomas NHS Foundation Trust,11/09/2020,(81200) Medical Surgical Supplies & Equipment,(id:42473) Surgical Oncology,SEVERN HEALTHCARE TECHNOLOGIES LTD,id:13316572 ,1362.00
Department of Health,Guys and St Thomas NHS Foundation Trust,04/09/2020,(81215) Medical Surgical Supplies & Equipment,(id:42475) Surgical Oncology,NHS SUPPLY CHAIN (MAIDSTONE),id:13291359  ,    12871.44
Department of Health,Guys and St Thomas NHS Foundation Trust,25/09/2020,(81215) Medical Surgical Supplies & Equipment,(id:42475) Surgical Oncology,NHS SUPPLY CHAIN (MAIDSTONE),id:13325094  ,    26042.25
Department of Health,Guys and St Thomas NHS Foundation Trust,25/09/2020,(81215) Medical Surgical Supplies & Equipment,(id:42475) Surgical Oncology,NHS SUPPLY CHAIN (MAIDSTONE),id:13300894  , 706.66
Department of Health,Guys and St Thomas NHS Foundation Trust,11/09/2020,(81215) Medical Surgical Supplies & Equipment,(id:42475) Surgical Oncology,MED-EL UK LTD,id:13317754  ,5063.40
Department of Health,Guys and St Thomas NHS Foundation Trust,11/09/2020,(81215) Medical Surgical Supplies & Equipment,(id:42475) Surgical Oncology,ADVANCED BIONICS SARL (AND UK LTD),id:13297608 ,4680.00
Department of Health,Guys and St Thomas NHS Foundation Trust,25/09/2020,(81215) Medical Surgical Supplies & Equipment,(id:42475) Surgical Oncology,ADVANCED BIONICS SARL (AND UK LTD),id:13330974 ,6840.00
Department of Health,Guys and St Thomas NHS Foundation Trust,25/09/2020,(81225) Medical Surgical Supplies & Equipment,(id:42475) Surgical Oncology,NHS SUPPLY CHAIN (MAIDSTONE),id:13325094  ,9541.76
Department of Health,Guys and St Thomas NHS Foundation Trust,25/09/2020,(81225) Medical Surgical Supplies & Equipment,(id:42475) Surgical Oncology,COCHLEAR EUROPE LTD,id:13337849 ,3003.60
Department of Health,Guys and St Thomas NHS Foundation Trust,04/09/2020,(81225) Medical Surgical Supplies & Equipment,(id:42475) Surgical Oncology,COCHLEAR EUROPE LTD,id:13309337 ,7168.80
Department of Health,Guys and St Thomas NHS Foundation Trust,04/09/2020,(81225) Medical Surgical Supplies & Equipment,(id:42475) Surgical Oncology,NHS SUPPLY CHAIN (MAIDSTONE),id:13287744  ,1143.36
Department of Health,Guys and St Thomas NHS Foundation Trust,04/09/2020,(81225) Medical Surgical Supplies & Equipment,(id:42472) Surgical Oncology,NHS SUPPLY CHAIN (MAIDSTONE),id:13269121  ,2695.20
Department of Health,Guys and St Thomas NHS Foundation Trust,11/09/2020,(81400) Medical Surgical Supplies & Equipment,(id:42286) Surgical Oncology,KARL STORZ ENDOSCOPY UK LTD,id:13320560   , 566.95
Department of Health,Guys and St Thomas NHS Foundation Trust,25/09/2020,(81200) Medical Surgical Supplies & Equipment,(id:42286) Surgical Oncology,NHS SUPPLY CHAIN (MAIDSTONE),id:13300894  ,4735.34
Department of Health,Guys and St Thomas NHS Foundation Trust,18/09/2020,(81200) Medical Surgical Supplies & Equipment,(id:42286) Surgical Oncology,MEDTRONIC LTD,id:13325602  , 768.00
Department of Health,Guys and St Thomas NHS Foundation Trust,04/09/2020,(81200) Medical Surgical Supplies & Equipment,(id:42286) Surgical Oncology,NHS SUPPLY CHAIN (MAIDSTONE),id:13291359  ,1016.52
Department of Health,Guys and St Thomas NHS Foundation Trust,04/09/2020,(81200) Medical Surgical Supplies & Equipment,(id:42286) Surgical Oncology,NHS SUPPLY CHAIN (MAIDSTONE),id:13269121  ,4188.84
Department of Health,Guys and St Thomas NHS Foundation Trust,18/09/2020,(81200) Medical Surgical Supplies & Equipment,(id:42285) Surgical Oncology,MERIT MEDICAL UK LTD,id:13325955, 673.20
Department of Health,Guys and St Thomas NHS Foundation Trust,25/09/2020,(82000) Provisions & Kitchens,(id:42284) Surgical Oncology,NHS SUPPLY CHAIN (MAIDSTONE),id:13325094   ,  91.03
Department of Health,Guys and St Thomas NHS Foundation Trust,22/09/2020,(83500) Furniture & Fittings,(id:42284) Surgical Oncology,NHS SUPPLY CHAIN (MAIDSTONE),id:13331277    , 432.00
Department of Health,Guys and St Thomas NHS Foundation Trust,25/09/2020,(83500) Furniture & Fittings,(id:42284) Surgical Oncology,TECHNIBLINDS LTD,id:13327353 , 834.00
Department of Health,Guys and St Thomas NHS Foundation Trust,04/09/2020,(81200) Medical Surgical Supplies & Equipment,(id:42284) Surgical Oncology,NHS SUPPLY CHAIN (MAIDSTONE),id:13204335  , 712.80
Department of Health,Guys and St Thomas NHS Foundation Trust,04/09/2020,(83400) Office Equipment,(id:42284) Surgical Oncology,NHS SUPPLY CHAIN (MAIDSTONE),id:13291359   , 228.00
Department of Health,Guys and St Thomas NHS Foundation Trust,25/09/2020,(81255) Medical Surgical Supplies & Equipment,(id:42284) Surgical Oncology,NHS SUPPLY CHAIN (MAIDSTONE),id:13312947  ,   7.92
Department of Health,Guys and St Thomas NHS Foundation Trust,18/09/2020,(81225) Medical Surgical Supplies & Equipment,(id:42471) Surgical Oncology,STARKEY LABS LTD,id:13310137    ,1182.56
Department of Health,Guys and St Thomas NHS Foundation Trust,04/09/2020,(82000) Provisions & Kitchens,(id:42470) Surgical Oncology,NHS SUPPLY CHAIN (MAIDSTONE),id:13268734   ,  35.28
Department of Health,Guys and St Thomas NHS Foundation Trust,18/09/2020,(84500) Establishment,(id:42470) Surgical Oncology,WYBONE LTD,id:13325903    , 533.21
Department of Health,Guys and St Thomas NHS Foundation Trust,25/09/2020,(81100) Dressings,(id:42470) Surgical Oncology,NHS SUPPLY CHAIN (MAIDSTONE),id:13325094, 958.71
Department of Health,Guys and St Thomas NHS Foundation Trust,22/09/2020,(81100) Dressings,(id:42470) Surgical Oncology,NHS SUPPLY CHAIN (MAIDSTONE),id:13331277, 778.65
Department of Health,Guys and St Thomas NHS Foundation Trust,25/09/2020,(81200) Medical Surgical Supplies & Equipment,(id:42470) Surgical Oncology,NHS SUPPLY CHAIN (MAIDSTONE),id:13312947  , 423.26
Department of Health,Guys and St Thomas NHS Foundation Trust,04/09/2020,(81200) Medical Surgical Supplies & Equipment,(id:42470) Surgical Oncology,NHS SUPPLY CHAIN (MAIDSTONE),id:13291359  ,1248.51
Department of Health,Guys and St Thomas NHS Foundation Trust,04/09/2020,(83400) Office Equipment,(id:42470) Surgical Oncology,NHS SUPPLY CHAIN (MAIDSTONE),id:13287744   , 105.24
Department of Health,Guys and St Thomas NHS Foundation Trust,25/09/2020,(81275) Medical Surgical Supplies & Equipment,(id:42470) Surgical Oncology,NHS SUPPLY CHAIN (MAIDSTONE),id:13300894  ,  91.20
Department of Health,Guys and St Thomas NHS Foundation Trust,04/09/2020,(81700) Lab Equipment Purchase,(id:42470) Surgical Oncology,NHS SUPPLY CHAIN (MAIDSTONE),id:13269121  ,  28.55
Department of Health,Guys and St Thomas NHS Foundation Trust,22/09/2020,(81700) Lab Equipment Purchase,(id:42470) Surgical Oncology,NHS SUPPLY CHAIN (MAIDSTONE),id:13331277  ,  27.77
Department of Health,Guys and St Thomas NHS Foundation Trust,25/09/2020,(81700) Lab Equipment Purchase,(id:42470) Surgical Oncology,NHS SUPPLY CHAIN (MAIDSTONE),id:13312947  ,  35.58
Department of Health,Guys and St Thomas NHS Foundation Trust,04/09/2020,(81225) Medical Surgical Supplies & Equipment,(id:2182419) Medicine,NHS SUPPLY CHAIN (MAIDSTONE),id:13204335    ,  37.06
Department of Health,Guys and St Thomas NHS Foundation Trust,04/09/2020,(81225) Medical Surgical Supplies & Equipment,(id:2182419) Medicine,NHS SUPPLY CHAIN (MAIDSTONE),id:13269121    ,  58.18
Department of Health,Guys and St Thomas NHS Foundation Trust,04/09/2020,(81225) Medical Surgical Supplies & Equipment,(id:2182419) Medicine,NHS SUPPLY CHAIN (MAIDSTONE),id:13291359    ,  49.63
Department of Health,Guys and St Thomas NHS Foundation Trust,22/09/2020,(81225) Medical Surgical Supplies & Equipment,(id:2182419) Medicine,NHS SUPPLY CHAIN (MAIDSTONE),id:13331277    ,  58.18
Department of Health,Guys and St Thomas NHS Foundation Trust,22/09/2020,(81700) Lab Equipment Purchase,(id:2182419) Medicine,NHS SUPPLY CHAIN (MAIDSTONE),id:13331277    , 170.33
Department of Health,Guys and St Thomas NHS Foundation Trust,04/09/2020,(81255) Medical Surgical Supplies & Equipment,(id:2182419) Medicine,NHS SUPPLY CHAIN (MAIDSTONE),id:13204335    ,   5.92
Department of Health,Guys and St Thomas NHS Foundation Trust,04/09/2020,(82800) Bedding & Linen,(id:2182419) Medicine,NHS SUPPLY CHAIN (MAIDSTONE),id:13204335 , 522.21
Department of Health,Guys and St Thomas NHS Foundation Trust,25/09/2020,(82800) Bedding & Linen,(id:2182419) Medicine,NHS SUPPLY CHAIN (MAIDSTONE),id:13312947 , 461.33
Department of Health,Guys and St Thomas NHS Foundation Trust,04/09/2020,(81200) Medical Surgical Supplies & Equipment,(id:2182419) Medicine,NHS SUPPLY CHAIN (MAIDSTONE),id:13291359    ,2491.07
Department of Health,Guys and St Thomas NHS Foundation Trust,18/09/2020,(50552) Qualified Nursing Staff,(id:2182419) Medicine,MSI GROUP LTD,id:13330681   , 558.02
Department of Health,Guys and St Thomas NHS Foundation Trust,25/09/2020,(50552) Qualified Nursing Staff,(id:2182419) Medicine,GLOBE LOCUMS LTD,id:13345341, 352.77
Department of Health,Guys and St Thomas NHS Foundation Trust,18/09/2020,(50522) Unqualified Nursing Staff,(id:2182419) Medicine,MSI GROUP LTD,id:13328889 , 249.44
Department of Health,Guys and St Thomas NHS Foundation Trust,11/09/2020,(84500) Establishment,(id:2182419) Medicine,OFFICE DEPOT UK LTD,id:13300550  , 566.47
Department of Health,Guys and St Thomas NHS Foundation Trust,25/09/2020,(81100) Dressings,(id:2182419) Medicine,KCI MEDICAL LTD,id:13331137, 514.95
Department of Health,Guys and St Thomas NHS Foundation Trust,04/09/2020,(82000) Provisions & Kitchens,(id:2182419) Medicine,NHS SUPPLY CHAIN (MAIDSTONE),id:13269121, 692.76
Department of Health,Guys and St Thomas NHS Foundation Trust,04/09/2020,(82000) Provisions & Kitchens,(id:2182419) Medicine,NHS SUPPLY CHAIN (MAIDSTONE),id:13291359, 375.28
Department of Health,Guys and St Thomas NHS Foundation Trust,25/09/2020,(82000) Provisions & Kitchens,(id:2182419) Medicine,NHS SUPPLY CHAIN (MAIDSTONE),id:13300894, 462.26
Department of Health,Guys and St Thomas NHS Foundation Trust,04/09/2020,(83400) Office Equipment,(id:2182419) Medicine,NHS SUPPLY CHAIN (MAIDSTONE),id:13268734, 460.69
Department of Health,Guys and St Thomas NHS Foundation Trust,25/09/2020,(82000) Provisions & Kitchens,(id:41860) Medicine,NHS SUPPLY CHAIN (MAIDSTONE),id:13300894  ,  88.61
Department of Health,Guys and St Thomas NHS Foundation Trust,04/09/2020,(83400) Office Equipment,(id:41860) Medicine,NHS SUPPLY CHAIN (MAIDSTONE),id:13291359  ,  88.44
Department of Health,Guys and St Thomas NHS Foundation Trust,04/09/2020,(83400) Office Equipment,(id:41860) Medicine,NHS SUPPLY CHAIN (MAIDSTONE),id:13269121  , 145.43
Department of Health,Guys and St Thomas NHS Foundation Trust,25/09/2020,(82800) Bedding & Linen,(id:41860) Medicine,NHS SUPPLY CHAIN (MAIDSTONE),id:13312947   , 128.12
Department of Health,Guys and St Thomas NHS Foundation Trust,11/09/2020,(50552) Qualified Nursing Staff,(id:41860) Medicine,MSI GROUP LTD,id:13319067, 335.17
Department of Health,Guys and St Thomas NHS Foundation Trust,25/09/2020,(81255) Medical Surgical Supplies & Equipment,(id:41860) Medicine,NHS SUPPLY CHAIN (MAIDSTONE),id:13300894 ,   2.49
Department of Health,Guys and St Thomas NHS Foundation Trust,04/09/2020,(81225) Medical Surgical Supplies & Equipment,(id:41860) Medicine,NHS SUPPLY CHAIN (MAIDSTONE),id:13291359 ,  18.15
Department of Health,Guys and St Thomas NHS Foundation Trust,04/09/2020,(81700) Lab Equipment Purchase,(id:41860) Medicine,NHS SUPPLY CHAIN (MAIDSTONE),id:13291359 ,   6.10
Department of Health,Guys and St Thomas NHS Foundation Trust,04/09/2020,(83400) Office Equipment,(id:41859) Medicine,NHS SUPPLY CHAIN (MAIDSTONE),id:13268734  , 275.67
Department of Health,Guys and St Thomas NHS Foundation Trust,04/09/2020,(82800) Bedding & Linen,(id:41859) Medicine,NHS SUPPLY CHAIN (MAIDSTONE),id:13269121   , 165.11
Department of Health,Guys and St Thomas NHS Foundation Trust,25/09/2020,(81100) Dressings,(id:41859) Medicine,NHS SUPPLY CHAIN (MAIDSTONE),id:13325094    , 522.91
Department of Health,Guys and St Thomas NHS Foundation Trust,18/09/2020,(50552) Qualified Nursing Staff,(id:41859) Medicine,CONTINENTAL NURSE LTD,id:13328990  ,2052.81
Department of Health,Guys and St Thomas NHS Foundation Trust,25/09/2020,(50552) Qualified Nursing Staff,(id:41859) Medicine,GLOBE LOCUMS LTD,id:13343319  , 333.52
Department of Health,Guys and St Thomas NHS Foundation Trust,04/09/2020,(81255) Medical Surgical Supplies & Equipment,(id:41859) Medicine,NHS SUPPLY CHAIN (MAIDSTONE),id:13269121 ,   3.74
Department of Health,Guys and St Thomas NHS Foundation Trust,04/09/2020,(81255) Medical Surgical Supplies & Equipment,(id:41859) Medicine,NHS SUPPLY CHAIN (MAIDSTONE),id:13291359 ,    .62
Department of Health,Guys and St Thomas NHS Foundation Trust,25/09/2020,(81255) Medical Surgical Supplies & Equipment,(id:41859) Medicine,NHS SUPPLY CHAIN (MAIDSTONE),id:13325094 ,   2.50
Department of Health,Guys and St Thomas NHS Foundation Trust,11/09/2020,(50522) Unqualified Nursing Staff,(id:41859) Medicine,MSI GROUP LTD,id:13318897   , 286.78
Department of Health,Guys and St Thomas NHS Foundation Trust,18/09/2020,(50522) Unqualified Nursing Staff,(id:41859) Medicine,GLOBE LOCUMS LTD,id:13329044, 268.61
Department of Health,Guys and St Thomas NHS Foundation Trust,04/09/2020,(50522) Unqualified Nursing Staff,(id:41859) Medicine,MSI GROUP LTD,id:13299375   , 209.15
Department of Health,Guys and St Thomas NHS Foundation Trust,04/09/2020,(81200) Medical Surgical Supplies & Equipment,(id:41859) Medicine,NHS SUPPLY CHAIN (MAIDSTONE),id:13291359 ,2296.67
Department of Health,Guys and St Thomas NHS Foundation Trust,25/09/2020,(81225) Medical Surgical Supplies & Equipment,(id:41859) Medicine,NHS SUPPLY CHAIN (MAIDSTONE),id:13300894 , 112.98
Department of Health,Guys and St Thomas NHS Foundation Trust,25/09/2020,(81230) Medical Surgical Supplies & Equipment,(id:41859) Medicine,NHS SUPPLY CHAIN (MAIDSTONE),id:13312947 ,  14.40
Department of Health,Guys and St Thomas NHS Foundation Trust,25/09/2020,(82600) Uniforms & Clothing,(id:41858) Medicine,NHS SUPPLY CHAIN (MAIDSTONE),id:13312947    ,   5.90
Department of Health,Guys and St Thomas NHS Foundation Trust,25/09/2020,(82000) Provisions & Kitchens,(id:41858) Medicine,NHS SUPPLY CHAIN (MAIDSTONE),id:13312947  ,  43.64
Department of Health,Guys and St Thomas NHS Foundation Trust,04/09/2020,(81100) Dressings,(id:41858) Medicine,NHS SUPPLY CHAIN (MAIDSTONE),id:13268734    ,  45.08
Department of Health,Guys and St Thomas NHS Foundation Trust,25/09/2020,(81200) Medical Surgical Supplies & Equipment,(id:41858) Medicine,NHS SUPPLY CHAIN (MAIDSTONE),id:13325094 , 676.41
Department of Health,Guys and St Thomas NHS Foundation Trust,04/09/2020,(81200) Medical Surgical Supplies & Equipment,(id:41858) Medicine,NHS SUPPLY CHAIN (MAIDSTONE),id:13287744 , 562.34
Department of Health,Guys and St Thomas NHS Foundation Trust,04/09/2020,(81200) Medical Surgical Supplies & Equipment,(id:41858) Medicine,NHS SUPPLY CHAIN (MAIDSTONE),id:13269121 , 530.46
Department of Health,Guys and St Thomas NHS Foundation Trust,04/09/2020,(81225) Medical Surgical Supplies & Equipment,(id:41858) Medicine,NHS SUPPLY CHAIN (MAIDSTONE),id:13204335 ,   9.12
Department of Health,Guys and St Thomas NHS Foundation Trust,22/09/2020,(81225) Medical Surgical Supplies & Equipment,(id:41858) Medicine,NHS SUPPLY CHAIN (MAIDSTONE),id:13331277 ,   7.85
Department of Health,Guys and St Thomas NHS Foundation Trust,25/09/2020,(81225) Medical Surgical Supplies & Equipment,(id:41858) Medicine,NHS SUPPLY CHAIN (MAIDSTONE),id:13300894 ,  14.50
Department of Health,Guys and St Thomas NHS Foundation Trust,22/09/2020,(81700) Lab Equipment Purchase,(id:41858) Medicine,NHS SUPPLY CHAIN (MAIDSTONE),id:13331277 ,   6.29
Department of Health,Guys and St Thomas NHS Foundation Trust,04/09/2020,(81225) Medical Surgical Supplies & Equipment,(id:860419) Medicine,NHS SUPPLY CHAIN (MAIDSTONE),id:13268734, 235.21
Department of Health,Guys and St Thomas NHS Foundation Trust,04/09/2020,(81100) Dressings,(id:860419) Medicine,NHS SUPPLY CHAIN (MAIDSTONE),id:13269121   ,  56.70
Department of Health,Guys and St Thomas NHS Foundation Trust,25/09/2020,(81000) Surgical Appliances,(id:41872) Medicine,TALAR MADE ORTHOTICS LTD,id:13345536   , 114.00
Department of Health,Guys and St Thomas NHS Foundation Trust,18/09/2020,(50552) Qualified Nursing Staff,(id:41872) Medicine,CONTINENTAL NURSE LTD,id:13328845  ,1727.17
Department of Health,Guys and St Thomas NHS Foundation Trust,18/09/2020,(50552) Qualified Nursing Staff,(id:41872) Medicine,GLOBE LOCUMS LTD,id:13330728  , 733.95
Department of Health,Guys and St Thomas NHS Foundation Trust,18/09/2020,(83350) Premises Services,(id:41870) Medicine,CORPS SECURITY,id:13329234,    10997.76
Department of Health,Guys and St Thomas NHS Foundation Trust,22/09/2020,(83400) Office Equipment,(id:41869) Medicine,NHS SUPPLY CHAIN (MAIDSTONE),id:13331277  , 101.90
Department of Health,Guys and St Thomas NHS Foundation Trust,04/09/2020,(83500) Furniture & Fittings,(id:41869) Medicine,NHS SUPPLY CHAIN (MAIDSTONE),id:13268734   , 405.00
Department of Health,Guys and St Thomas NHS Foundation Trust,04/09/2020,(82800) Bedding & Linen,(id:41869) Medicine,NHS SUPPLY CHAIN (MAIDSTONE),id:13269121   , 226.49
Department of Health,Guys and St Thomas NHS Foundation Trust,25/09/2020,(81200) Medical Surgical Supplies & Equipment,(id:41869) Medicine,SQUADRON MEDICAL LTD,id:13344461    , 814.18
Department of Health,Guys and St Thomas NHS Foundation Trust,04/09/2020,(81200) Medical Surgical Supplies & Equipment,(id:41869) Medicine,SQUADRON MEDICAL LTD,id:13283632    , 624.84
Department of Health,Guys and St Thomas NHS Foundation Trust,11/09/2020,(81200) Medical Surgical Supplies & Equipment,(id:41869) Medicine,SQUADRON MEDICAL LTD,id:13303028    , 643.68
Department of Health,Guys and St Thomas NHS Foundation Trust,11/09/2020,(81200) Medical Surgical Supplies & Equipment,(id:41869) Medicine,SQUADRON MEDICAL LTD,id:13149533    , 481.73
Department of Health,Guys and St Thomas NHS Foundation Trust,25/09/2020,(81100) Dressings,(id:41869) Medicine,SQUADRON MEDICAL LTD,id:13327841  ,   4.90
Department of Health,Guys and St Thomas NHS Foundation Trust,18/09/2020,(81100) Dressings,(id:41869) Medicine,SQUADRON MEDICAL LTD,id:13315302  ,  68.52
Department of Health,Guys and St Thomas NHS Foundation Trust,11/09/2020,(81100) Dressings,(id:41869) Medicine,SQUADRON MEDICAL LTD,id:13303028  ,   4.88
Department of Health,Guys and St Thomas NHS Foundation Trust,22/09/2020,(81100) Dressings,(id:41869) Medicine,NHS SUPPLY CHAIN (MAIDSTONE),id:13331277    ,  53.59
Department of Health,Guys and St Thomas NHS Foundation Trust,25/09/2020,(83410) Office Equipment,(id:41869) Medicine,RICOH UK LTD,id:13342148   ,  47.05
Department of Health,Guys and St Thomas NHS Foundation Trust,25/09/2020,(83410) Office Equipment,(id:41869) Medicine,RICOH UK LTD,id:13342221   ,  50.84
Department of Health,Guys and St Thomas NHS Foundation Trust,25/09/2020,(83640) IT Costs,(id:41869) Medicine,VIAPATH ANALYTICS LLP,id:13324387  ,4815.67
Department of Health,Guys and St Thomas NHS Foundation Trust,18/09/2020,(81700) Lab Equipment Purchase,(id:41869) Medicine,SQUADRON MEDICAL LTD,id:13302683    ,  48.24
Department of Health,Guys and St Thomas NHS Foundation Trust,22/09/2020,(81700) Lab Equipment Purchase,(id:41869) Medicine,NHS SUPPLY CHAIN (MAIDSTONE),id:13331277 , 110.98
Department of Health,Guys and St Thomas NHS Foundation Trust,04/09/2020,(81700) Lab Equipment Purchase,(id:41869) Medicine,SQUADRON MEDICAL LTD,id:13277932    ,  24.12
Department of Health,Guys and St Thomas NHS Foundation Trust,25/09/2020,(82800) Bedding & Linen,(id:41868) Medicine,NHS SUPPLY CHAIN (MAIDSTONE),id:13312947   , 117.05
Department of Health,Guys and St Thomas NHS Foundation Trust,22/09/2020,(81100) Dressings,(id:41868) Medicine,NHS SUPPLY CHAIN (MAIDSTONE),id:13331277    , 521.03
Department of Health,Guys and St Thomas NHS Foundation Trust,22/09/2020,(81200) Medical Surgical Supplies & Equipment,(id:41868) Medicine,NHS SUPPLY CHAIN (MAIDSTONE),id:13331277 , 396.53
Department of Health,Guys and St Thomas NHS Foundation Trust,04/09/2020,(81200) Medical Surgical Supplies & Equipment,(id:41868) Medicine,NHS SUPPLY CHAIN (MAIDSTONE),id:13287744 , 292.08
Department of Health,Guys and St Thomas NHS Foundation Trust,25/09/2020,(81200) Medical Surgical Supplies & Equipment,(id:41868) Medicine,NHS SUPPLY CHAIN (MAIDSTONE),id:13312947 , 119.38
Department of Health,Guys and St Thomas NHS Foundation Trust,25/09/2020,(81200) Medical Surgical Supplies & Equipment,(id:41868) Medicine,NHS SUPPLY CHAIN (MAIDSTONE),id:13325094 , 480.18
Department of Health,Guys and St Thomas NHS Foundation Trust,04/09/2020,(82000) Provisions & Kitchens,(id:41868) Medicine,NHS SUPPLY CHAIN (MAIDSTONE),id:13268734  ,  23.70
Department of Health,Guys and St Thomas NHS Foundation Trust,04/09/2020,(83400) Office Equipment,(id:41868) Medicine,NHS SUPPLY CHAIN (MAIDSTONE),id:13287744  ,  75.43
Department of Health,Guys and St Thomas NHS Foundation Trust,04/09/2020,(81700) Lab Equipment Purchase,(id:41868) Medicine,NHS SUPPLY CHAIN (MAIDSTONE),id:13204335 ,   3.10
Department of Health,Guys and St Thomas NHS Foundation Trust,25/09/2020,(82800) Bedding & Linen,(id:41882) Medicine,NHS SUPPLY CHAIN (MAIDSTONE),id:13300894   , 100.02
Department of Health,Guys and St Thomas NHS Foundation Trust,04/09/2020,(82800) Bedding & Linen,(id:41882) Medicine,NHS SUPPLY CHAIN (MAIDSTONE),id:13291359   , 117.65
Department of Health,Guys and St Thomas NHS Foundation Trust,25/09/2020,(82700) Uniforms & Clothing,(id:41880) Medicine,NHS SUPPLY CHAIN (MAIDSTONE),id:13312947    ,  10.56
Department of Health,Guys and St Thomas NHS Foundation Trust,25/09/2020,(83400) Office Equipment,(id:41880) Medicine,NHS SUPPLY CHAIN (MAIDSTONE),id:13312947  ,  76.21
Department of Health,Guys and St Thomas NHS Foundation Trust,25/09/2020,(83400) Office Equipment,(id:41880) Medicine,NHS SUPPLY CHAIN (MAIDSTONE),id:13325094  , 170.59
Department of Health,Guys and St Thomas NHS Foundation Trust,04/09/2020,(83400) Office Equipment,(id:41880) Medicine,NHS SUPPLY CHAIN (MAIDSTONE),id:13291359  ,  58.09
Department of Health,Guys and St Thomas NHS Foundation Trust,04/09/2020,(82800) Bedding & Linen,(id:41880) Medicine,NHS SUPPLY CHAIN (MAIDSTONE),id:13204335   , 212.73
Department of Health,Guys and St Thomas NHS Foundation Trust,22/09/2020,(81100) Dressings,(id:41880) Medicine,NHS SUPPLY CHAIN (MAIDSTONE),id:13331277    , 382.30
Department of Health,Guys and St Thomas NHS Foundation Trust,25/09/2020,(81100) Dressings,(id:41880) Medicine,NHS SUPPLY CHAIN (MAIDSTONE),id:13300894    , 136.51
Department of Health,Guys and St Thomas NHS Foundation Trust,04/09/2020,(81100) Dressings,(id:41880) Medicine,NHS SUPPLY CHAIN (MAIDSTONE),id:13204335    , 189.53
Department of Health,Guys and St Thomas NHS Foundation Trust,25/09/2020,(81225) Medical Surgical Supplies & Equipment,(id:41880) Medicine,NHS SUPPLY CHAIN (MAIDSTONE),id:13325094 ,   3.12
Department of Health,Guys and St Thomas NHS Foundation Trust,25/09/2020,(81700) Lab Equipment Purchase,(id:41880) Medicine,NHS SUPPLY CHAIN (MAIDSTONE),id:13312947 ,   6.72
Department of Health,Guys and St Thomas NHS Foundation Trust,04/09/2020,(81700) Lab Equipment Purchase,(id:41880) Medicine,NHS SUPPLY CHAIN (MAIDSTONE),id:13287744 ,   6.29
Department of Health,Guys and St Thomas NHS Foundation Trust,04/09/2020,(81255) Medical Surgical Supplies & Equipment,(id:41880) Medicine,NHS SUPPLY CHAIN (MAIDSTONE),id:13269121 ,   2.18
Department of Health,Guys and St Thomas NHS Foundation Trust,22/09/2020,(81255) Medical Surgical Supplies & Equipment,(id:41880) Medicine,NHS SUPPLY CHAIN (MAIDSTONE),id:13331277 ,   1.24
Department of Health,Guys and St Thomas NHS Foundation Trust,25/09/2020,(82000) Provisions & Kitchens,(id:41879) Medicine,NHS SUPPLY CHAIN (MAIDSTONE),id:13300894  , 280.34
Department of Health,Guys and St Thomas NHS Foundation Trust,04/09/2020,(83400) Office Equipment,(id:41879) Medicine,NHS SUPPLY CHAIN (MAIDSTONE),id:13287744  , 133.45
Department of Health,Guys and St Thomas NHS Foundation Trust,04/09/2020,(81100) Dressings,(id:41879) Medicine,NHS SUPPLY CHAIN (MAIDSTONE),id:13287744    , 148.40
Department of Health,Guys and St Thomas NHS Foundation Trust,04/09/2020,(81200) Medical Surgical Supplies & Equipment,(id:41879) Medicine,NHS SUPPLY CHAIN (MAIDSTONE),id:13291359 , 230.13
Department of Health,Guys and St Thomas NHS Foundation Trust,04/09/2020,(81100) Dressings,(id:41878) Medicine,NHS SUPPLY CHAIN (MAIDSTONE),id:13269121    , 312.90
Department of Health,Guys and St Thomas NHS Foundation Trust,04/09/2020,(81100) Dressings,(id:41878) Medicine,NHS SUPPLY CHAIN (MAIDSTONE),id:13287744    , 203.80
Department of Health,Guys and St Thomas NHS Foundation Trust,04/09/2020,(81100) Dressings,(id:41878) Medicine,NHS SUPPLY CHAIN (MAIDSTONE),id:13204335    , 164.48
Department of Health,Guys and St Thomas NHS Foundation Trust,25/09/2020,(81225) Medical Surgical Supplies & Equipment,(id:41878) Medicine,NHS SUPPLY CHAIN (MAIDSTONE),id:13300894 ,   6.12
Department of Health,Guys and St Thomas NHS Foundation Trust,25/09/2020,(82000) Provisions & Kitchens,(id:41881) Medicine,NHS SUPPLY CHAIN (MAIDSTONE),id:13325094  ,  31.20
Department of Health,Guys and St Thomas NHS Foundation Trust,22/09/2020,(82800) Bedding & Linen,(id:41881) Medicine,NHS SUPPLY CHAIN (MAIDSTONE),id:13331277   , 349.19
Department of Health,Guys and St Thomas NHS Foundation Trust,25/09/2020,(81100) Dressings,(id:41881) Medicine,NHS SUPPLY CHAIN (MAIDSTONE),id:13300894    , 401.16
Department of Health,Guys and St Thomas NHS Foundation Trust,11/09/2020,(50552) Qualified Nursing Staff,(id:41881) Medicine,MSI GROUP LTD,id:13318934, 683.87
Department of Health,Guys and St Thomas NHS Foundation Trust,25/09/2020,(80010) Drug Costs,(id:41881) Medicine,NHS SUPPLY CHAIN (MAIDSTONE),id:13312947   ,  19.44
Department of Health,Guys and St Thomas NHS Foundation Trust,22/09/2020,(81200) Medical Surgical Supplies & Equipment,(id:41881) Medicine,NHS SUPPLY CHAIN (MAIDSTONE),id:13331277 ,1218.64
Department of Health,Guys and St Thomas NHS Foundation Trust,04/09/2020,(81225) Medical Surgical Supplies & Equipment,(id:41881) Medicine,NHS SUPPLY CHAIN (MAIDSTONE),id:13268734 ,  12.70
Department of Health,Guys and St Thomas NHS Foundation Trust,25/09/2020,(81225) Medical Surgical Supplies & Equipment,(id:41881) Medicine,NHS SUPPLY CHAIN (MAIDSTONE),id:13300894 ,  13.97
Department of Health,Guys and St Thomas NHS Foundation Trust,04/09/2020,(81200) Medical Surgical Supplies & Equipment,(id:42232) Integrated Therapies and Rehabilitation,NHS SUPPLY CHAIN (MAIDSTONE),id:13269121, 902.76
Department of Health,Guys and St Thomas NHS Foundation Trust,04/09/2020,(81200) Medical Surgical Supplies & Equipment,(id:42231) Integrated Therapies and Rehabilitation,NHS SUPPLY CHAIN (MAIDSTONE),id:13291359, 174.12
Department of Health,Guys and St Thomas NHS Foundation Trust,04/09/2020,(82800) Bedding & Linen,(id:42230) Integrated Therapies and Rehabilitation,NHS SUPPLY CHAIN (MAIDSTONE),id:13269121  ,  46.82
Department of Health,Guys and St Thomas NHS Foundation Trust,04/09/2020,(81200) Medical Surgical Supplies & Equipment,(id:42230) Integrated Therapies and Rehabilitation,NHS SUPPLY CHAIN (MAIDSTONE),id:13204335,  35.70
Department of Health,Guys and St Thomas NHS Foundation Trust,25/09/2020,(81200) Medical Surgical Supplies & Equipment,(id:42230) Integrated Therapies and Rehabilitation,NHS SUPPLY CHAIN (MAIDSTONE),id:13325094, 309.60
Department of Health,Guys and St Thomas NHS Foundation Trust,29/09/2020,(51462) Occupational Therapists,(id:42240) Integrated Therapies and Rehabilitation,PRICEWATERHOUSECOOPERS LLP,id:13351193 ,4789.14
Department of Health,Guys and St Thomas NHS Foundation Trust,08/09/2020,(51472) Occupational Therapists,(id:42240) Integrated Therapies and Rehabilitation,PRICEWATERHOUSECOOPERS LLP,id:13313818 ,3760.77
Department of Health,Guys and St Thomas NHS Foundation Trust,29/09/2020,(51472) Occupational Therapists,(id:42240) Integrated Therapies and Rehabilitation,PRICEWATERHOUSECOOPERS LLP,id:13351193 ,1430.64
Department of Health,Guys and St Thomas NHS Foundation Trust,04/09/2020,(81100) Dressings,(id:42239) Integrated Therapies and Rehabilitation,NHS SUPPLY CHAIN (MAIDSTONE),id:13291359   , 123.21
Department of Health,Guys and St Thomas NHS Foundation Trust,04/09/2020,(81100) Dressings,(id:42239) Integrated Therapies and Rehabilitation,NHS SUPPLY CHAIN (MAIDSTONE),id:13268734   , 269.33
Department of Health,Guys and St Thomas NHS Foundation Trust,11/09/2020,(81100) Dressings,(id:42239) Integrated Therapies and Rehabilitation,PERFORMANCE HEALTH INTERNATIONAL LTD (PATTERSON),id:13194060   , 229.72
Department of Health,Guys and St Thomas NHS Foundation Trust,04/09/2020,(82800) Bedding & Linen,(id:42239) Integrated Therapies and Rehabilitation,NHS SUPPLY CHAIN (MAIDSTONE),id:13269121  ,  23.41
Department of Health,Guys and St Thomas NHS Foundation Trust,04/09/2020,(81225) Medical Surgical Supplies & Equipment,(id:42239) Integrated Therapies and Rehabilitation,NHS SUPPLY CHAIN (MAIDSTONE),id:13287744,  98.76
Department of Health,Guys and St Thomas NHS Foundation Trust,04/09/2020,(81200) Medical Surgical Supplies & Equipment,(id:42239) Integrated Therapies and Rehabilitation,NHS SUPPLY CHAIN (MAIDSTONE),id:13291359,  64.64
Department of Health,Guys and St Thomas NHS Foundation Trust,04/09/2020,(81200) Medical Surgical Supplies & Equipment,(id:42239) Integrated Therapies and Rehabilitation,NHS SUPPLY CHAIN (MAIDSTONE),id:13269121,  16.34
Department of Health,Guys and St Thomas NHS Foundation Trust,04/09/2020,(81200) Medical Surgical Supplies & Equipment,(id:42239) Integrated Therapies and Rehabilitation,NHS SUPPLY CHAIN (MAIDSTONE),id:13287744,  34.67
Department of Health,Guys and St Thomas NHS Foundation Trust,25/09/2020,(81100) Dressings,(id:590530) Integrated Therapies and Rehabilitation,NHS SUPPLY CHAIN (MAIDSTONE),id:13312947  ,  65.28
Department of Health,Guys and St Thomas NHS Foundation Trust,04/09/2020,(82800) Bedding & Linen,(id:590530) Integrated Therapies and Rehabilitation,NHS SUPPLY CHAIN (MAIDSTONE),id:13269121 ,  37.73
Department of Health,Guys and St Thomas NHS Foundation Trust,04/09/2020,(81200) Medical Surgical Supplies & Equipment,(id:590530) Integrated Therapies and Rehabilitation,NHS SUPPLY CHAIN (MAIDSTONE),id:13204335    ,   8.21
Department of Health,Guys and St Thomas NHS Foundation Trust,04/09/2020,(83500) Furniture & Fittings,(id:590530) Integrated Therapies and Rehabilitation,NHS SUPPLY CHAIN (MAIDSTONE),id:13204335 ,  31.68
Department of Health,Guys and St Thomas NHS Foundation Trust,28/09/2020,(82600) Uniforms & Clothing,(id:590490) Integrated Therapies and Rehabilitation,GSTT PROCUREMENT CARD,id:13349135    , 269.94
Department of Health,Guys and St Thomas NHS Foundation Trust,25/09/2020,(81100) Dressings,(id:42243) Integrated Therapies and Rehabilitation,NHS SUPPLY CHAIN (MAIDSTONE),id:13312947   , 433.09
Department of Health,Guys and St Thomas NHS Foundation Trust,25/09/2020,(81100) Dressings,(id:42243) Integrated Therapies and Rehabilitation,NHS SUPPLY CHAIN (MAIDSTONE),id:13325094   , 450.92
Department of Health,Guys and St Thomas NHS Foundation Trust,11/09/2020,(89595) Non-Healthcare from Foundation Trusts,(id:590499) Integrated Therapies and Rehabilitation,KING'S COLLEGE HOSPITAL NHS FOUNDATION TRUST,id:12501450   ,    27196.17
Department of Health,Guys and St Thomas NHS Foundation Trust,22/09/2020,(51852) Physiotherapists,(id:590499) Integrated Therapies and Rehabilitation,PRICEWATERHOUSECOOPERS LLP,id:13337496  ,1019.17
Department of Health,Guys and St Thomas NHS Foundation Trust,25/09/2020,(81225) Medical Surgical Supplies & Equipment,(id:590498) Integrated Therapies and Rehabilitation,JANE SAUNDERS & MANNING LTD,id:13334774, 596.00
Department of Health,Guys and St Thomas NHS Foundation Trust,25/09/2020,(81400) Medical Surgical Supplies & Equipment,(id:590498) Integrated Therapies and Rehabilitation,NPD ORTHOTICS LTD,id:13333614, 467.96
Department of Health,Guys and St Thomas NHS Foundation Trust,04/09/2020,(81100) Dressings,(id:590496) Integrated Therapies and Rehabilitation,NHS SUPPLY CHAIN (MAIDSTONE),id:13268734  , 307.99
Department of Health,Guys and St Thomas NHS Foundation Trust,25/09/2020,(81400) Medical Surgical Supplies & Equipment,(id:590496) Integrated Therapies and Rehabilitation,KONICA MINOLTA BUSINESS SOLUTIONS UK LTD,id:13333214  , 678.06
Department of Health,Guys and St Thomas NHS Foundation Trust,04/09/2020,(81100) Dressings,(id:1042419) Integrated Therapies and Rehabilitation,NHS SUPPLY CHAIN (MAIDSTONE),id:13287744 ,  53.58
Department of Health,Guys and St Thomas NHS Foundation Trust,04/09/2020,(81100) Dressings,(id:1042419) Integrated Therapies and Rehabilitation,NHS SUPPLY CHAIN (MAIDSTONE),id:13204335 ,  46.91
Department of Health,Guys and St Thomas NHS Foundation Trust,04/09/2020,(81100) Dressings,(id:1042419) Integrated Therapies and Rehabilitation,NHS SUPPLY CHAIN (MAIDSTONE),id:13269121 , 210.00
Department of Health,Guys and St Thomas NHS Foundation Trust,04/09/2020,(81700) Lab Equipment Purchase,(id:1042419) Integrated Therapies and Rehabilitation,NHS SUPPLY CHAIN (MAIDSTONE),id:13268734   ,  26.90
Department of Health,Guys and St Thomas NHS Foundation Trust,04/09/2020,(83400) Office Equipment,(id:42255) Integrated Local Services,NHS SUPPLY CHAIN (MAIDSTONE),id:13268734,  19.92
Department of Health,Guys and St Thomas NHS Foundation Trust,25/09/2020,(83400) Office Equipment,(id:42255) Integrated Local Services,NHS SUPPLY CHAIN (MAIDSTONE),id:13300894,  32.40
Department of Health,Guys and St Thomas NHS Foundation Trust,25/09/2020,(83400) Office Equipment,(id:42255) Integrated Local Services,NHS SUPPLY CHAIN (MAIDSTONE),id:13312947,  25.00
Department of Health,Guys and St Thomas NHS Foundation Trust,25/09/2020,(83410) Office Equipment,(id:844419) Integrated Local Services,RICOH UK LTD,id:13342064, 390.00
Department of Health,Guys and St Thomas NHS Foundation Trust,25/09/2020,(83410) Office Equipment,(id:844419) Integrated Local Services,RICOH UK LTD,id:13342085, 776.61
Department of Health,Guys and St Thomas NHS Foundation Trust,28/09/2020,(83630) IT Costs,(id:590596) Integrated Local Services,GSTT PROCUREMENT CARD,id:13349135    , 157.50
Department of Health,Guys and St Thomas NHS Foundation Trust,25/09/2020,(83410) Office Equipment,(id:590595) Integrated Local Services,RICOH UK LTD,id:13342119,1046.07
Department of Health,Guys and St Thomas NHS Foundation Trust,25/09/2020,(83410) Office Equipment,(id:590592) Integrated Local Services,RICOH UK LTD,id:13342192, 374.35
Department of Health,Guys and St Thomas NHS Foundation Trust,25/09/2020,(83410) Office Equipment,(id:590590) Integrated Local Services,RICOH UK LTD,id:13342154, 266.48
Department of Health,Guys and St Thomas NHS Foundation Trust,25/09/2020,(83410) Office Equipment,(id:590585) Integrated Local Services,RICOH UK LTD,id:13342140,1038.35
Department of Health,Guys and St Thomas NHS Foundation Trust,25/09/2020,(83410) Office Equipment,(id:590585) Integrated Local Services,RICOH UK LTD,id:13342217, 598.45
Department of Health,Guys and St Thomas NHS Foundation Trust,22/09/2020,(82800) Bedding & Linen,(id:590469) Integrated Local Services,NHS SUPPLY CHAIN (MAIDSTONE),id:13331277,  94.79
Department of Health,Guys and St Thomas NHS Foundation Trust,25/09/2020,(82000) Provisions & Kitchens,(id:590469) Integrated Local Services,NHS SUPPLY CHAIN (MAIDSTONE),id:13300894    ,  13.72
Department of Health,Guys and St Thomas NHS Foundation Trust,22/09/2020,(82000) Provisions & Kitchens,(id:590469) Integrated Local Services,NHS SUPPLY CHAIN (MAIDSTONE),id:13331277    ,   6.44
Department of Health,Guys and St Thomas NHS Foundation Trust,04/09/2020,(81200) Medical Surgical Supplies & Equipment,(id:590579) Integrated Local Services,NHS SUPPLY CHAIN (MAIDSTONE),id:13269121   ,    .80
Department of Health,Guys and St Thomas NHS Foundation Trust,25/09/2020,(81200) Medical Surgical Supplies & Equipment,(id:590579) Integrated Local Services,NHS SUPPLY CHAIN (MAIDSTONE),id:13300894   , 141.12
Department of Health,Guys and St Thomas NHS Foundation Trust,04/09/2020,(81100) Dressings,(id:590563) Integrated Local Services,NHS SUPPLY CHAIN (MAIDSTONE),id:13269121 , 131.79
Department of Health,Guys and St Thomas NHS Foundation Trust,22/09/2020,(82800) Bedding & Linen,(id:590495) Integrated Local Services,NHS SUPPLY CHAIN (MAIDSTONE),id:13331277, 100.80
Department of Health,Guys and St Thomas NHS Foundation Trust,04/09/2020,(50532) Unqualified Nursing Staff,(id:590495) Integrated Local Services,NURSING 2000 LTD,id:13309552  , 706.89
Department of Health,Guys and St Thomas NHS Foundation Trust,04/09/2020,(82800) Bedding & Linen,(id:1885422) Integrated Local Services,NHS SUPPLY CHAIN (MAIDSTONE),id:13204335    ,  80.35
Department of Health,Guys and St Thomas NHS Foundation Trust,02/09/2020,(51872) Physiotherapists,(id:1885422) Integrated Local Services,PRICEWATERHOUSECOOPERS LLP,id:13302614,1830.62
Department of Health,Guys and St Thomas NHS Foundation Trust,04/09/2020,(50562) Qualified Nursing Staff,(id:699422) Integrated Local Services,MSI GROUP LTD,id:13299323  , 712.84
Department of Health,Guys and St Thomas NHS Foundation Trust,18/09/2020,(50562) Qualified Nursing Staff,(id:699422) Integrated Local Services,MSI GROUP LTD,id:13328843  ,1066.16
Department of Health,Guys and St Thomas NHS Foundation Trust,18/09/2020,(50572) Qualified Nursing Staff,(id:699422) Integrated Local Services,MSI GROUP LTD,id:13328945  ,1312.02
Department of Health,Guys and St Thomas NHS Foundation Trust,15/09/2020,(51832) Physiotherapists,(id:699422) Integrated Local Services,PRICEWATERHOUSECOOPERS LLP,id:13325204 ,2483.18
Department of Health,Guys and St Thomas NHS Foundation Trust,29/09/2020,(51472) Occupational Therapists,(id:699422) Integrated Local Services,PRICEWATERHOUSECOOPERS LLP,id:13351193    ,1438.79
Department of Health,Guys and St Thomas NHS Foundation Trust,15/09/2020,(51862) Physiotherapists,(id:590523) Integrated Local Services,PRICEWATERHOUSECOOPERS LLP,id:13325204 , 971.81
Department of Health,Guys and St Thomas NHS Foundation Trust,02/09/2020,(51862) Physiotherapists,(id:590492) Integrated Local Services,PRICEWATERHOUSECOOPERS LLP,id:13302614 ,1341.12
Department of Health,Guys and St Thomas NHS Foundation Trust,25/09/2020,(82800) Bedding & Linen,(id:590492) Integrated Local Services,NHS SUPPLY CHAIN (MAIDSTONE),id:13325094, 227.42
Department of Health,Guys and St Thomas NHS Foundation Trust,15/09/2020,(51462) Occupational Therapists,(id:590492) Integrated Local Services,PRICEWATERHOUSECOOPERS LLP,id:13325204    ,1166.69
Department of Health,Guys and St Thomas NHS Foundation Trust,04/09/2020,(81200) Medical Surgical Supplies & Equipment,(id:2357419) Integrated Local Services,NHS SUPPLY CHAIN (MAIDSTONE),id:13204335  ,  11.45
Department of Health,Guys and St Thomas NHS Foundation Trust,22/09/2020,(51462) Occupational Therapists,(id:1913419) Integrated Local Services,PRICEWATERHOUSECOOPERS LLP,id:13337496   , 489.05
Department of Health,Guys and St Thomas NHS Foundation Trust,04/09/2020,(81200) Medical Surgical Supplies & Equipment,(id:1913419) Integrated Local Services,NHS SUPPLY CHAIN (MAIDSTONE),id:13204335  ,  33.58
Department of Health,Guys and St Thomas NHS Foundation Trust,08/09/2020,(53072) Speech Therapists,(id:1888419) Integrated Local Services,PRICEWATERHOUSECOOPERS LLP,id:13313818    ,1137.53
Department of Health,Guys and St Thomas NHS Foundation Trust,22/09/2020,(53072) Speech Therapists,(id:1888419) Integrated Local Services,PRICEWATERHOUSECOOPERS LLP,id:13337496    ,1271.28
Department of Health,Guys and St Thomas NHS Foundation Trust,29/09/2020,(51462) Occupational Therapists,(id:684420) Integrated Local Services,PRICEWATERHOUSECOOPERS LLP,id:13351193    ,1259.89
Department of Health,Guys and St Thomas NHS Foundation Trust,15/09/2020,(51842) Physiotherapists,(id:684419) Integrated Local Services,PRICEWATERHOUSECOOPERS LLP,id:13325204 , 793.52
Department of Health,Guys and St Thomas NHS Foundation Trust,04/09/2020,(81100) Dressings,(id:590522) Integrated Local Services,NHS SUPPLY CHAIN (MAIDSTONE),id:13291359 ,  90.74
Department of Health,Guys and St Thomas NHS Foundation Trust,18/09/2020,(50552) Qualified Nursing Staff,(id:590522) Integrated Local Services,NURSING 2000 LTD,id:13330733    ,1106.86
Department of Health,Guys and St Thomas NHS Foundation Trust,04/09/2020,(81700) Lab Equipment Purchase,(id:590522) Integrated Local Services,NHS SUPPLY CHAIN (MAIDSTONE),id:13287744   ,  19.73
Department of Health,Guys and St Thomas NHS Foundation Trust,04/09/2020,(81275) Medical Surgical Supplies & Equipment,(id:590522) Integrated Local Services,NHS SUPPLY CHAIN (MAIDSTONE),id:13204335   ,  21.67
Department of Health,Guys and St Thomas NHS Foundation Trust,04/09/2020,(81230) Medical Surgical Supplies & Equipment,(id:590522) Integrated Local Services,NHS SUPPLY CHAIN (MAIDSTONE),id:13291359   , 247.68
Department of Health,Guys and St Thomas NHS Foundation Trust,25/09/2020,(81200) Medical Surgical Supplies & Equipment,(id:590521) Integrated Local Services,NHS SUPPLY CHAIN (MAIDSTONE),id:13312947   , 125.59
Department of Health,Guys and St Thomas NHS Foundation Trust,04/09/2020,(81100) Dressings,(id:590521) Integrated Local Services,NHS SUPPLY CHAIN (MAIDSTONE),id:13269121 , 243.36
Department of Health,Guys and St Thomas NHS Foundation Trust,04/09/2020,(83400) Office Equipment,(id:590521) Integrated Local Services,NHS SUPPLY CHAIN (MAIDSTONE),id:13269121    ,  18.84
Department of Health,Guys and St Thomas NHS Foundation Trust,25/09/2020,(82600) Uniforms & Clothing,(id:590521) Integrated Local Services,NHS SUPPLY CHAIN (MAIDSTONE),id:13325094 ,  22.14
Department of Health,Guys and St Thomas NHS Foundation Trust,11/09/2020,(50552) Qualified Nursing Staff,(id:590521) Integrated Local Services,NURSING 2000 LTD,id:13320496    ,1398.97
Department of Health,Guys and St Thomas NHS Foundation Trust,11/09/2020,(50552) Qualified Nursing Staff,(id:590521) Integrated Local Services,NURSING 2000 LTD,id:13320513    ,1504.59
Department of Health,Guys and St Thomas NHS Foundation Trust,18/09/2020,(50552) Qualified Nursing Staff,(id:590521) Integrated Local Services,NURSING 2000 LTD,id:13329103    , 653.50
Department of Health,Guys and St Thomas NHS Foundation Trust,18/09/2020,(50552) Qualified Nursing Staff,(id:590521) Integrated Local Services,NURSING 2000 LTD,id:13330692    , 824.61
Department of Health,Guys and St Thomas NHS Foundation Trust,04/09/2020,(81100) Dressings,(id:590520) Integrated Local Services,NHS SUPPLY CHAIN (MAIDSTONE),id:13291359 ,  16.32
Department of Health,Guys and St Thomas NHS Foundation Trust,25/09/2020,(82000) Provisions & Kitchens,(id:590520) Integrated Local Services,NHS SUPPLY CHAIN (MAIDSTONE),id:13300894    ,  76.74
Department of Health,Guys and St Thomas NHS Foundation Trust,22/09/2020,(82000) Provisions & Kitchens,(id:590520) Integrated Local Services,NHS SUPPLY CHAIN (MAIDSTONE),id:13331277    ,  10.50
Department of Health,Guys and St Thomas NHS Foundation Trust,04/09/2020,(81100) Dressings,(id:590473) Integrated Local Services,NHS SUPPLY CHAIN (MAIDSTONE),id:13269121 ,  51.30
Department of Health,Guys and St Thomas NHS Foundation Trust,04/09/2020,(81230) Medical Surgical Supplies & Equipment,(id:590473) Integrated Local Services,NHS SUPPLY CHAIN (MAIDSTONE),id:13204335   ,  82.56
Department of Health,Guys and St Thomas NHS Foundation Trust,04/09/2020,(81200) Medical Surgical Supplies & Equipment,(id:590471) Integrated Local Services,NHS SUPPLY CHAIN (MAIDSTONE),id:13204335   ,1229.34
Department of Health,Guys and St Thomas NHS Foundation Trust,22/09/2020,(81700) Lab Equipment Purchase,(id:590470) Integrated Local Services,NHS SUPPLY CHAIN (MAIDSTONE),id:13331277   ,  38.67
Department of Health,Guys and St Thomas NHS Foundation Trust,25/09/2020,(81100) Dressings,(id:590470) Integrated Local Services,NHS SUPPLY CHAIN (MAIDSTONE),id:13300894 ,  52.10
Department of Health,Guys and St Thomas NHS Foundation Trust,04/09/2020,(81200) Medical Surgical Supplies & Equipment,(id:590481) Integrated Local Services,NHS SUPPLY CHAIN (MAIDSTONE),id:13011423   ,1085.58
Department of Health,Guys and St Thomas NHS Foundation Trust,04/09/2020,(81200) Medical Surgical Supplies & Equipment,(id:590481) Integrated Local Services,NHS SUPPLY CHAIN (MAIDSTONE),id:13288425   ,3925.30
Department of Health,Guys and St Thomas NHS Foundation Trust,04/09/2020,(81200) Medical Surgical Supplies & Equipment,(id:590481) Integrated Local Services,NHS SUPPLY CHAIN (MAIDSTONE),id:13183434   ,5738.73
Department of Health,Guys and St Thomas NHS Foundation Trust,04/09/2020,(81200) Medical Surgical Supplies & Equipment,(id:590481) Integrated Local Services,NHS SUPPLY CHAIN (MAIDSTONE),id:13288498   ,8208.55
Department of Health,Guys and St Thomas NHS Foundation Trust,04/09/2020,(81200) Medical Surgical Supplies & Equipment,(id:590481) Integrated Local Services,NHS SUPPLY CHAIN (MAIDSTONE),id:13288401   ,9893.61
Department of Health,Guys and St Thomas NHS Foundation Trust,25/09/2020,(83410) Office Equipment,(id:1847421) Integrated Local Services,RICOH UK LTD,id:13342220    , 598.45
Department of Health,Guys and St Thomas NHS Foundation Trust,04/09/2020,(82000) Provisions & Kitchens,(id:590527) Integrated Local Services,NHS SUPPLY CHAIN (MAIDSTONE),id:13287744    ,  45.96
Department of Health,Guys and St Thomas NHS Foundation Trust,04/09/2020,(83400) Office Equipment,(id:590527) Integrated Local Services,NHS SUPPLY CHAIN (MAIDSTONE),id:13268734    ,  48.00
Department of Health,Guys and St Thomas NHS Foundation Trust,04/09/2020,(82700) Uniforms & Clothing,(id:590527) Integrated Local Services,NHS SUPPLY CHAIN (MAIDSTONE),id:13269121 , 104.03
Department of Health,Guys and St Thomas NHS Foundation Trust,04/09/2020,(81100) Dressings,(id:590527) Integrated Local Services,NHS SUPPLY CHAIN (MAIDSTONE),id:13204335 , 236.11
Department of Health,Guys and St Thomas NHS Foundation Trust,04/09/2020,(81100) Dressings,(id:590527) Integrated Local Services,NHS SUPPLY CHAIN (MAIDSTONE),id:13269121 , 103.95
Department of Health,Guys and St Thomas NHS Foundation Trust,25/09/2020,(81100) Dressings,(id:590527) Integrated Local Services,NHS SUPPLY CHAIN (MAIDSTONE),id:13325094 , 319.06
Department of Health,Guys and St Thomas NHS Foundation Trust,25/09/2020,(81100) Dressings,(id:590527) Integrated Local Services,NHS SUPPLY CHAIN (MAIDSTONE),id:13312947 ,  92.30
Department of Health,Guys and St Thomas NHS Foundation Trust,04/09/2020,(83500) Furniture & Fittings,(id:590527) Integrated Local Services,NHS SUPPLY CHAIN (MAIDSTONE),id:13269121, 331.97
Department of Health,Guys and St Thomas NHS Foundation Trust,04/09/2020,(81700) Lab Equipment Purchase,(id:590527) Integrated Local Services,NHS SUPPLY CHAIN (MAIDSTONE),id:13287744   ,   8.47
Department of Health,Guys and St Thomas NHS Foundation Trust,22/09/2020,(81200) Medical Surgical Supplies & Equipment,(id:590526) Integrated Local Services,NHS SUPPLY CHAIN (MAIDSTONE),id:13331277   ,  10.44
Department of Health,Guys and St Thomas NHS Foundation Trust,04/09/2020,(82800) Bedding & Linen,(id:590526) Integrated Local Services,NHS SUPPLY CHAIN (MAIDSTONE),id:13287744,  54.24
Department of Health,Guys and St Thomas NHS Foundation Trust,04/09/2020,(83400) Office Equipment,(id:590526) Integrated Local Services,NHS SUPPLY CHAIN (MAIDSTONE),id:13268734    ,  63.65
Department of Health,Guys and St Thomas NHS Foundation Trust,25/09/2020,(83400) Office Equipment,(id:590526) Integrated Local Services,NHS SUPPLY CHAIN (MAIDSTONE),id:13300894    ,  38.14
Department of Health,Guys and St Thomas NHS Foundation Trust,25/09/2020,(83400) Office Equipment,(id:590526) Integrated Local Services,NHS SUPPLY CHAIN (MAIDSTONE),id:13325094    ,  34.52
Department of Health,Guys and St Thomas NHS Foundation Trust,22/09/2020,(83400) Office Equipment,(id:590526) Integrated Local Services,NHS SUPPLY CHAIN (MAIDSTONE),id:13331277    , 110.97
Department of Health,Guys and St Thomas NHS Foundation Trust,04/09/2020,(82000) Provisions & Kitchens,(id:590526) Integrated Local Services,NHS SUPPLY CHAIN (MAIDSTONE),id:13287744    ,  32.20
Department of Health,Guys and St Thomas NHS Foundation Trust,25/09/2020,(82000) Provisions & Kitchens,(id:590526) Integrated Local Services,NHS SUPPLY CHAIN (MAIDSTONE),id:13325094    ,  32.27
Department of Health,Guys and St Thomas NHS Foundation Trust,04/09/2020,(81100) Dressings,(id:590526) Integrated Local Services,NHS SUPPLY CHAIN (MAIDSTONE),id:13291359 , 195.52
Department of Health,Guys and St Thomas NHS Foundation Trust,25/09/2020,(81700) Lab Equipment Purchase,(id:590526) Integrated Local Services,NHS SUPPLY CHAIN (MAIDSTONE),id:13300894   ,  23.72
Department of Health,Guys and St Thomas NHS Foundation Trust,25/09/2020,(82800) Bedding & Linen,(id:903421) Integrated Local Services,NHS SUPPLY CHAIN (MAIDSTONE),id:13300894,  13.87
Department of Health,Guys and St Thomas NHS Foundation Trust,04/09/2020,(81100) Dressings,(id:903421) Integrated Local Services,NHS SUPPLY CHAIN (MAIDSTONE),id:13204335 ,  91.96
Department of Health,Guys and St Thomas NHS Foundation Trust,25/09/2020,(81700) Lab Equipment Purchase,(id:903421) Integrated Local Services,NHS SUPPLY CHAIN (MAIDSTONE),id:13300894   ,  70.65
Department of Health,Guys and St Thomas NHS Foundation Trust,01/09/2020,(84100) Transport,(id:903421) Integrated Local Services,LONDON BOROUGH OF LAMBETH:51362800,id:13292039,1097.70
Department of Health,Guys and St Thomas NHS Foundation Trust,22/09/2020,(81200) Medical Surgical Supplies & Equipment,(id:903421) Integrated Local Services,NHS SUPPLY CHAIN (MAIDSTONE),id:13331277   , 108.18
Department of Health,Guys and St Thomas NHS Foundation Trust,08/09/2020,(51862) Physiotherapists,(id:903421) Integrated Local Services,PRICEWATERHOUSECOOPERS LLP,id:13313818 , 891.27
Department of Health,Guys and St Thomas NHS Foundation Trust,25/09/2020,(89595) Non-Healthcare from Foundation Trusts,(id:42683) Integrated Care SBU Management,MANCHESTER UNIVERSITY NHS FOUNDATION TRUST,id:11031761,5404.50
Department of Health,Guys and St Thomas NHS Foundation Trust,25/09/2020,(82700) Uniforms & Clothing,(id:42518) Evelina Womens Services,NHS SUPPLY CHAIN (MAIDSTONE),id:13325094    ,   9.80
Department of Health,Guys and St Thomas NHS Foundation Trust,04/09/2020,(82000) Provisions & Kitchens,(id:42518) Evelina Womens Services,NHS SUPPLY CHAIN (MAIDSTONE),id:13204335  ,  17.71
Department of Health,Guys and St Thomas NHS Foundation Trust,18/09/2020,(50562) Qualified Nursing Staff,(id:42518) Evelina Womens Services,CARE PROVIDERS HEALTHCARE,id:13328975   , 505.44
Department of Health,Guys and St Thomas NHS Foundation Trust,04/09/2020,(82600) Uniforms & Clothing,(id:42517) Evelina Womens Services,NHS SUPPLY CHAIN (MAIDSTONE),id:13204335    , 147.60
Department of Health,Guys and St Thomas NHS Foundation Trust,25/09/2020,(82000) Provisions & Kitchens,(id:42517) Evelina Womens Services,NHS SUPPLY CHAIN (MAIDSTONE),id:13325094  ,  41.56
Department of Health,Guys and St Thomas NHS Foundation Trust,25/09/2020,(82800) Bedding & Linen,(id:42517) Evelina Womens Services,NHS SUPPLY CHAIN (MAIDSTONE),id:13325094   ,  20.30
Department of Health,Guys and St Thomas NHS Foundation Trust,04/09/2020,(82800) Bedding & Linen,(id:42517) Evelina Womens Services,NHS SUPPLY CHAIN (MAIDSTONE),id:13287744   ,  90.54
Department of Health,Guys and St Thomas NHS Foundation Trust,25/09/2020,(80100) Drug Costs,(id:42517) Evelina Womens Services,BOC LTD :02107500,id:13305854    ,2188.88
Department of Health,Guys and St Thomas NHS Foundation Trust,11/09/2020,(81200) Medical Surgical Supplies & Equipment,(id:42517) Evelina Womens Services,VITROLIFE LTD,id:13316208 ,4030.80
Department of Health,Guys and St Thomas NHS Foundation Trust,25/09/2020,(81200) Medical Surgical Supplies & Equipment,(id:42513) Evelina Womens Services,NHS SUPPLY CHAIN (MAIDSTONE),id:13312947 , 266.99
Department of Health,Guys and St Thomas NHS Foundation Trust,22/09/2020,(81200) Medical Surgical Supplies & Equipment,(id:42513) Evelina Womens Services,NHS SUPPLY CHAIN (MAIDSTONE),id:13331277 , 418.20
Department of Health,Guys and St Thomas NHS Foundation Trust,04/09/2020,(83400) Office Equipment,(id:42513) Evelina Womens Services,NHS SUPPLY CHAIN (MAIDSTONE),id:13204335  ,  62.90
Department of Health,Guys and St Thomas NHS Foundation Trust,04/09/2020,(83400) Office Equipment,(id:42513) Evelina Womens Services,NHS SUPPLY CHAIN (MAIDSTONE),id:13269121  ,  60.23
Department of Health,Guys and St Thomas NHS Foundation Trust,22/09/2020,(81100) Dressings,(id:42513) Evelina Womens Services,NHS SUPPLY CHAIN (MAIDSTONE),id:13331277    ,  43.17
Department of Health,Guys and St Thomas NHS Foundation Trust,25/09/2020,(82800) Bedding & Linen,(id:42513) Evelina Womens Services,NHS SUPPLY CHAIN (MAIDSTONE),id:13300894   ,  45.87
Department of Health,Guys and St Thomas NHS Foundation Trust,04/09/2020,(82800) Bedding & Linen,(id:42513) Evelina Womens Services,NHS SUPPLY CHAIN (MAIDSTONE),id:13268734   ,  30.35
Department of Health,Guys and St Thomas NHS Foundation Trust,04/09/2020,(82700) Uniforms & Clothing,(id:42513) Evelina Womens Services,NHS SUPPLY CHAIN (MAIDSTONE),id:13269121    ,  10.56
Department of Health,Guys and St Thomas NHS Foundation Trust,25/09/2020,(82700) Uniforms & Clothing,(id:42513) Evelina Womens Services,NHS SUPPLY CHAIN (MAIDSTONE),id:13300894    ,  42.24
Department of Health,Guys and St Thomas NHS Foundation Trust,04/09/2020,(81225) Medical Surgical Supplies & Equipment,(id:42513) Evelina Womens Services,NHS SUPPLY CHAIN (MAIDSTONE),id:13204335 ,  24.24
Department of Health,Guys and St Thomas NHS Foundation Trust,04/09/2020,(82600) Uniforms & Clothing,(id:42513) Evelina Womens Services,NHS SUPPLY CHAIN (MAIDSTONE),id:13291359    ,    .90
Department of Health,Guys and St Thomas NHS Foundation Trust,25/09/2020,(82000) Provisions & Kitchens,(id:42513) Evelina Womens Services,NHS SUPPLY CHAIN (MAIDSTONE),id:13312947  , 170.65
Department of Health,Guys and St Thomas NHS Foundation Trust,22/09/2020,(82000) Provisions & Kitchens,(id:42513) Evelina Womens Services,NHS SUPPLY CHAIN (MAIDSTONE),id:13331277  , 265.44
Department of Health,Guys and St Thomas NHS Foundation Trust,18/09/2020,(81200) Medical Surgical Supplies & Equipment,(id:42511) Evelina Womens Services,CRYOLIFE EUROPA LTD,id:13325611, 871.20
Department of Health,Guys and St Thomas NHS Foundation Trust,18/09/2020,(81200) Medical Surgical Supplies & Equipment,(id:42511) Evelina Womens Services,BIOSPECTRUM LTD,id:13325782    ,1728.00
Department of Health,Guys and St Thomas NHS Foundation Trust,25/09/2020,(81200) Medical Surgical Supplies & Equipment,(id:42511) Evelina Womens Services,AQUILANT LTD - TRADING AS AQUILANT SURGICAL,id:13337609 ,2970.00
Department of Health,Guys and St Thomas NHS Foundation Trust,04/09/2020,(81100) Dressings,(id:42510) Evelina Womens Services,NHS SUPPLY CHAIN (MAIDSTONE),id:13268734    ,  24.53
Department of Health,Guys and St Thomas NHS Foundation Trust,04/09/2020,(81275) Medical Surgical Supplies & Equipment,(id:42510) Evelina Womens Services,NHS SUPPLY CHAIN (MAIDSTONE),id:13291359 ,  11.86
Department of Health,Guys and St Thomas NHS Foundation Trust,25/09/2020,(81225) Medical Surgical Supplies & Equipment,(id:42510) Evelina Womens Services,NHS SUPPLY CHAIN (MAIDSTONE),id:13312947 ,  56.23
Department of Health,Guys and St Thomas NHS Foundation Trust,25/09/2020,(83410) Office Equipment,(id:42509) Evelina Womens Services,RICOH UK LTD,id:13342154   , 195.00
Department of Health,Guys and St Thomas NHS Foundation Trust,04/09/2020,(81200) Medical Surgical Supplies & Equipment,(id:42509) Evelina Womens Services,NHS SUPPLY CHAIN (MAIDSTONE),id:13269121 , 284.89
Department of Health,Guys and St Thomas NHS Foundation Trust,04/09/2020,(81200) Medical Surgical Supplies & Equipment,(id:42509) Evelina Womens Services,MEDTRONIC LTD,id:13299073 ,2512.80
Department of Health,Guys and St Thomas NHS Foundation Trust,25/09/2020,(81200) Medical Surgical Supplies & Equipment,(id:42506) Evelina Womens Services,NHS SUPPLY CHAIN (MAIDSTONE),id:13300894 ,2900.76
Department of Health,Guys and St Thomas NHS Foundation Trust,04/09/2020,(83400) Office Equipment,(id:42506) Evelina Womens Services,NHS SUPPLY CHAIN (MAIDSTONE),id:13269121  ,  30.24
Department of Health,Guys and St Thomas NHS Foundation Trust,04/09/2020,(83400) Office Equipment,(id:42506) Evelina Womens Services,NHS SUPPLY CHAIN (MAIDSTONE),id:13291359  ,  22.92
Department of Health,Guys and St Thomas NHS Foundation Trust,22/09/2020,(83400) Office Equipment,(id:42506) Evelina Womens Services,NHS SUPPLY CHAIN (MAIDSTONE),id:13331277  ,  14.26
Department of Health,Guys and St Thomas NHS Foundation Trust,25/09/2020,(83400) Office Equipment,(id:42506) Evelina Womens Services,NHS SUPPLY CHAIN (MAIDSTONE),id:13312947  ,   3.60
Department of Health,Guys and St Thomas NHS Foundation Trust,04/09/2020,(81225) Medical Surgical Supplies & Equipment,(id:42506) Evelina Womens Services,NHS SUPPLY CHAIN (MAIDSTONE),id:13287744 ,  30.37
Department of Health,Guys and St Thomas NHS Foundation Trust,25/09/2020,(82800) Bedding & Linen,(id:42506) Evelina Womens Services,NHS SUPPLY CHAIN (MAIDSTONE),id:13312947   ,  46.82
Department of Health,Guys and St Thomas NHS Foundation Trust,04/09/2020,(82800) Bedding & Linen,(id:42508) Evelina Womens Services,NHS SUPPLY CHAIN (MAIDSTONE),id:13291359   ,  13.54
Department of Health,Guys and St Thomas NHS Foundation Trust,04/09/2020,(81100) Dressings,(id:42508) Evelina Womens Services,NHS SUPPLY CHAIN (MAIDSTONE),id:13204335    ,   3.68
Department of Health,Guys and St Thomas NHS Foundation Trust,04/09/2020,(83400) Office Equipment,(id:42508) Evelina Womens Services,NHS SUPPLY CHAIN (MAIDSTONE),id:13291359  ,  12.64
Department of Health,Guys and St Thomas NHS Foundation Trust,04/09/2020,(83400) Office Equipment,(id:42486) Evelina Womens Services,NHS SUPPLY CHAIN (MAIDSTONE),id:13291359  ,   9.14
Department of Health,Guys and St Thomas NHS Foundation Trust,04/09/2020,(82800) Bedding & Linen,(id:42486) Evelina Womens Services,NHS SUPPLY CHAIN (MAIDSTONE),id:13287744   ,  23.41
Department of Health,Guys and St Thomas NHS Foundation Trust,22/09/2020,(82800) Bedding & Linen,(id:42486) Evelina Womens Services,NHS SUPPLY CHAIN (MAIDSTONE),id:13331277   ,  25.20
Department of Health,Guys and St Thomas NHS Foundation Trust,25/09/2020,(80200) Drug Costs,(id:42486) Evelina Womens Services,THERMO FISHER DIAGNOSTICS LTD,id:13336376  ,4644.22
Department of Health,Guys and St Thomas NHS Foundation Trust,04/09/2020,(81225) Medical Surgical Supplies & Equipment,(id:42486) Evelina Womens Services,NHS SUPPLY CHAIN (MAIDSTONE),id:13287744 ,  37.10
Department of Health,Guys and St Thomas NHS Foundation Trust,18/09/2020,(81900) Lab Equipment Purchase,(id:42486) Evelina Womens Services,VIAPATH ANALYTICS LLP,id:13324392   ,4121.00
Department of Health,Guys and St Thomas NHS Foundation Trust,11/09/2020,(50562) Qualified Nursing Staff,(id:42503) Evelina Womens Services,CARE PROVIDERS HEALTHCARE,id:13319059   , 450.91
Department of Health,Guys and St Thomas NHS Foundation Trust,18/09/2020,(50562) Qualified Nursing Staff,(id:42503) Evelina Womens Services,CARE PROVIDERS HEALTHCARE,id:13328898   , 429.52
Department of Health,Guys and St Thomas NHS Foundation Trust,18/09/2020,(50562) Qualified Nursing Staff,(id:42497) Evelina Womens Services,CARE PROVIDERS HEALTHCARE,id:13328878   , 421.20
Department of Health,Guys and St Thomas NHS Foundation Trust,04/09/2020,(83400) Office Equipment,(id:42496) Evelina Womens Services,NHS SUPPLY CHAIN (MAIDSTONE),id:13268734  ,   6.46
Department of Health,Guys and St Thomas NHS Foundation Trust,04/09/2020,(82800) Bedding & Linen,(id:42496) Evelina Womens Services,NHS SUPPLY CHAIN (MAIDSTONE),id:13269121   ,  34.07
Department of Health,Guys and St Thomas NHS Foundation Trust,04/09/2020,(82800) Bedding & Linen,(id:42496) Evelina Womens Services,NHS SUPPLY CHAIN (MAIDSTONE),id:13291359   ,  10.66
Department of Health,Guys and St Thomas NHS Foundation Trust,18/09/2020,(80200) Drug Costs,(id:42496) Evelina Womens Services,VIAPATH ANALYTICS LLP,id:13324382,3626.00
Department of Health,Guys and St Thomas NHS Foundation Trust,25/09/2020,(81700) Lab Equipment Purchase,(id:42496) Evelina Womens Services,NHS SUPPLY CHAIN (MAIDSTONE),id:13312947 ,  43.84
Department of Health,Guys and St Thomas NHS Foundation Trust,04/09/2020,(81700) Lab Equipment Purchase,(id:42496) Evelina Womens Services,NHS SUPPLY CHAIN (MAIDSTONE),id:13287744 ,  37.08
Department of Health,Guys and St Thomas NHS Foundation Trust,04/09/2020,(81100) Dressings,(id:42493) Evelina Womens Services,NHS SUPPLY CHAIN (MAIDSTONE),id:13268734    , 139.33
Department of Health,Guys and St Thomas NHS Foundation Trust,04/09/2020,(81200) Medical Surgical Supplies & Equipment,(id:42493) Evelina Womens Services,NHS SUPPLY CHAIN (MAIDSTONE),id:13204335 , 481.04
Department of Health,Guys and St Thomas NHS Foundation Trust,04/09/2020,(81700) Lab Equipment Purchase,(id:42493) Evelina Womens Services,NHS SUPPLY CHAIN (MAIDSTONE),id:13287744 ,  58.74
Department of Health,Guys and St Thomas NHS Foundation Trust,25/09/2020,(82700) Uniforms & Clothing,(id:42492) Evelina Womens Services,NHS SUPPLY CHAIN (MAIDSTONE),id:13312947    ,  21.44
Department of Health,Guys and St Thomas NHS Foundation Trust,04/09/2020,(83400) Office Equipment,(id:42492) Evelina Womens Services,NHS SUPPLY CHAIN (MAIDSTONE),id:13287744  ,1133.00
Department of Health,Guys and St Thomas NHS Foundation Trust,22/09/2020,(83400) Office Equipment,(id:42492) Evelina Womens Services,NHS SUPPLY CHAIN (MAIDSTONE),id:13331277  ,1307.17
Department of Health,Guys and St Thomas NHS Foundation Trust,04/09/2020,(82800) Bedding & Linen,(id:42492) Evelina Womens Services,NHS SUPPLY CHAIN (MAIDSTONE),id:13204335   , 906.96
Department of Health,Guys and St Thomas NHS Foundation Trust,18/09/2020,(84500) Establishment,(id:42492) Evelina Womens Services,CDP  PRINT MANAGEMENT,id:13324422  ,1600.80
Department of Health,Guys and St Thomas NHS Foundation Trust,04/09/2020,(81200) Medical Surgical Supplies & Equipment,(id:42492) Evelina Womens Services,NHS SUPPLY CHAIN (MAIDSTONE),id:13268734 ,8294.58
Department of Health,Guys and St Thomas NHS Foundation Trust,11/09/2020,(81200) Medical Surgical Supplies & Equipment,(id:42492) Evelina Womens Services,SQUADRON MEDICAL LTD,id:13299693    , 826.56
Department of Health,Guys and St Thomas NHS Foundation Trust,25/09/2020,(81275) Medical Surgical Supplies & Equipment,(id:42492) Evelina Womens Services,NHS SUPPLY CHAIN (MAIDSTONE),id:13325094 ,   5.93
Department of Health,Guys and St Thomas NHS Foundation Trust,04/09/2020,(81700) Lab Equipment Purchase,(id:42492) Evelina Womens Services,NHS SUPPLY CHAIN (MAIDSTONE),id:13291359 ,  54.26
Department of Health,Guys and St Thomas NHS Foundation Trust,11/09/2020,(50562) Qualified Nursing Staff,(id:42492) Evelina Womens Services,PULSE HEALTHCARE LIMITED,id:13318949    , 836.17
Department of Health,Guys and St Thomas NHS Foundation Trust,18/09/2020,(50562) Qualified Nursing Staff,(id:42492) Evelina Womens Services,CARE PROVIDERS HEALTHCARE,id:13328834   , 421.20
Department of Health,Guys and St Thomas NHS Foundation Trust,25/09/2020,(50562) Qualified Nursing Staff,(id:42492) Evelina Womens Services,CARE PROVIDERS HEALTHCARE,id:13344878   , 429.52
Department of Health,Guys and St Thomas NHS Foundation Trust,25/09/2020,(50562) Qualified Nursing Staff,(id:42492) Evelina Womens Services,CARE PROVIDERS HEALTHCARE,id:13344837   , 474.58
Department of Health,Guys and St Thomas NHS Foundation Trust,04/09/2020,(82700) Uniforms & Clothing,(id:42491) Evelina Womens Services,NHS SUPPLY CHAIN (MAIDSTONE),id:13291359    ,  21.12
Department of Health,Guys and St Thomas NHS Foundation Trust,25/09/2020,(82700) Uniforms & Clothing,(id:42491) Evelina Womens Services,NHS SUPPLY CHAIN (MAIDSTONE),id:13300894    ,  10.56
Department of Health,Guys and St Thomas NHS Foundation Trust,04/09/2020,(82000) Provisions & Kitchens,(id:42491) Evelina Womens Services,NHS SUPPLY CHAIN (MAIDSTONE),id:13269121  ,  53.57
Department of Health,Guys and St Thomas NHS Foundation Trust,04/09/2020,(82000) Provisions & Kitchens,(id:42491) Evelina Womens Services,NHS SUPPLY CHAIN (MAIDSTONE),id:13204335  , 253.65
Department of Health,Guys and St Thomas NHS Foundation Trust,04/09/2020,(82800) Bedding & Linen,(id:42491) Evelina Womens Services,NHS SUPPLY CHAIN (MAIDSTONE),id:13268734   , 144.38
Department of Health,Guys and St Thomas NHS Foundation Trust,25/09/2020,(82800) Bedding & Linen,(id:42491) Evelina Womens Services,NHS SUPPLY CHAIN (MAIDSTONE),id:13312947   , 176.12
Department of Health,Guys and St Thomas NHS Foundation Trust,04/09/2020,(81275) Medical Surgical Supplies & Equipment,(id:42491) Evelina Womens Services,NHS SUPPLY CHAIN (MAIDSTONE),id:13204335 , 126.10
Department of Health,Guys and St Thomas NHS Foundation Trust,04/09/2020,(80010) Drug Costs,(id:42491) Evelina Womens Services,NHS SUPPLY CHAIN (MAIDSTONE),id:13204335   ,  19.44
Department of Health,Guys and St Thomas NHS Foundation Trust,04/09/2020,(81200) Medical Surgical Supplies & Equipment,(id:42491) Evelina Womens Services,NHS SUPPLY CHAIN (MAIDSTONE),id:13287744 ,1059.91
Department of Health,Guys and St Thomas NHS Foundation Trust,25/09/2020,(81200) Medical Surgical Supplies & Equipment,(id:42491) Evelina Womens Services,NHS SUPPLY CHAIN (MAIDSTONE),id:13300894 , 576.55
Department of Health,Guys and St Thomas NHS Foundation Trust,04/09/2020,(81700) Lab Equipment Purchase,(id:42491) Evelina Womens Services,NHS SUPPLY CHAIN (MAIDSTONE),id:13268734 ,  54.27
Department of Health,Guys and St Thomas NHS Foundation Trust,04/09/2020,(81700) Lab Equipment Purchase,(id:42491) Evelina Womens Services,NHS SUPPLY CHAIN (MAIDSTONE),id:13269121 ,  37.42
Department of Health,Guys and St Thomas NHS Foundation Trust,04/09/2020,(81700) Lab Equipment Purchase,(id:42491) Evelina Womens Services,NHS SUPPLY CHAIN (MAIDSTONE),id:13204335 ,  38.31
Department of Health,Guys and St Thomas NHS Foundation Trust,25/09/2020,(81700) Lab Equipment Purchase,(id:42491) Evelina Womens Services,NHS SUPPLY CHAIN (MAIDSTONE),id:13300894 ,  29.70
Department of Health,Guys and St Thomas NHS Foundation Trust,04/09/2020,(89595) Non-Healthcare from Foundation Trusts,(id:42504) Evelina Womens Services,CHELSEA AND WESTMINSTER HOSPITAL NHS FOUNDATION TRUST,id:13195695 ,1599.18
Department of Health,Guys and St Thomas NHS Foundation Trust,25/09/2020,(82700) Uniforms & Clothing,(id:42348) Evelina Central,NHS SUPPLY CHAIN (MAIDSTONE),id:13325094  ,   9.34
Department of Health,Guys and St Thomas NHS Foundation Trust,04/09/2020,(82000) Provisions & Kitchens,(id:42348) Evelina Central,NHS SUPPLY CHAIN (MAIDSTONE),id:13291359,  29.71
Department of Health,Guys and St Thomas NHS Foundation Trust,25/09/2020,(83500) Furniture & Fittings,(id:42348) Evelina Central,TECHNIBLINDS LTD,id:13328546   , 500.40
Department of Health,Guys and St Thomas NHS Foundation Trust,04/09/2020,(82800) Bedding & Linen,(id:42348) Evelina Central,NHS SUPPLY CHAIN (MAIDSTONE),id:13291359 ,  85.39
Department of Health,Guys and St Thomas NHS Foundation Trust,04/09/2020,(81100) Dressings,(id:42348) Evelina Central,NHS SUPPLY CHAIN (MAIDSTONE),id:13269121  , 218.41
Department of Health,Guys and St Thomas NHS Foundation Trust,04/09/2020,(81200) Medical Surgical Supplies & Equipment,(id:42348) Evelina Central,BAXTER HEALTHCARE LTD,id:13293354 ,1569.20
Department of Health,Guys and St Thomas NHS Foundation Trust,04/09/2020,(83400) Office Equipment,(id:42348) Evelina Central,NHS SUPPLY CHAIN (MAIDSTONE),id:13269121,  84.28
Department of Health,Guys and St Thomas NHS Foundation Trust,25/09/2020,(81700) Lab Equipment Purchase,(id:42348) Evelina Central,NHS SUPPLY CHAIN (MAIDSTONE),id:13312947    ,  42.72
Department of Health,Guys and St Thomas NHS Foundation Trust,04/09/2020,(82700) Uniforms & Clothing,(id:42331) Evelina Central,NHS SUPPLY CHAIN (MAIDSTONE),id:13204335  ,   5.43
Department of Health,Guys and St Thomas NHS Foundation Trust,04/09/2020,(82700) Uniforms & Clothing,(id:42331) Evelina Central,NHS SUPPLY CHAIN (MAIDSTONE),id:13287744  , 140.59
Department of Health,Guys and St Thomas NHS Foundation Trust,04/09/2020,(81200) Medical Surgical Supplies & Equipment,(id:42331) Evelina Central,NHS SUPPLY CHAIN (MAIDSTONE),id:13204335    ,1969.08
Department of Health,Guys and St Thomas NHS Foundation Trust,22/09/2020,(81200) Medical Surgical Supplies & Equipment,(id:42331) Evelina Central,NHS SUPPLY CHAIN (MAIDSTONE),id:13331277    ,4227.51
Department of Health,Guys and St Thomas NHS Foundation Trust,25/09/2020,(81100) Dressings,(id:42331) Evelina Central,NHS SUPPLY CHAIN (MAIDSTONE),id:13300894  , 629.53
Department of Health,Guys and St Thomas NHS Foundation Trust,22/09/2020,(81700) Lab Equipment Purchase,(id:42331) Evelina Central,NHS SUPPLY CHAIN (MAIDSTONE),id:13331277    ,  31.62
Department of Health,Guys and St Thomas NHS Foundation Trust,04/09/2020,(82000) Provisions & Kitchens,(id:42331) Evelina Central,NHS SUPPLY CHAIN (MAIDSTONE),id:13269121,  88.67
Department of Health,Guys and St Thomas NHS Foundation Trust,25/09/2020,(81225) Medical Surgical Supplies & Equipment,(id:42325) Evelina Central,NHS SUPPLY CHAIN (MAIDSTONE),id:13325094    ,  20.88
Department of Health,Guys and St Thomas NHS Foundation Trust,04/09/2020,(81255) Medical Surgical Supplies & Equipment,(id:42325) Evelina Central,NHS SUPPLY CHAIN (MAIDSTONE),id:13269121    , 336.00
Department of Health,Guys and St Thomas NHS Foundation Trust,04/09/2020,(81200) Medical Surgical Supplies & Equipment,(id:42325) Evelina Central,BREAS MEDICAL LTD,id:13297667,1800.00
Department of Health,Guys and St Thomas NHS Foundation Trust,04/09/2020,(81200) Medical Surgical Supplies & Equipment,(id:42319) Evelina Central,NHS SUPPLY CHAIN (MAIDSTONE),id:13204335    , 131.14
Department of Health,Guys and St Thomas NHS Foundation Trust,04/09/2020,(81200) Medical Surgical Supplies & Equipment,(id:42319) Evelina Central,NHS SUPPLY CHAIN (MAIDSTONE),id:13268734    , 163.86
Department of Health,Guys and St Thomas NHS Foundation Trust,04/09/2020,(81225) Medical Surgical Supplies & Equipment,(id:590444) Evelina Community Services,NHS SUPPLY CHAIN (MAIDSTONE),id:13269121  ,  21.60
Department of Health,Guys and St Thomas NHS Foundation Trust,04/09/2020,(82800) Bedding & Linen,(id:590444) Evelina Community Services,NHS SUPPLY CHAIN (MAIDSTONE),id:13269121    ,  19.39
Department of Health,Guys and St Thomas NHS Foundation Trust,04/09/2020,(81225) Medical Surgical Supplies & Equipment,(id:590450) Evelina Community Services,VIDA GLOBAL (JAMES LECKEY DESIGN LTD),id:13299406   , 619.20
Department of Health,Guys and St Thomas NHS Foundation Trust,29/09/2020,(51872) Physiotherapists,(id:590450) Evelina Community Services,PRICEWATERHOUSECOOPERS LLP,id:13351193,1451.79
Department of Health,Guys and St Thomas NHS Foundation Trust,25/09/2020,(81200) Medical Surgical Supplies & Equipment,(id:706420) Evelina Community Services,BOXFIT UK LTD,id:13337658  ,1823.83
Department of Health,Guys and St Thomas NHS Foundation Trust,04/09/2020,(81100) Dressings,(id:706419) Evelina Community Services,NHS SUPPLY CHAIN (MAIDSTONE),id:13204335,  28.08
Department of Health,Guys and St Thomas NHS Foundation Trust,25/09/2020,(81200) Medical Surgical Supplies & Equipment,(id:590449) Evelina Community Services,NHS SUPPLY CHAIN (MAIDSTONE),id:13300894  , 208.80
Department of Health,Guys and St Thomas NHS Foundation Trust,04/09/2020,(83400) Office Equipment,(id:590449) Evelina Community Services,NHS SUPPLY CHAIN (MAIDSTONE),id:13287744   ,   5.56
Department of Health,Guys and St Thomas NHS Foundation Trust,11/09/2020,(81200) Medical Surgical Supplies & Equipment,(id:590557) Evelina Community Services,PERFORMANCE HEALTH INTERNATIONAL LTD (PATTERSON),id:13210648  , 520.56
Department of Health,Guys and St Thomas NHS Foundation Trust,04/09/2020,(83400) Office Equipment,(id:590557) Evelina Community Services,NHS SUPPLY CHAIN (MAIDSTONE),id:13269121   ,  96.79
Department of Health,Guys and St Thomas NHS Foundation Trust,25/09/2020,(82000) Provisions & Kitchens,(id:590446) Evelina Community Services,NHS SUPPLY CHAIN (MAIDSTONE),id:13300894   ,  37.44
Department of Health,Guys and St Thomas NHS Foundation Trust,25/09/2020,(83400) Office Equipment,(id:590446) Evelina Community Services,NHS SUPPLY CHAIN (MAIDSTONE),id:13300894   , 178.21
Department of Health,Guys and St Thomas NHS Foundation Trust,04/09/2020,(82800) Bedding & Linen,(id:590446) Evelina Community Services,NHS SUPPLY CHAIN (MAIDSTONE),id:13268734    ,  46.82
Department of Health,Guys and St Thomas NHS Foundation Trust,25/09/2020,(81100) Dressings,(id:590446) Evelina Community Services,NHS SUPPLY CHAIN (MAIDSTONE),id:13300894,   3.69
Department of Health,Guys and St Thomas NHS Foundation Trust,04/09/2020,(84500) Establishment,(id:590545) Evelina Community Services,PEARSON EDUCATION LTD,id:13309335   ,1115.88
Department of Health,Guys and St Thomas NHS Foundation Trust,25/09/2020,(82800) Bedding & Linen,(id:4304419) Evelina Community Services,NHS SUPPLY CHAIN (MAIDSTONE),id:13325094   ,  93.64
Department of Health,Guys and St Thomas NHS Foundation Trust,04/09/2020,(82000) Provisions & Kitchens,(id:590541) Evelina Community Services,NHS SUPPLY CHAIN (MAIDSTONE),id:13291359   , 185.04
Department of Health,Guys and St Thomas NHS Foundation Trust,22/09/2020,(81200) Medical Surgical Supplies & Equipment,(id:590541) Evelina Community Services,NHS SUPPLY CHAIN (MAIDSTONE),id:13331277  , 107.64
Department of Health,Guys and St Thomas NHS Foundation Trust,04/09/2020,(82800) Bedding & Linen,(id:590539) Evelina Community Services,NHS SUPPLY CHAIN (MAIDSTONE),id:13268734    , 234.00
Department of Health,Guys and St Thomas NHS Foundation Trust,04/09/2020,(83500) Furniture & Fittings,(id:590416) Evelina Community Services,NHS SUPPLY CHAIN (MAIDSTONE),id:13287744    , 124.80
Department of Health,Guys and St Thomas NHS Foundation Trust,25/09/2020,(82000) Provisions & Kitchens,(id:590416) Evelina Community Services,NHS SUPPLY CHAIN (MAIDSTONE),id:13300894   , 154.20
Department of Health,Guys and St Thomas NHS Foundation Trust,25/09/2020,(50562) Qualified Nursing Staff,(id:590542) Evelina Community Services,ARTHUR RAI MEDICAL SERVICES LTD,id:13343332   ,1317.00
Department of Health,Guys and St Thomas NHS Foundation Trust,25/09/2020,(82800) Bedding & Linen,(id:590422) Evelina Community Services,NHS SUPPLY CHAIN (MAIDSTONE),id:13312947    , 140.47
Department of Health,Guys and St Thomas NHS Foundation Trust,22/09/2020,(82000) Provisions & Kitchens,(id:590441) Evelina Community Services,NHS SUPPLY CHAIN (MAIDSTONE),id:13331277   ,  38.04
Department of Health,Guys and St Thomas NHS Foundation Trust,25/09/2020,(81200) Medical Surgical Supplies & Equipment,(id:2356419) Evelina Medicine & Neonatology,NHS SUPPLY CHAIN (MAIDSTONE),id:13325094  ,3178.19
Department of Health,Guys and St Thomas NHS Foundation Trust,25/09/2020,(81100) Dressings,(id:2356419) Evelina Medicine & Neonatology,NHS SUPPLY CHAIN (MAIDSTONE),id:13325094,  32.65
Department of Health,Guys and St Thomas NHS Foundation Trust,25/09/2020,(81230) Medical Surgical Supplies & Equipment,(id:2356419) Evelina Medicine & Neonatology,NHS SUPPLY CHAIN (MAIDSTONE),id:13312947  , 182.70
Department of Health,Guys and St Thomas NHS Foundation Trust,25/09/2020,(81230) Medical Surgical Supplies & Equipment,(id:2356419) Evelina Medicine & Neonatology,NHS SUPPLY CHAIN (MAIDSTONE),id:13300894  , 182.70
Department of Health,Guys and St Thomas NHS Foundation Trust,04/09/2020,(82600) Uniforms & Clothing,(id:4446419) Evelina Medicine & Neonatology,MALEM MEDICAL,id:13111682, 791.46
Department of Health,Guys and St Thomas NHS Foundation Trust,04/09/2020,(81200) Medical Surgical Supplies & Equipment,(id:42350) Evelina Medicine & Neonatology,NHS SUPPLY CHAIN (MAIDSTONE),id:13291359    , 860.57
Department of Health,Guys and St Thomas NHS Foundation Trust,11/09/2020,(81200) Medical Surgical Supplies & Equipment,(id:42350) Evelina Medicine & Neonatology,NXSTAGE MEDICAL UK LIMITED,id:13316694 ,1368.96
Department of Health,Guys and St Thomas NHS Foundation Trust,25/09/2020,(80150) Drug Costs,(id:42350) Evelina Medicine & Neonatology,NHS SUPPLY CHAIN (MAIDSTONE),id:13300894 ,  88.32
Department of Health,Guys and St Thomas NHS Foundation Trust,11/09/2020,(80150) Drug Costs,(id:42350) Evelina Medicine & Neonatology,LINC MEDICAL SYSTEMS  LTD,id:13320536    ,3416.40
Department of Health,Guys and St Thomas NHS Foundation Trust,11/09/2020,(80150) Drug Costs,(id:42350) Evelina Medicine & Neonatology,LINC MEDICAL SYSTEMS  LTD,id:13314754    ,1262.40
Department of Health,Guys and St Thomas NHS Foundation Trust,25/09/2020,(81200) Medical Surgical Supplies & Equipment,(id:42349) Evelina Medicine & Neonatology,BARD LTD,id:13047734    ,1256.76
Department of Health,Guys and St Thomas NHS Foundation Trust,22/09/2020,(81200) Medical Surgical Supplies & Equipment,(id:42349) Evelina Medicine & Neonatology,NHS SUPPLY CHAIN (MAIDSTONE),id:13331277    ,  93.10
Department of Health,Guys and St Thomas NHS Foundation Trust,04/09/2020,(81230) Medical Surgical Supplies & Equipment,(id:42349) Evelina Medicine & Neonatology,NHS SUPPLY CHAIN (MAIDSTONE),id:13269121    ,  79.20
Department of Health,Guys and St Thomas NHS Foundation Trust,11/09/2020,(89595) Non-Healthcare from Foundation Trusts,(id:42336) Evelina Medicine & Neonatology,SHEFFIELD CHILDREN'S NHS FOUNDATION TRUST,id:13061794 , 129.58
Department of Health,Guys and St Thomas NHS Foundation Trust,04/09/2020,(81200) Medical Surgical Supplies & Equipment,(id:817420) Evelina Medicine & Neonatology,STOWOOD SCIENTIFIC INSTRUMENTS,id:13295994 ,3046.38
Department of Health,Guys and St Thomas NHS Foundation Trust,18/09/2020,(55072) Admin & Clerical,(id:610410) Evelina Medicine & Neonatology,BRITISH PAEDIATRIC SERVICES LTD,id:13322614 ,1680.00
Department of Health,Guys and St Thomas NHS Foundation Trust,04/09/2020,(82000) Provisions & Kitchens,(id:2497419) Evelina Medicine & Neonatology,NHS SUPPLY CHAIN (MAIDSTONE),id:13269121   ,  23.62
Department of Health,Guys and St Thomas NHS Foundation Trust,11/09/2020,(50200) Consultants,(id:42335) Evelina Medicine & Neonatology,SOUTH LONDON AND MAUDSLEY NHS FOUNDATION TRUST,id:13166814  ,    23669.24
Department of Health,Guys and St Thomas NHS Foundation Trust,25/09/2020,(81200) Medical Surgical Supplies & Equipment,(id:42335) Evelina Medicine & Neonatology,NHS SUPPLY CHAIN (MAIDSTONE),id:13300894    ,  55.01
Department of Health,Guys and St Thomas NHS Foundation Trust,18/09/2020,(81700) Lab Equipment Purchase,(id:42335) Evelina Medicine & Neonatology,AMPLEXA GENETICS A/S,id:13327106  ,1620.00
Department of Health,Guys and St Thomas NHS Foundation Trust,11/09/2020,(81400) Medical Surgical Supplies & Equipment,(id:42335) Evelina Medicine & Neonatology,RENISHAW PLC,id:13314895,    33995.00
Department of Health,Guys and St Thomas NHS Foundation Trust,18/09/2020,(81000) Surgical Appliances,(id:42335) Evelina Medicine & Neonatology,JOHN FLORENCE LTD,id:13325713   , 984.94
Department of Health,Guys and St Thomas NHS Foundation Trust,25/09/2020,(82700) Uniforms & Clothing,(id:42327) Evelina Medicine & Neonatology,NHS SUPPLY CHAIN (MAIDSTONE),id:13312947  ,  44.12
Department of Health,Guys and St Thomas NHS Foundation Trust,22/09/2020,(82000) Provisions & Kitchens,(id:42327) Evelina Medicine & Neonatology,NHS SUPPLY CHAIN (MAIDSTONE),id:13331277, 338.26
Department of Health,Guys and St Thomas NHS Foundation Trust,25/09/2020,(82000) Provisions & Kitchens,(id:42327) Evelina Medicine & Neonatology,NHS SUPPLY CHAIN (MAIDSTONE),id:13325094, 176.78
Department of Health,Guys and St Thomas NHS Foundation Trust,04/09/2020,(82800) Bedding & Linen,(id:42327) Evelina Medicine & Neonatology,NHS SUPPLY CHAIN (MAIDSTONE),id:13268734 , 176.86
Department of Health,Guys and St Thomas NHS Foundation Trust,04/09/2020,(82800) Bedding & Linen,(id:42327) Evelina Medicine & Neonatology,NHS SUPPLY CHAIN (MAIDSTONE),id:13269121 , 170.51
Department of Health,Guys and St Thomas NHS Foundation Trust,04/09/2020,(81100) Dressings,(id:42327) Evelina Medicine & Neonatology,NHS SUPPLY CHAIN (MAIDSTONE),id:13268734  , 390.19
Department of Health,Guys and St Thomas NHS Foundation Trust,25/09/2020,(81200) Medical Surgical Supplies & Equipment,(id:42327) Evelina Medicine & Neonatology,SQUADRON MEDICAL LTD,id:13319591  , 648.72
Department of Health,Guys and St Thomas NHS Foundation Trust,04/09/2020,(81200) Medical Surgical Supplies & Equipment,(id:42327) Evelina Medicine & Neonatology,TECHNO SYSTEMS AS,id:13299310,1723.20
Department of Health,Guys and St Thomas NHS Foundation Trust,04/09/2020,(81200) Medical Surgical Supplies & Equipment,(id:42327) Evelina Medicine & Neonatology,VYGON (UK) LTD,id:13156378   ,1929.60
Department of Health,Guys and St Thomas NHS Foundation Trust,18/09/2020,(50552) Qualified Nursing Staff,(id:42327) Evelina Medicine & Neonatology,CONTINENTAL NURSE LTD,id:13328892,1364.25
Department of Health,Guys and St Thomas NHS Foundation Trust,04/09/2020,(80010) Drug Costs,(id:42327) Evelina Medicine & Neonatology,NHS SUPPLY CHAIN (MAIDSTONE),id:13204335 ,  19.44
Department of Health,Guys and St Thomas NHS Foundation Trust,25/09/2020,(83400) Office Equipment,(id:42327) Evelina Medicine & Neonatology,NHS SUPPLY CHAIN (MAIDSTONE),id:13300894, 375.10
Department of Health,Guys and St Thomas NHS Foundation Trust,04/09/2020,(81230) Medical Surgical Supplies & Equipment,(id:42327) Evelina Medicine & Neonatology,NHS SUPPLY CHAIN (MAIDSTONE),id:13287744    , 670.80
Department of Health,Guys and St Thomas NHS Foundation Trust,04/09/2020,(81225) Medical Surgical Supplies & Equipment,(id:42327) Evelina Medicine & Neonatology,NHS SUPPLY CHAIN (MAIDSTONE),id:13269121    ,  54.84
Department of Health,Guys and St Thomas NHS Foundation Trust,04/09/2020,(81225) Medical Surgical Supplies & Equipment,(id:42327) Evelina Medicine & Neonatology,NHS SUPPLY CHAIN (MAIDSTONE),id:13291359    ,  44.04
Department of Health,Guys and St Thomas NHS Foundation Trust,25/09/2020,(81225) Medical Surgical Supplies & Equipment,(id:42327) Evelina Medicine & Neonatology,NHS SUPPLY CHAIN (MAIDSTONE),id:13312947    ,  29.36
Department of Health,Guys and St Thomas NHS Foundation Trust,04/09/2020,(81700) Lab Equipment Purchase,(id:42327) Evelina Medicine & Neonatology,NHS SUPPLY CHAIN (MAIDSTONE),id:13204335    ,  63.95
Department of Health,Guys and St Thomas NHS Foundation Trust,04/09/2020,(81700) Lab Equipment Purchase,(id:42327) Evelina Medicine & Neonatology,NHS SUPPLY CHAIN (MAIDSTONE),id:13287744    , 122.31
Department of Health,Guys and St Thomas NHS Foundation Trust,25/09/2020,(81700) Lab Equipment Purchase,(id:1196420) Evelina Medicine & Neonatology,NHS SUPPLY CHAIN (MAIDSTONE),id:13325094  , 455.31
Department of Health,Guys and St Thomas NHS Foundation Trust,25/09/2020,(81200) Medical Surgical Supplies & Equipment,(id:2496419) Evelina Medicine & Neonatology,NHS SUPPLY CHAIN (MAIDSTONE),id:13300894  ,1074.33
Department of Health,Guys and St Thomas NHS Foundation Trust,25/09/2020,(81700) Lab Equipment Purchase,(id:2496419) Evelina Medicine & Neonatology,NHS SUPPLY CHAIN (MAIDSTONE),id:13312947  ,  11.86
Department of Health,Guys and St Thomas NHS Foundation Trust,04/09/2020,(82800) Bedding & Linen,(id:2496419) Evelina Medicine & Neonatology,NHS SUPPLY CHAIN (MAIDSTONE),id:13287744    ,  65.94
Department of Health,Guys and St Thomas NHS Foundation Trust,25/09/2020,(82800) Bedding & Linen,(id:2496419) Evelina Medicine & Neonatology,NHS SUPPLY CHAIN (MAIDSTONE),id:13312947    ,  30.63
Department of Health,Guys and St Thomas NHS Foundation Trust,04/09/2020,(81100) Dressings,(id:2496419) Evelina Medicine & Neonatology,NHS SUPPLY CHAIN (MAIDSTONE),id:13269121, 130.66
Department of Health,Guys and St Thomas NHS Foundation Trust,04/09/2020,(82700) Uniforms & Clothing,(id:2496419) Evelina Medicine & Neonatology,NHS SUPPLY CHAIN (MAIDSTONE),id:13269121,  17.44
Department of Health,Guys and St Thomas NHS Foundation Trust,18/09/2020,(50552) Qualified Nursing Staff,(id:41874) Evelina Medicine & Neonatology,CONTINENTAL NURSE LTD,id:13328872,2734.88
Department of Health,Guys and St Thomas NHS Foundation Trust,25/09/2020,(82800) Bedding & Linen,(id:41874) Evelina Medicine & Neonatology,NHS SUPPLY CHAIN (MAIDSTONE),id:13300894 ,   5.33
Department of Health,Guys and St Thomas NHS Foundation Trust,04/09/2020,(82000) Provisions & Kitchens,(id:41874) Evelina Medicine & Neonatology,NHS SUPPLY CHAIN (MAIDSTONE),id:13268734,  14.09
Department of Health,Guys and St Thomas NHS Foundation Trust,25/09/2020,(83400) Office Equipment,(id:41874) Evelina Medicine & Neonatology,NHS SUPPLY CHAIN (MAIDSTONE),id:13312947,   1.52
Department of Health,Guys and St Thomas NHS Foundation Trust,04/09/2020,(83400) Office Equipment,(id:42323) Evelina Medicine & Neonatology,NHS SUPPLY CHAIN (MAIDSTONE),id:13269121,  17.34
Department of Health,Guys and St Thomas NHS Foundation Trust,25/09/2020,(83400) Office Equipment,(id:42323) Evelina Medicine & Neonatology,NHS SUPPLY CHAIN (MAIDSTONE),id:13325094,  54.96
Department of Health,Guys and St Thomas NHS Foundation Trust,04/09/2020,(84500) Establishment,(id:42323) Evelina Medicine & Neonatology,CDP  PRINT MANAGEMENT,id:13305999, 661.18
Department of Health,Guys and St Thomas NHS Foundation Trust,22/09/2020,(81100) Dressings,(id:42323) Evelina Medicine & Neonatology,NHS SUPPLY CHAIN (MAIDSTONE),id:13331277  ,  38.52
Department of Health,Guys and St Thomas NHS Foundation Trust,25/09/2020,(81100) Dressings,(id:42323) Evelina Medicine & Neonatology,NHS SUPPLY CHAIN (MAIDSTONE),id:13325094  ,  52.74
Department of Health,Guys and St Thomas NHS Foundation Trust,25/09/2020,(81100) Dressings,(id:42323) Evelina Medicine & Neonatology,NHS SUPPLY CHAIN (MAIDSTONE),id:13312947  , 183.21
Department of Health,Guys and St Thomas NHS Foundation Trust,04/09/2020,(81700) Lab Equipment Purchase,(id:42323) Evelina Medicine & Neonatology,NHS SUPPLY CHAIN (MAIDSTONE),id:13287744    , 124.23
Department of Health,Guys and St Thomas NHS Foundation Trust,25/09/2020,(81200) Medical Surgical Supplies & Equipment,(id:42323) Evelina Medicine & Neonatology,NHS SUPPLY CHAIN (MAIDSTONE),id:13300894    ,  75.43
Department of Health,Guys and St Thomas NHS Foundation Trust,25/09/2020,(81200) Medical Surgical Supplies & Equipment,(id:42323) Evelina Medicine & Neonatology,NHS SUPPLY CHAIN (MAIDSTONE),id:13312947    ,  25.83
Department of Health,Guys and St Thomas NHS Foundation Trust,04/09/2020,(81225) Medical Surgical Supplies & Equipment,(id:42323) Evelina Medicine & Neonatology,NHS SUPPLY CHAIN (MAIDSTONE),id:13268734    ,  17.80
Department of Health,Guys and St Thomas NHS Foundation Trust,04/09/2020,(82000) Provisions & Kitchens,(id:42315) Evelina Medicine & Neonatology,NHS SUPPLY CHAIN (MAIDSTONE),id:13291359,  25.16
Department of Health,Guys and St Thomas NHS Foundation Trust,22/09/2020,(81100) Dressings,(id:42315) Evelina Medicine & Neonatology,NHS SUPPLY CHAIN (MAIDSTONE),id:13331277  , 130.80
Department of Health,Guys and St Thomas NHS Foundation Trust,25/09/2020,(83400) Office Equipment,(id:42315) Evelina Medicine & Neonatology,NHS SUPPLY CHAIN (MAIDSTONE),id:13325094,  31.46
Department of Health,Guys and St Thomas NHS Foundation Trust,25/09/2020,(81700) Lab Equipment Purchase,(id:42315) Evelina Medicine & Neonatology,NHS SUPPLY CHAIN (MAIDSTONE),id:13312947    , 114.27
Department of Health,Guys and St Thomas NHS Foundation Trust,04/09/2020,(81700) Lab Equipment Purchase,(id:42315) Evelina Medicine & Neonatology,NHS SUPPLY CHAIN (MAIDSTONE),id:13204335    ,  43.94
Department of Health,Guys and St Thomas NHS Foundation Trust,25/09/2020,(81200) Medical Surgical Supplies & Equipment,(id:42058) Evelina Medicine & Neonatology,NHS SUPPLY CHAIN (MAIDSTONE),id:13300894    ,  72.42
Department of Health,Guys and St Thomas NHS Foundation Trust,22/09/2020,(81200) Medical Surgical Supplies & Equipment,(id:42058) Evelina Medicine & Neonatology,NHS SUPPLY CHAIN (MAIDSTONE),id:13331277    ,  24.00
Department of Health,Guys and St Thomas NHS Foundation Trust,22/09/2020,(82800) Bedding & Linen,(id:42058) Evelina Medicine & Neonatology,NHS SUPPLY CHAIN (MAIDSTONE),id:13331277 ,  60.26
Department of Health,Guys and St Thomas NHS Foundation Trust,25/09/2020,(81700) Lab Equipment Purchase,(id:4082419) Evelina Surgery Theatres & PICU,NHS SUPPLY CHAIN (MAIDSTONE),id:13325094 ,  11.86
Department of Health,Guys and St Thomas NHS Foundation Trust,04/09/2020,(81275) Medical Surgical Supplies & Equipment,(id:4082419) Evelina Surgery Theatres & PICU,NHS SUPPLY CHAIN (MAIDSTONE),id:13268734 ,  14.40
Department of Health,Guys and St Thomas NHS Foundation Trust,04/09/2020,(81225) Medical Surgical Supplies & Equipment,(id:4082419) Evelina Surgery Theatres & PICU,NHS SUPPLY CHAIN (MAIDSTONE),id:13268734 ,  54.50
Department of Health,Guys and St Thomas NHS Foundation Trust,25/09/2020,(82000) Provisions & Kitchens,(id:4082419) Evelina Surgery Theatres & PICU,NHS SUPPLY CHAIN (MAIDSTONE),id:13325094  ,  38.84
Department of Health,Guys and St Thomas NHS Foundation Trust,04/09/2020,(81200) Medical Surgical Supplies & Equipment,(id:4082419) Evelina Surgery Theatres & PICU,NHS SUPPLY CHAIN (MAIDSTONE),id:13268734 ,5700.18
Department of Health,Guys and St Thomas NHS Foundation Trust,25/09/2020,(83400) Office Equipment,(id:4082419) Evelina Surgery Theatres & PICU,NHS SUPPLY CHAIN (MAIDSTONE),id:13300894  , 182.84
Department of Health,Guys and St Thomas NHS Foundation Trust,18/09/2020,(83500) Furniture & Fittings,(id:2499419) Evelina Surgery Theatres & PICU,TECHNIBLINDS LTD,id:13323602, 500.40
Department of Health,Guys and St Thomas NHS Foundation Trust,04/09/2020,(81200) Medical Surgical Supplies & Equipment,(id:42312) Evelina Surgery Theatres & PICU,MEDTRONIC LTD,id:13277789   ,2640.00
Department of Health,Guys and St Thomas NHS Foundation Trust,18/09/2020,(81200) Medical Surgical Supplies & Equipment,(id:42312) Evelina Surgery Theatres & PICU,ABBOTT MEDICAL UK LTD,id:13321052, 516.00
Department of Health,Guys and St Thomas NHS Foundation Trust,11/09/2020,(84656) Establishment,(id:42312) Evelina Surgery Theatres & PICU,DICT8 LIMITED,id:13318041  ,2323.20
Department of Health,Guys and St Thomas NHS Foundation Trust,22/09/2020,(51832) Physiotherapists,(id:42312) Evelina Surgery Theatres & PICU,PRICEWATERHOUSECOOPERS LLP,id:13337496 , 684.16
Department of Health,Guys and St Thomas NHS Foundation Trust,25/09/2020,(81235) Medical Surgical Supplies & Equipment,(id:42312) Evelina Surgery Theatres & PICU,BOSTON SCIENTIFIC LTD,id:13319385, 640.80
Department of Health,Guys and St Thomas NHS Foundation Trust,25/09/2020,(81235) Medical Surgical Supplies & Equipment,(id:42312) Evelina Surgery Theatres & PICU,NHS SUPPLY CHAIN (MAIDSTONE),id:13300894   ,2822.40
Department of Health,Guys and St Thomas NHS Foundation Trust,25/09/2020,(81235) Medical Surgical Supplies & Equipment,(id:42312) Evelina Surgery Theatres & PICU,NHS SUPPLY CHAIN (MAIDSTONE),id:13325094   ,2116.80
Department of Health,Guys and St Thomas NHS Foundation Trust,04/09/2020,(83400) Office Equipment,(id:42312) Evelina Surgery Theatres & PICU,NHS SUPPLY CHAIN (MAIDSTONE),id:13268734    ,  42.30
Department of Health,Guys and St Thomas NHS Foundation Trust,04/09/2020,(81100) Dressings,(id:42351) Evelina Surgery Theatres & PICU,NHS SUPPLY CHAIN (MAIDSTONE),id:13269121 ,    .68
Department of Health,Guys and St Thomas NHS Foundation Trust,25/09/2020,(82800) Bedding & Linen,(id:42351) Evelina Surgery Theatres & PICU,NHS SUPPLY CHAIN (MAIDSTONE),id:13312947, 140.47
Department of Health,Guys and St Thomas NHS Foundation Trust,04/09/2020,(83400) Office Equipment,(id:41914) Evelina Surgery Theatres & PICU,NHS SUPPLY CHAIN (MAIDSTONE),id:13204335    , 164.90
Department of Health,Guys and St Thomas NHS Foundation Trust,25/09/2020,(82700) Uniforms & Clothing,(id:41914) Evelina Surgery Theatres & PICU,NHS SUPPLY CHAIN (MAIDSTONE),id:13325094 ,   5.43
Department of Health,Guys and St Thomas NHS Foundation Trust,04/09/2020,(81200) Medical Surgical Supplies & Equipment,(id:41914) Evelina Surgery Theatres & PICU,NHS SUPPLY CHAIN (MAIDSTONE),id:13204335   , 968.75
Department of Health,Guys and St Thomas NHS Foundation Trust,11/09/2020,(81200) Medical Surgical Supplies & Equipment,(id:41914) Evelina Surgery Theatres & PICU,SQUADRON MEDICAL LTD,id:13283773 ,  35.99
Department of Health,Guys and St Thomas NHS Foundation Trust,25/09/2020,(50562) Qualified Nursing Staff,(id:41914) Evelina Surgery Theatres & PICU,MEDICSPRO LTD,id:13343271  ,1276.41
Department of Health,Guys and St Thomas NHS Foundation Trust,04/09/2020,(50562) Qualified Nursing Staff,(id:41914) Evelina Surgery Theatres & PICU,YOUR WORLD RECRUITMENT LIMITED(YOUR WORLD HEALTHCARE),id:13307538  ,1209.98
Department of Health,Guys and St Thomas NHS Foundation Trust,25/09/2020,(81100) Dressings,(id:41914) Evelina Surgery Theatres & PICU,NHS SUPPLY CHAIN (MAIDSTONE),id:13300894 , 155.97
Department of Health,Guys and St Thomas NHS Foundation Trust,04/09/2020,(81100) Dressings,(id:41914) Evelina Surgery Theatres & PICU,NHS SUPPLY CHAIN (MAIDSTONE),id:13291359 , 691.21
Department of Health,Guys and St Thomas NHS Foundation Trust,04/09/2020,(81100) Dressings,(id:41914) Evelina Surgery Theatres & PICU,NHS SUPPLY CHAIN (MAIDSTONE),id:13268734 , 224.41
Department of Health,Guys and St Thomas NHS Foundation Trust,11/09/2020,(50552) Qualified Nursing Staff,(id:41914) Evelina Surgery Theatres & PICU,CONTINENTAL NURSE LTD,id:13318833    ,2076.36
Department of Health,Guys and St Thomas NHS Foundation Trust,04/09/2020,(81200) Medical Surgical Supplies & Equipment,(id:41910) Evelina Surgery Theatres & PICU,NHS SUPPLY CHAIN (MAIDSTONE),id:13287744   , 994.30
Department of Health,Guys and St Thomas NHS Foundation Trust,22/09/2020,(81700) Lab Equipment Purchase,(id:41910) Evelina Surgery Theatres & PICU,NHS SUPPLY CHAIN (MAIDSTONE),id:13331277   ,   9.48
Department of Health,Guys and St Thomas NHS Foundation Trust,04/09/2020,(81200) Medical Surgical Supplies & Equipment,(id:3722419) Evelina Surgery Theatres & PICU,NHS SUPPLY CHAIN (MAIDSTONE),id:13204335 ,  50.99
Department of Health,Guys and St Thomas NHS Foundation Trust,25/09/2020,(83500) Furniture & Fittings,(id:3722419) Evelina Surgery Theatres & PICU,NHS SUPPLY CHAIN (MAIDSTONE),id:13300894   , 108.88
Department of Health,Guys and St Thomas NHS Foundation Trust,18/09/2020,(81200) Medical Surgical Supplies & Equipment,(id:1196421) Evelina Surgery Theatres & PICU,LINDSAY SURGICAL SUPPLIES LIMITED,id:13320576 ,1334.28
Department of Health,Guys and St Thomas NHS Foundation Trust,25/09/2020,(81200) Medical Surgical Supplies & Equipment,(id:431409) Evelina Surgery Theatres & PICU,NHS SUPPLY CHAIN (MAIDSTONE),id:13312947  ,   1.92
Department of Health,Guys and St Thomas NHS Foundation Trust,25/09/2020,(81200) Medical Surgical Supplies & Equipment,(id:431409) Evelina Surgery Theatres & PICU,SIGH LTD,id:13330958  ,1074.00
Department of Health,Guys and St Thomas NHS Foundation Trust,25/09/2020,(81200) Medical Surgical Supplies & Equipment,(id:431409) Evelina Surgery Theatres & PICU,SIGH LTD,id:13330954  ,1074.00
Department of Health,Guys and St Thomas NHS Foundation Trust,18/09/2020,(81000) Surgical Appliances,(id:431409) Evelina Surgery Theatres & PICU,JOHN FLORENCE LTD,id:13325726 , 893.84
Department of Health,Guys and St Thomas NHS Foundation Trust,18/09/2020,(81000) Surgical Appliances,(id:431409) Evelina Surgery Theatres & PICU,JOHN FLORENCE LTD,id:13326277 , 893.84
Department of Health,Guys and St Thomas NHS Foundation Trust,18/09/2020,(81000) Surgical Appliances,(id:431409) Evelina Surgery Theatres & PICU,JOHN FLORENCE LTD,id:13325642 ,1033.99
Department of Health,Guys and St Thomas NHS Foundation Trust,18/09/2020,(81000) Surgical Appliances,(id:431409) Evelina Surgery Theatres & PICU,JOHN FLORENCE LTD,id:13326265 , 919.28
Department of Health,Guys and St Thomas NHS Foundation Trust,25/09/2020,(81000) Surgical Appliances,(id:431409) Evelina Surgery Theatres & PICU,TALAR MADE ORTHOTICS LTD,id:13345499    ,  93.00
Department of Health,Guys and St Thomas NHS Foundation Trust,04/09/2020,(81200) Medical Surgical Supplies & Equipment,(id:468410) Evelina Surgery Theatres & PICU,NHS SUPPLY CHAIN (MAIDSTONE),id:13287744  , 378.03
Department of Health,Guys and St Thomas NHS Foundation Trust,22/09/2020,(81200) Medical Surgical Supplies & Equipment,(id:468410) Evelina Surgery Theatres & PICU,NHS SUPPLY CHAIN (MAIDSTONE),id:13331277  , 719.90
Department of Health,Guys and St Thomas NHS Foundation Trust,04/09/2020,(81200) Medical Surgical Supplies & Equipment,(id:468409) Evelina Surgery Theatres & PICU,NHS SUPPLY CHAIN (MAIDSTONE),id:13287744  ,1928.50
Department of Health,Guys and St Thomas NHS Foundation Trust,04/09/2020,(81200) Medical Surgical Supplies & Equipment,(id:468409) Evelina Surgery Theatres & PICU,STRYKER UK LTD,id:13294174 ,1523.52
Department of Health,Guys and St Thomas NHS Foundation Trust,11/09/2020,(81200) Medical Surgical Supplies & Equipment,(id:468409) Evelina Surgery Theatres & PICU,KARL STORZ ENDOSCOPY UK LTD,id:13316606   ,1250.00
Department of Health,Guys and St Thomas NHS Foundation Trust,04/09/2020,(82800) Bedding & Linen,(id:468409) Evelina Surgery Theatres & PICU,NHS SUPPLY CHAIN (MAIDSTONE),id:13268734    , 139.78
Department of Health,Guys and St Thomas NHS Foundation Trust,04/09/2020,(83500) Furniture & Fittings,(id:468409) Evelina Surgery Theatres & PICU,NHS SUPPLY CHAIN (MAIDSTONE),id:13287744    , 189.40
Department of Health,Guys and St Thomas NHS Foundation Trust,04/09/2020,(81550) X Ray Equipment Purchase,(id:468409) Evelina Surgery Theatres & PICU,NHS SUPPLY CHAIN (MAIDSTONE),id:13268734, 116.40
Department of Health,Guys and St Thomas NHS Foundation Trust,11/09/2020,(81230) Medical Surgical Supplies & Equipment,(id:42347) Evelina Surgery Theatres & PICU,COOK UK LTD,id:13297560, 528.00
Department of Health,Guys and St Thomas NHS Foundation Trust,11/09/2020,(81200) Medical Surgical Supplies & Equipment,(id:42347) Evelina Surgery Theatres & PICU,LINDSAY SURGICAL SUPPLIES LIMITED,id:13309581   ,1982.70
Department of Health,Guys and St Thomas NHS Foundation Trust,18/09/2020,(83400) Office Equipment,(id:42344) Evelina Surgery Theatres & PICU,HUGH SYMONS INFO MANAGEMENT LTD,id:13324211 ,2160.00
Department of Health,Guys and St Thomas NHS Foundation Trust,22/09/2020,(81200) Medical Surgical Supplies & Equipment,(id:42344) Evelina Surgery Theatres & PICU,NHS SUPPLY CHAIN (MAIDSTONE),id:13331277   ,1004.04
Department of Health,Guys and St Thomas NHS Foundation Trust,04/09/2020,(82700) Uniforms & Clothing,(id:42339) Evelina Surgery Theatres & PICU,NHS SUPPLY CHAIN (MAIDSTONE),id:13204335 ,  33.36
Department of Health,Guys and St Thomas NHS Foundation Trust,04/09/2020,(82700) Uniforms & Clothing,(id:42339) Evelina Surgery Theatres & PICU,NHS SUPPLY CHAIN (MAIDSTONE),id:13287744 , 125.12
Department of Health,Guys and St Thomas NHS Foundation Trust,25/09/2020,(82000) Provisions & Kitchens,(id:42339) Evelina Surgery Theatres & PICU,NHS SUPPLY CHAIN (MAIDSTONE),id:13325094    , 128.04
Department of Health,Guys and St Thomas NHS Foundation Trust,25/09/2020,(82800) Bedding & Linen,(id:42339) Evelina Surgery Theatres & PICU,NHS SUPPLY CHAIN (MAIDSTONE),id:13300894, 151.76
Department of Health,Guys and St Thomas NHS Foundation Trust,04/09/2020,(81255) Medical Surgical Supplies & Equipment,(id:42339) Evelina Surgery Theatres & PICU,NHS SUPPLY CHAIN (MAIDSTONE),id:13291359   ,  24.34
Department of Health,Guys and St Thomas NHS Foundation Trust,25/09/2020,(81255) Medical Surgical Supplies & Equipment,(id:42339) Evelina Surgery Theatres & PICU,NHS SUPPLY CHAIN (MAIDSTONE),id:13300894   ,   5.28
Department of Health,Guys and St Thomas NHS Foundation Trust,04/09/2020,(81100) Dressings,(id:42339) Evelina Surgery Theatres & PICU,NHS SUPPLY CHAIN (MAIDSTONE),id:13268734 , 437.81
Department of Health,Guys and St Thomas NHS Foundation Trust,04/09/2020,(81200) Medical Surgical Supplies & Equipment,(id:42339) Evelina Surgery Theatres & PICU,EDWARDS LIFESCIENCES LTD,id:13305927  , 596.64
Department of Health,Guys and St Thomas NHS Foundation Trust,04/09/2020,(81200) Medical Surgical Supplies & Equipment,(id:42339) Evelina Surgery Theatres & PICU,NHS SUPPLY CHAIN (MAIDSTONE),id:13269121   ,3080.64
Department of Health,Guys and St Thomas NHS Foundation Trust,25/09/2020,(81200) Medical Surgical Supplies & Equipment,(id:42339) Evelina Surgery Theatres & PICU,NHS SUPPLY CHAIN (MAIDSTONE),id:13312947   ,3493.91
Department of Health,Guys and St Thomas NHS Foundation Trust,25/09/2020,(80150) Drug Costs,(id:42339) Evelina Surgery Theatres & PICU,NHS SUPPLY CHAIN (MAIDSTONE),id:13312947,1176.00
Department of Health,Guys and St Thomas NHS Foundation Trust,04/09/2020,(81225) Medical Surgical Supplies & Equipment,(id:42339) Evelina Surgery Theatres & PICU,NHS SUPPLY CHAIN (MAIDSTONE),id:13291359   ,  36.84
Department of Health,Guys and St Thomas NHS Foundation Trust,04/09/2020,(81700) Lab Equipment Purchase,(id:42339) Evelina Surgery Theatres & PICU,NHS SUPPLY CHAIN (MAIDSTONE),id:13268734   ,  48.20
Department of Health,Guys and St Thomas NHS Foundation Trust,04/09/2020,(82000) Provisions & Kitchens,(id:41958) Gastrointestinal Medicine & Surgery,NHS SUPPLY CHAIN (MAIDSTONE),id:13291359, 272.25
Department of Health,Guys and St Thomas NHS Foundation Trust,25/09/2020,(82000) Provisions & Kitchens,(id:41958) Gastrointestinal Medicine & Surgery,NHS SUPPLY CHAIN (MAIDSTONE),id:13300894, 101.60
Department of Health,Guys and St Thomas NHS Foundation Trust,25/09/2020,(83400) Office Equipment,(id:41958) Gastrointestinal Medicine & Surgery,NHS SUPPLY CHAIN (MAIDSTONE),id:13325094,  60.98
Department of Health,Guys and St Thomas NHS Foundation Trust,04/09/2020,(82800) Bedding & Linen,(id:41958) Gastrointestinal Medicine & Surgery,NHS SUPPLY CHAIN (MAIDSTONE),id:13287744 , 218.52
Department of Health,Guys and St Thomas NHS Foundation Trust,04/09/2020,(81200) Medical Surgical Supplies & Equipment,(id:41958) Gastrointestinal Medicine & Surgery,NHS SUPPLY CHAIN (MAIDSTONE),id:13268734    , 579.12
Department of Health,Guys and St Thomas NHS Foundation Trust,04/09/2020,(81100) Dressings,(id:41958) Gastrointestinal Medicine & Surgery,NHS SUPPLY CHAIN (MAIDSTONE),id:13268734  , 360.47
Department of Health,Guys and St Thomas NHS Foundation Trust,04/09/2020,(81225) Medical Surgical Supplies & Equipment,(id:41958) Gastrointestinal Medicine & Surgery,NHS SUPPLY CHAIN (MAIDSTONE),id:13291359    ,  19.40
Department of Health,Guys and St Thomas NHS Foundation Trust,04/09/2020,(81275) Medical Surgical Supplies & Equipment,(id:41958) Gastrointestinal Medicine & Surgery,NHS SUPPLY CHAIN (MAIDSTONE),id:13204335    ,  12.74
Department of Health,Guys and St Thomas NHS Foundation Trust,11/09/2020,(81000) Surgical Appliances,(id:41955) Gastrointestinal Medicine & Surgery,TALAR MADE ORTHOTICS LTD,id:13315041 ,  29.40
Department of Health,Guys and St Thomas NHS Foundation Trust,04/09/2020,(82700) Uniforms & Clothing,(id:41954) Gastrointestinal Medicine & Surgery,NHS SUPPLY CHAIN (MAIDSTONE),id:13268734  ,  31.68
Department of Health,Guys and St Thomas NHS Foundation Trust,25/09/2020,(83400) Office Equipment,(id:41954) Gastrointestinal Medicine & Surgery,NHS SUPPLY CHAIN (MAIDSTONE),id:13312947,  22.32
Department of Health,Guys and St Thomas NHS Foundation Trust,25/09/2020,(82800) Bedding & Linen,(id:41954) Gastrointestinal Medicine & Surgery,NHS SUPPLY CHAIN (MAIDSTONE),id:13300894 , 239.83
Department of Health,Guys and St Thomas NHS Foundation Trust,25/09/2020,(82800) Bedding & Linen,(id:41954) Gastrointestinal Medicine & Surgery,NHS SUPPLY CHAIN (MAIDSTONE),id:13325094 , 183.67
Department of Health,Guys and St Thomas NHS Foundation Trust,22/09/2020,(82800) Bedding & Linen,(id:41954) Gastrointestinal Medicine & Surgery,NHS SUPPLY CHAIN (MAIDSTONE),id:13331277 , 261.88
Department of Health,Guys and St Thomas NHS Foundation Trust,04/09/2020,(82800) Bedding & Linen,(id:41954) Gastrointestinal Medicine & Surgery,NHS SUPPLY CHAIN (MAIDSTONE),id:13287744 , 183.67
Department of Health,Guys and St Thomas NHS Foundation Trust,04/09/2020,(82800) Bedding & Linen,(id:41954) Gastrointestinal Medicine & Surgery,NHS SUPPLY CHAIN (MAIDSTONE),id:13268734 ,  93.65
Department of Health,Guys and St Thomas NHS Foundation Trust,22/09/2020,(81200) Medical Surgical Supplies & Equipment,(id:41954) Gastrointestinal Medicine & Surgery,NHS SUPPLY CHAIN (MAIDSTONE),id:13331277    ,1071.20
Department of Health,Guys and St Thomas NHS Foundation Trust,25/09/2020,(81200) Medical Surgical Supplies & Equipment,(id:41954) Gastrointestinal Medicine & Surgery,NHS SUPPLY CHAIN (MAIDSTONE),id:13312947    , 380.18
Department of Health,Guys and St Thomas NHS Foundation Trust,04/09/2020,(81100) Dressings,(id:41954) Gastrointestinal Medicine & Surgery,NHS SUPPLY CHAIN (MAIDSTONE),id:13268734  , 377.04
Department of Health,Guys and St Thomas NHS Foundation Trust,04/09/2020,(81100) Dressings,(id:41954) Gastrointestinal Medicine & Surgery,NHS SUPPLY CHAIN (MAIDSTONE),id:13287744  , 433.86
Department of Health,Guys and St Thomas NHS Foundation Trust,22/09/2020,(81100) Dressings,(id:41954) Gastrointestinal Medicine & Surgery,NHS SUPPLY CHAIN (MAIDSTONE),id:13331277  , 410.63
Department of Health,Guys and St Thomas NHS Foundation Trust,22/09/2020,(81255) Medical Surgical Supplies & Equipment,(id:41954) Gastrointestinal Medicine & Surgery,NHS SUPPLY CHAIN (MAIDSTONE),id:13331277    ,   4.06
Department of Health,Guys and St Thomas NHS Foundation Trust,25/09/2020,(81255) Medical Surgical Supplies & Equipment,(id:41954) Gastrointestinal Medicine & Surgery,NHS SUPPLY CHAIN (MAIDSTONE),id:13300894    ,   2.18
Department of Health,Guys and St Thomas NHS Foundation Trust,25/09/2020,(81255) Medical Surgical Supplies & Equipment,(id:41954) Gastrointestinal Medicine & Surgery,NHS SUPPLY CHAIN (MAIDSTONE),id:13325094    ,    .62
Department of Health,Guys and St Thomas NHS Foundation Trust,04/09/2020,(81700) Lab Equipment Purchase,(id:41954) Gastrointestinal Medicine & Surgery,NHS SUPPLY CHAIN (MAIDSTONE),id:13287744    ,  48.83
Department of Health,Guys and St Thomas NHS Foundation Trust,04/09/2020,(81100) Dressings,(id:41951) Gastrointestinal Medicine & Surgery,NHS SUPPLY CHAIN (MAIDSTONE),id:13287744  ,   1.50
Department of Health,Guys and St Thomas NHS Foundation Trust,25/09/2020,(81200) Medical Surgical Supplies & Equipment,(id:41949) Gastrointestinal Medicine & Surgery,SQUADRON MEDICAL LTD,id:13344557  ,  34.84
Department of Health,Guys and St Thomas NHS Foundation Trust,25/09/2020,(81200) Medical Surgical Supplies & Equipment,(id:41949) Gastrointestinal Medicine & Surgery,SQUADRON MEDICAL LTD,id:13322074  ,2792.15
Department of Health,Guys and St Thomas NHS Foundation Trust,11/09/2020,(81200) Medical Surgical Supplies & Equipment,(id:41949) Gastrointestinal Medicine & Surgery,SQUADRON MEDICAL LTD,id:13302826  , 267.14
Department of Health,Guys and St Thomas NHS Foundation Trust,11/09/2020,(81200) Medical Surgical Supplies & Equipment,(id:41949) Gastrointestinal Medicine & Surgery,SQUADRON MEDICAL LTD,id:13299650  , 637.39
Department of Health,Guys and St Thomas NHS Foundation Trust,11/09/2020,(81200) Medical Surgical Supplies & Equipment,(id:41949) Gastrointestinal Medicine & Surgery,SQUADRON MEDICAL LTD,id:13299578  , 887.71
Department of Health,Guys and St Thomas NHS Foundation Trust,11/09/2020,(81200) Medical Surgical Supplies & Equipment,(id:41949) Gastrointestinal Medicine & Surgery,COOK UK LTD,id:13278111 ,1900.80
Department of Health,Guys and St Thomas NHS Foundation Trust,22/09/2020,(81200) Medical Surgical Supplies & Equipment,(id:41949) Gastrointestinal Medicine & Surgery,NHS SUPPLY CHAIN (MAIDSTONE),id:13331277    , 463.75
Department of Health,Guys and St Thomas NHS Foundation Trust,04/09/2020,(81200) Medical Surgical Supplies & Equipment,(id:41949) Gastrointestinal Medicine & Surgery,SQUADRON MEDICAL LTD,id:13283710  , 374.70
Department of Health,Guys and St Thomas NHS Foundation Trust,04/09/2020,(81200) Medical Surgical Supplies & Equipment,(id:41949) Gastrointestinal Medicine & Surgery,NHS SUPPLY CHAIN (MAIDSTONE),id:13269121    ,1826.69
Department of Health,Guys and St Thomas NHS Foundation Trust,04/09/2020,(81200) Medical Surgical Supplies & Equipment,(id:41949) Gastrointestinal Medicine & Surgery,NHS SUPPLY CHAIN (MAIDSTONE),id:13291359    , 453.83
Department of Health,Guys and St Thomas NHS Foundation Trust,04/09/2020,(81200) Medical Surgical Supplies & Equipment,(id:41949) Gastrointestinal Medicine & Surgery,SQUADRON MEDICAL LTD,id:13289162  , 658.14
Department of Health,Guys and St Thomas NHS Foundation Trust,18/09/2020,(81200) Medical Surgical Supplies & Equipment,(id:41949) Gastrointestinal Medicine & Surgery,SQUADRON MEDICAL LTD,id:13315239  , 567.04
Department of Health,Guys and St Thomas NHS Foundation Trust,04/09/2020,(81200) Medical Surgical Supplies & Equipment,(id:41949) Gastrointestinal Medicine & Surgery,MEDTRONIC LTD,id:13283500    ,1224.00
Department of Health,Guys and St Thomas NHS Foundation Trust,04/09/2020,(81700) Lab Equipment Purchase,(id:2367419) Gastrointestinal Medicine & Surgery,NHS SUPPLY CHAIN (MAIDSTONE),id:13291359  ,  33.13
Department of Health,Guys and St Thomas NHS Foundation Trust,04/09/2020,(82700) Uniforms & Clothing,(id:2367419) Gastrointestinal Medicine & Surgery,NHS SUPPLY CHAIN (MAIDSTONE),id:13287744,  52.97
Department of Health,Guys and St Thomas NHS Foundation Trust,25/09/2020,(82800) Bedding & Linen,(id:2367419) Gastrointestinal Medicine & Surgery,NHS SUPPLY CHAIN (MAIDSTONE),id:13312947    ,  37.29
Department of Health,Guys and St Thomas NHS Foundation Trust,04/09/2020,(81200) Medical Surgical Supplies & Equipment,(id:2367419) Gastrointestinal Medicine & Surgery,NHS SUPPLY CHAIN (MAIDSTONE),id:13291359  , 640.85
Department of Health,Guys and St Thomas NHS Foundation Trust,25/09/2020,(81200) Medical Surgical Supplies & Equipment,(id:2367419) Gastrointestinal Medicine & Surgery,NHS SUPPLY CHAIN (MAIDSTONE),id:13312947  , 329.08
Department of Health,Guys and St Thomas NHS Foundation Trust,25/09/2020,(81275) Medical Surgical Supplies & Equipment,(id:2367419) Gastrointestinal Medicine & Surgery,NHS SUPPLY CHAIN (MAIDSTONE),id:13325094  ,  12.74
Department of Health,Guys and St Thomas NHS Foundation Trust,25/09/2020,(83400) Office Equipment,(id:2367419) Gastrointestinal Medicine & Surgery,NHS SUPPLY CHAIN (MAIDSTONE),id:13312947   ,   5.40
Department of Health,Guys and St Thomas NHS Foundation Trust,04/09/2020,(81100) Dressings,(id:2367419) Gastrointestinal Medicine & Surgery,NHS SUPPLY CHAIN (MAIDSTONE),id:13268734, 180.56
Department of Health,Guys and St Thomas NHS Foundation Trust,04/09/2020,(81225) Medical Surgical Supplies & Equipment,(id:2367419) Gastrointestinal Medicine & Surgery,NHS SUPPLY CHAIN (MAIDSTONE),id:13204335  ,   9.00
Department of Health,Guys and St Thomas NHS Foundation Trust,22/09/2020,(81225) Medical Surgical Supplies & Equipment,(id:2367419) Gastrointestinal Medicine & Surgery,NHS SUPPLY CHAIN (MAIDSTONE),id:13331277  ,   9.00
Department of Health,Guys and St Thomas NHS Foundation Trust,25/09/2020,(81400) Medical Surgical Supplies & Equipment,(id:41957) Gastrointestinal Medicine & Surgery,NHS SUPPLY CHAIN (MAIDSTONE),id:13300894    , 402.68
Department of Health,Guys and St Thomas NHS Foundation Trust,25/09/2020,(81400) Medical Surgical Supplies & Equipment,(id:41957) Gastrointestinal Medicine & Surgery,NHS SUPPLY CHAIN (MAIDSTONE),id:13325094    , 294.28
Department of Health,Guys and St Thomas NHS Foundation Trust,04/09/2020,(82800) Bedding & Linen,(id:41942) Gastrointestinal Medicine & Surgery,NHS SUPPLY CHAIN (MAIDSTONE),id:13268734 ,  46.82
Department of Health,Guys and St Thomas NHS Foundation Trust,25/09/2020,(81200) Medical Surgical Supplies & Equipment,(id:41942) Gastrointestinal Medicine & Surgery,NHS SUPPLY CHAIN (MAIDSTONE),id:13300894    ,1419.96
Department of Health,Guys and St Thomas NHS Foundation Trust,04/09/2020,(83400) Office Equipment,(id:41942) Gastrointestinal Medicine & Surgery,NHS SUPPLY CHAIN (MAIDSTONE),id:13291359, 154.37
Department of Health,Guys and St Thomas NHS Foundation Trust,04/09/2020,(81275) Medical Surgical Supplies & Equipment,(id:41942) Gastrointestinal Medicine & Surgery,NHS SUPPLY CHAIN (MAIDSTONE),id:13268734    ,  44.94
Department of Health,Guys and St Thomas NHS Foundation Trust,04/09/2020,(81100) Dressings,(id:41942) Gastrointestinal Medicine & Surgery,NHS SUPPLY CHAIN (MAIDSTONE),id:13291359  ,  42.84
Department of Health,Guys and St Thomas NHS Foundation Trust,04/09/2020,(82000) Provisions & Kitchens,(id:41917) Gastrointestinal Medicine & Surgery,NHS SUPPLY CHAIN (MAIDSTONE),id:13268734,  31.20
Department of Health,Guys and St Thomas NHS Foundation Trust,25/09/2020,(83400) Office Equipment,(id:41917) Gastrointestinal Medicine & Surgery,NHS SUPPLY CHAIN (MAIDSTONE),id:13312947,  89.23
Department of Health,Guys and St Thomas NHS Foundation Trust,25/09/2020,(83400) Office Equipment,(id:41917) Gastrointestinal Medicine & Surgery,NHS SUPPLY CHAIN (MAIDSTONE),id:13325094, 165.48
Department of Health,Guys and St Thomas NHS Foundation Trust,25/09/2020,(82800) Bedding & Linen,(id:41917) Gastrointestinal Medicine & Surgery,NHS SUPPLY CHAIN (MAIDSTONE),id:13325094 , 444.71
Department of Health,Guys and St Thomas NHS Foundation Trust,25/09/2020,(82800) Bedding & Linen,(id:41917) Gastrointestinal Medicine & Surgery,NHS SUPPLY CHAIN (MAIDSTONE),id:13312947 , 202.17
Department of Health,Guys and St Thomas NHS Foundation Trust,04/09/2020,(82800) Bedding & Linen,(id:41917) Gastrointestinal Medicine & Surgery,NHS SUPPLY CHAIN (MAIDSTONE),id:13269121 , 135.07
Department of Health,Guys and St Thomas NHS Foundation Trust,25/09/2020,(82700) Uniforms & Clothing,(id:41917) Gastrointestinal Medicine & Surgery,NHS SUPPLY CHAIN (MAIDSTONE),id:13325094  , 529.68
Department of Health,Guys and St Thomas NHS Foundation Trust,04/09/2020,(81235) Medical Surgical Supplies & Equipment,(id:41917) Gastrointestinal Medicine & Surgery,BOSTON SCIENTIFIC LTD,id:13287277 ,3680.01
Department of Health,Guys and St Thomas NHS Foundation Trust,25/09/2020,(81200) Medical Surgical Supplies & Equipment,(id:41917) Gastrointestinal Medicine & Surgery,NHS SUPPLY CHAIN (MAIDSTONE),id:13325094    ,4117.93
Department of Health,Guys and St Thomas NHS Foundation Trust,25/09/2020,(81200) Medical Surgical Supplies & Equipment,(id:41917) Gastrointestinal Medicine & Surgery,NHS SUPPLY CHAIN (MAIDSTONE),id:13312947    ,3670.83
Department of Health,Guys and St Thomas NHS Foundation Trust,25/09/2020,(81200) Medical Surgical Supplies & Equipment,(id:41917) Gastrointestinal Medicine & Surgery,BOSTON SCIENTIFIC LTD,id:13327740 ,1124.52
Department of Health,Guys and St Thomas NHS Foundation Trust,25/09/2020,(81200) Medical Surgical Supplies & Equipment,(id:41917) Gastrointestinal Medicine & Surgery,BOSTON SCIENTIFIC LTD,id:13327737 ,2437.82
Department of Health,Guys and St Thomas NHS Foundation Trust,18/09/2020,(81200) Medical Surgical Supplies & Equipment,(id:41917) Gastrointestinal Medicine & Surgery,COOK UK LTD,id:13315891 ,1700.40
Department of Health,Guys and St Thomas NHS Foundation Trust,18/09/2020,(81200) Medical Surgical Supplies & Equipment,(id:41917) Gastrointestinal Medicine & Surgery,BOSTON SCIENTIFIC LTD,id:13323595 ,    -3060.00
Department of Health,Guys and St Thomas NHS Foundation Trust,04/09/2020,(81200) Medical Surgical Supplies & Equipment,(id:41917) Gastrointestinal Medicine & Surgery,NHS SUPPLY CHAIN (MAIDSTONE),id:13291359    ,3152.15
Department of Health,Guys and St Thomas NHS Foundation Trust,11/09/2020,(81200) Medical Surgical Supplies & Equipment,(id:41917) Gastrointestinal Medicine & Surgery,ERBE MEDICAL UK LTD,id:13310641   ,1575.26
Department of Health,Guys and St Thomas NHS Foundation Trust,11/09/2020,(81200) Medical Surgical Supplies & Equipment,(id:41917) Gastrointestinal Medicine & Surgery,OLYMPUS KEYMED,id:13315029   ,1374.00
Department of Health,Guys and St Thomas NHS Foundation Trust,25/09/2020,(81700) Lab Equipment Purchase,(id:41917) Gastrointestinal Medicine & Surgery,NHS SUPPLY CHAIN (MAIDSTONE),id:13300894    ,   9.86
Department of Health,Guys and St Thomas NHS Foundation Trust,04/09/2020,(81700) Lab Equipment Purchase,(id:41917) Gastrointestinal Medicine & Surgery,NHS SUPPLY CHAIN (MAIDSTONE),id:13204335    , 162.80
Department of Health,Guys and St Thomas NHS Foundation Trust,11/09/2020,(50552) Qualified Nursing Staff,(id:41917) Gastrointestinal Medicine & Surgery,SIRONA MEDICAL LIMITED,id:13319023    , 435.04
Department of Health,Guys and St Thomas NHS Foundation Trust,25/09/2020,(86300) Healthcare from non-NHS bodies,(id:2534420) Gastrointestinal Medicine & Surgery,18 WEEK SUPPORT LIMITED,id:13341265    ,    23800.00
Department of Health,Guys and St Thomas NHS Foundation Trust,11/09/2020,(89640) Non-Healthcare from NHS Trusts,(id:3363419) Cancer Strategy,DARTFORD AND GRAVESHAM NHS TRUST,id:10886612, 637.84
Department of Health,Guys and St Thomas NHS Foundation Trust,11/09/2020,(89640) Non-Healthcare from NHS Trusts,(id:3363419) Cancer Strategy,DARTFORD AND GRAVESHAM NHS TRUST,id:10654731,1385.41
Department of Health,Guys and St Thomas NHS Foundation Trust,11/09/2020,(89640) Non-Healthcare from NHS Trusts,(id:3363419) Cancer Strategy,DARTFORD AND GRAVESHAM NHS TRUST,id:12975954,    10017.49
Department of Health,Guys and St Thomas NHS Foundation Trust,25/09/2020,(81200) Medical Surgical Supplies & Equipment,(id:1127419) Cardiovascular Services,NHS SUPPLY CHAIN (MAIDSTONE),id:13312947    , 106.85
Department of Health,Guys and St Thomas NHS Foundation Trust,22/09/2020,(81100) Dressings,(id:1127419) Cardiovascular Services,NHS SUPPLY CHAIN (MAIDSTONE),id:13331277  , 823.20
Department of Health,Guys and St Thomas NHS Foundation Trust,04/09/2020,(83500) Furniture & Fittings,(id:780420) Cardiovascular Services,NHS SUPPLY CHAIN (MAIDSTONE),id:13204335  , 169.20
Department of Health,Guys and St Thomas NHS Foundation Trust,25/09/2020,(50522) Unqualified Nursing Staff,(id:780420) Cardiovascular Services,MSI GROUP LTD,id:13343489  , 208.27
Department of Health,Guys and St Thomas NHS Foundation Trust,11/09/2020,(81250) Medical Surgical Supplies & Equipment,(id:639421) Cardiovascular Services,COOK UK LTD,id:13287569  ,    21600.00
Department of Health,Guys and St Thomas NHS Foundation Trust,11/09/2020,(81250) Medical Surgical Supplies & Equipment,(id:639421) Cardiovascular Services,CRYOLIFE EUROPA LTD,id:13316014    ,4020.00
Department of Health,Guys and St Thomas NHS Foundation Trust,04/09/2020,(81200) Medical Surgical Supplies & Equipment,(id:639421) Cardiovascular Services,COOK UK LTD,id:13286114  ,3960.00
Department of Health,Guys and St Thomas NHS Foundation Trust,11/09/2020,(81200) Medical Surgical Supplies & Equipment,(id:639421) Cardiovascular Services,BENTLEY INNOMED GMBH,id:13314775   ,1020.00
Department of Health,Guys and St Thomas NHS Foundation Trust,25/09/2020,(81400) Medical Surgical Supplies & Equipment,(id:639421) Cardiovascular Services,EVERYTHING X-RAY LTD,id:13007437   , 525.00
Department of Health,Guys and St Thomas NHS Foundation Trust,25/09/2020,(81235) Medical Surgical Supplies & Equipment,(id:639421) Cardiovascular Services,BOSTON SCIENTIFIC LTD,id:13326634  , 642.00
Department of Health,Guys and St Thomas NHS Foundation Trust,04/09/2020,(81235) Medical Surgical Supplies & Equipment,(id:639421) Cardiovascular Services,BOSTON SCIENTIFIC LTD,id:13283495  ,  84.00
Department of Health,Guys and St Thomas NHS Foundation Trust,25/09/2020,(82000) Provisions & Kitchens,(id:41953) Cardiovascular Services,NHS SUPPLY CHAIN (MAIDSTONE),id:13300894  ,  72.99
Department of Health,Guys and St Thomas NHS Foundation Trust,25/09/2020,(82000) Provisions & Kitchens,(id:41953) Cardiovascular Services,NHS SUPPLY CHAIN (MAIDSTONE),id:13312947  ,  61.05
Department of Health,Guys and St Thomas NHS Foundation Trust,04/09/2020,(83400) Office Equipment,(id:41953) Cardiovascular Services,NHS SUPPLY CHAIN (MAIDSTONE),id:13268734  ,  32.12
Department of Health,Guys and St Thomas NHS Foundation Trust,04/09/2020,(81200) Medical Surgical Supplies & Equipment,(id:41953) Cardiovascular Services,NHS SUPPLY CHAIN (MAIDSTONE),id:13287744 ,  64.40
Department of Health,Guys and St Thomas NHS Foundation Trust,25/09/2020,(81100) Dressings,(id:41953) Cardiovascular Services,NHS SUPPLY CHAIN (MAIDSTONE),id:13300894    , 346.11
Department of Health,Guys and St Thomas NHS Foundation Trust,25/09/2020,(81100) Dressings,(id:41953) Cardiovascular Services,NHS SUPPLY CHAIN (MAIDSTONE),id:13325094    ,  79.00
Department of Health,Guys and St Thomas NHS Foundation Trust,25/09/2020,(81225) Medical Surgical Supplies & Equipment,(id:41953) Cardiovascular Services,NHS SUPPLY CHAIN (MAIDSTONE),id:13325094 ,  24.24
Department of Health,Guys and St Thomas NHS Foundation Trust,04/09/2020,(82000) Provisions & Kitchens,(id:41952) Cardiovascular Services,NHS SUPPLY CHAIN (MAIDSTONE),id:13287744  ,  78.02
Department of Health,Guys and St Thomas NHS Foundation Trust,25/09/2020,(81700) Lab Equipment Purchase,(id:41952) Cardiovascular Services,NHS SUPPLY CHAIN (MAIDSTONE),id:13325094 ,   3.62
Department of Health,Guys and St Thomas NHS Foundation Trust,04/09/2020,(81400) Medical Surgical Supplies & Equipment,(id:41952) Cardiovascular Services,NHS SUPPLY CHAIN (MAIDSTONE),id:13291359 , 209.55
Department of Health,Guys and St Thomas NHS Foundation Trust,25/09/2020,(81100) Dressings,(id:41952) Cardiovascular Services,NHS SUPPLY CHAIN (MAIDSTONE),id:13325094    , 399.91
Department of Health,Guys and St Thomas NHS Foundation Trust,04/09/2020,(81100) Dressings,(id:41952) Cardiovascular Services,NHS SUPPLY CHAIN (MAIDSTONE),id:13287744    , 295.67
Department of Health,Guys and St Thomas NHS Foundation Trust,04/09/2020,(83400) Office Equipment,(id:41952) Cardiovascular Services,NHS SUPPLY CHAIN (MAIDSTONE),id:13204335  ,  62.11
Department of Health,Guys and St Thomas NHS Foundation Trust,04/09/2020,(83400) Office Equipment,(id:41952) Cardiovascular Services,NHS SUPPLY CHAIN (MAIDSTONE),id:13287744  ,  18.79
Department of Health,Guys and St Thomas NHS Foundation Trust,25/09/2020,(83400) Office Equipment,(id:41952) Cardiovascular Services,NHS SUPPLY CHAIN (MAIDSTONE),id:13312947  ,  38.46
Department of Health,Guys and St Thomas NHS Foundation Trust,11/09/2020,(81230) Medical Surgical Supplies & Equipment,(id:41950) Cardiovascular Services,COOK UK LTD,id:13268647   , 260.00
Department of Health,Guys and St Thomas NHS Foundation Trust,11/09/2020,(81235) Medical Surgical Supplies & Equipment,(id:41950) Cardiovascular Services,BARD LTD,id:13303086 ,1074.98
Department of Health,Guys and St Thomas NHS Foundation Trust,04/09/2020,(83400) Office Equipment,(id:41950) Cardiovascular Services,NHS SUPPLY CHAIN (MAIDSTONE),id:13287744  ,  10.14
Department of Health,Guys and St Thomas NHS Foundation Trust,04/09/2020,(81000) Surgical Appliances,(id:41950) Cardiovascular Services,MEDI UK LTD,id:13299954 , 658.12
Department of Health,Guys and St Thomas NHS Foundation Trust,18/09/2020,(81000) Surgical Appliances,(id:41950) Cardiovascular Services,MEDI UK LTD,id:13321039 , 201.17
Department of Health,Guys and St Thomas NHS Foundation Trust,04/09/2020,(81225) Medical Surgical Supplies & Equipment,(id:41950) Cardiovascular Services,NHS SUPPLY CHAIN (MAIDSTONE),id:13204335 ,  38.78
Department of Health,Guys and St Thomas NHS Foundation Trust,04/09/2020,(81100) Dressings,(id:41948) Cardiovascular Services,NHS SUPPLY CHAIN (MAIDSTONE),id:13268734    , 557.18
Department of Health,Guys and St Thomas NHS Foundation Trust,25/09/2020,(81200) Medical Surgical Supplies & Equipment,(id:41948) Cardiovascular Services,NHS SUPPLY CHAIN (MAIDSTONE),id:13312947 , 504.06
Department of Health,Guys and St Thomas NHS Foundation Trust,04/09/2020,(82800) Bedding & Linen,(id:42305) Cardiovascular Services,NHS SUPPLY CHAIN (MAIDSTONE),id:13204335   ,  60.26
Department of Health,Guys and St Thomas NHS Foundation Trust,29/09/2020,(54072) Technical Officers,(id:1243420) Cardiovascular Services,PRICEWATERHOUSECOOPERS LLP,id:13351193,3507.88
Department of Health,Guys and St Thomas NHS Foundation Trust,04/09/2020,(82800) Bedding & Linen,(id:1243420) Cardiovascular Services,NHS SUPPLY CHAIN (MAIDSTONE),id:13204335 ,  80.35
Department of Health,Guys and St Thomas NHS Foundation Trust,04/09/2020,(50200) Consultants,(id:42304) Cardiovascular Services,KINGSTON HOSPITAL NHS FOUNDATION TRUST,id:13297272  ,1162.30
Department of Health,Guys and St Thomas NHS Foundation Trust,04/09/2020,(50200) Consultants,(id:42304) Cardiovascular Services,KING'S COLLEGE HOSPITAL NHS FOUNDATION TRUST,id:13297596 ,2803.00
Department of Health,Guys and St Thomas NHS Foundation Trust,11/09/2020,(89000) Other - Training courses and conferences,(id:42303) Cardiovascular Services,INTERNATIONAL BOARD OF HEART RHYTHM EXAMINERS IBHRE,id:13319235, 869.53
Department of Health,Guys and St Thomas NHS Foundation Trust,15/09/2020,(51842) Physiotherapists,(id:42303) Cardiovascular Services,PRICEWATERHOUSECOOPERS LLP,id:13325204    , 713.64
Department of Health,Guys and St Thomas NHS Foundation Trust,04/09/2020,(82000) Provisions & Kitchens,(id:42302) Cardiovascular Services,NHS SUPPLY CHAIN (MAIDSTONE),id:13269121  ,   9.22
Department of Health,Guys and St Thomas NHS Foundation Trust,04/09/2020,(83400) Office Equipment,(id:42302) Cardiovascular Services,NHS SUPPLY CHAIN (MAIDSTONE),id:13291359  ,  18.43
Department of Health,Guys and St Thomas NHS Foundation Trust,18/09/2020,(83400) Office Equipment,(id:42302) Cardiovascular Services,EDWARDS LIFESCIENCES LTD,id:13229515 ,   102120.00
Department of Health,Guys and St Thomas NHS Foundation Trust,18/09/2020,(83400) Office Equipment,(id:42302) Cardiovascular Services,EDWARDS LIFESCIENCES LTD,id:13316875 ,   -25530.00
Department of Health,Guys and St Thomas NHS Foundation Trust,18/09/2020,(81200) Medical Surgical Supplies & Equipment,(id:42302) Cardiovascular Services,SQUADRON MEDICAL LTD,id:13317125    , 823.68
Department of Health,Guys and St Thomas NHS Foundation Trust,25/09/2020,(81200) Medical Surgical Supplies & Equipment,(id:42302) Cardiovascular Services,BRACCO UK LTD,id:13340198 , 720.00
Department of Health,Guys and St Thomas NHS Foundation Trust,11/09/2020,(81200) Medical Surgical Supplies & Equipment,(id:42302) Cardiovascular Services,SQUADRON MEDICAL LTD,id:13278121    , 823.68
Department of Health,Guys and St Thomas NHS Foundation Trust,04/09/2020,(81100) Dressings,(id:42302) Cardiovascular Services,NHS SUPPLY CHAIN (MAIDSTONE),id:13291359    ,  20.07
Department of Health,Guys and St Thomas NHS Foundation Trust,22/09/2020,(81100) Dressings,(id:42302) Cardiovascular Services,NHS SUPPLY CHAIN (MAIDSTONE),id:13331277    ,   9.22
Department of Health,Guys and St Thomas NHS Foundation Trust,25/09/2020,(81100) Dressings,(id:42302) Cardiovascular Services,NHS SUPPLY CHAIN (MAIDSTONE),id:13325094    ,  29.29
Department of Health,Guys and St Thomas NHS Foundation Trust,04/09/2020,(81225) Medical Surgical Supplies & Equipment,(id:42302) Cardiovascular Services,NHS SUPPLY CHAIN (MAIDSTONE),id:13269121 ,  19.40
Department of Health,Guys and St Thomas NHS Foundation Trust,04/09/2020,(81235) Medical Surgical Supplies & Equipment,(id:42302) Cardiovascular Services,NHS SUPPLY CHAIN (MAIDSTONE),id:13268734 ,1020.00
Department of Health,Guys and St Thomas NHS Foundation Trust,18/09/2020,(81230) Medical Surgical Supplies & Equipment,(id:42302) Cardiovascular Services,ABBOTT MEDICAL UK LTD,id:13325799   ,2340.00
Department of Health,Guys and St Thomas NHS Foundation Trust,18/09/2020,(81230) Medical Surgical Supplies & Equipment,(id:42302) Cardiovascular Services,ABBOTT MEDICAL UK LTD,id:13330928   ,2340.00
Department of Health,Guys and St Thomas NHS Foundation Trust,18/09/2020,(81230) Medical Surgical Supplies & Equipment,(id:42302) Cardiovascular Services,ABBOTT MEDICAL UK LTD,id:13323983   ,2340.00
Department of Health,Guys and St Thomas NHS Foundation Trust,04/09/2020,(81700) Lab Equipment Purchase,(id:42302) Cardiovascular Services,NHS SUPPLY CHAIN (MAIDSTONE),id:13204335 , 162.80
Department of Health,Guys and St Thomas NHS Foundation Trust,22/09/2020,(81255) Medical Surgical Supplies & Equipment,(id:42302) Cardiovascular Services,NHS SUPPLY CHAIN (MAIDSTONE),id:13331277 ,   1.55
Department of Health,Guys and St Thomas NHS Foundation Trust,04/09/2020,(81255) Medical Surgical Supplies & Equipment,(id:42302) Cardiovascular Services,NHS SUPPLY CHAIN (MAIDSTONE),id:13269121 ,   2.19
Department of Health,Guys and St Thomas NHS Foundation Trust,04/09/2020,(81255) Medical Surgical Supplies & Equipment,(id:42302) Cardiovascular Services,NHS SUPPLY CHAIN (MAIDSTONE),id:13291359 ,   1.86
Department of Health,Guys and St Thomas NHS Foundation Trust,04/09/2020,(83400) Office Equipment,(id:42301) Cardiovascular Services,NHS SUPPLY CHAIN (MAIDSTONE),id:13291359  , 342.00
Department of Health,Guys and St Thomas NHS Foundation Trust,25/09/2020,(82800) Bedding & Linen,(id:42301) Cardiovascular Services,NHS SUPPLY CHAIN (MAIDSTONE),id:13325094   , 163.88
Department of Health,Guys and St Thomas NHS Foundation Trust,25/09/2020,(82700) Uniforms & Clothing,(id:42300) Cardiovascular Services,NHS SUPPLY CHAIN (MAIDSTONE),id:13300894    ,  52.97
Department of Health,Guys and St Thomas NHS Foundation Trust,25/09/2020,(82000) Provisions & Kitchens,(id:42300) Cardiovascular Services,NHS SUPPLY CHAIN (MAIDSTONE),id:13312947  , 289.90
Department of Health,Guys and St Thomas NHS Foundation Trust,25/09/2020,(82000) Provisions & Kitchens,(id:42300) Cardiovascular Services,NHS SUPPLY CHAIN (MAIDSTONE),id:13300894  , 198.88
Department of Health,Guys and St Thomas NHS Foundation Trust,04/09/2020,(82000) Provisions & Kitchens,(id:42300) Cardiovascular Services,NHS SUPPLY CHAIN (MAIDSTONE),id:13268734  ,  99.05
Department of Health,Guys and St Thomas NHS Foundation Trust,04/09/2020,(84500) Establishment,(id:42300) Cardiovascular Services,WYBONE LTD,id:13307490   , 873.48
Department of Health,Guys and St Thomas NHS Foundation Trust,04/09/2020,(83400) Office Equipment,(id:42300) Cardiovascular Services,NHS SUPPLY CHAIN (MAIDSTONE),id:13204335  , 126.19
Department of Health,Guys and St Thomas NHS Foundation Trust,04/09/2020,(81225) Medical Surgical Supplies & Equipment,(id:42300) Cardiovascular Services,NHS SUPPLY CHAIN (MAIDSTONE),id:13268734 ,   4.85
Department of Health,Guys and St Thomas NHS Foundation Trust,04/09/2020,(81225) Medical Surgical Supplies & Equipment,(id:42300) Cardiovascular Services,NHS SUPPLY CHAIN (MAIDSTONE),id:13287744 ,  24.24
Department of Health,Guys and St Thomas NHS Foundation Trust,25/09/2020,(83410) Office Equipment,(id:42300) Cardiovascular Services,RICOH UK LTD,id:13342154   , 288.48
Department of Health,Guys and St Thomas NHS Foundation Trust,25/09/2020,(81255) Medical Surgical Supplies & Equipment,(id:42300) Cardiovascular Services,NHS SUPPLY CHAIN (MAIDSTONE),id:13325094 ,   4.99
Department of Health,Guys and St Thomas NHS Foundation Trust,04/09/2020,(81700) Lab Equipment Purchase,(id:42300) Cardiovascular Services,NHS SUPPLY CHAIN (MAIDSTONE),id:13268734 ,  25.26
Department of Health,Guys and St Thomas NHS Foundation Trust,18/09/2020,(81235) Medical Surgical Supplies & Equipment,(id:42298) Cardiovascular Services,BOSTON SCIENTIFIC LTD,id:13313636   , 580.80
Department of Health,Guys and St Thomas NHS Foundation Trust,04/09/2020,(81200) Medical Surgical Supplies & Equipment,(id:42298) Cardiovascular Services,NHS SUPPLY CHAIN (MAIDSTONE),id:13204335 ,3413.54
Department of Health,Guys and St Thomas NHS Foundation Trust,18/09/2020,(81200) Medical Surgical Supplies & Equipment,(id:42298) Cardiovascular Services,TELEFLEX MEDICAL,id:13317027   ,3036.00
Department of Health,Guys and St Thomas NHS Foundation Trust,18/09/2020,(81200) Medical Surgical Supplies & Equipment,(id:42298) Cardiovascular Services,JOHNSON & JOHNSON MEDICAL LTD,id:13313646,3000.00
Department of Health,Guys and St Thomas NHS Foundation Trust,25/09/2020,(81200) Medical Surgical Supplies & Equipment,(id:42298) Cardiovascular Services,ABBOTT MEDICAL UK LTD,id:13336783   ,  60.00
Department of Health,Guys and St Thomas NHS Foundation Trust,11/09/2020,(81200) Medical Surgical Supplies & Equipment,(id:42298) Cardiovascular Services,TELEFLEX MEDICAL,id:13300681   , 840.00
Department of Health,Guys and St Thomas NHS Foundation Trust,11/09/2020,(81200) Medical Surgical Supplies & Equipment,(id:42298) Cardiovascular Services,SPECTRANETICS UK,id:13311076   ,2864.40
Department of Health,Guys and St Thomas NHS Foundation Trust,04/09/2020,(81100) Dressings,(id:42298) Cardiovascular Services,NHS SUPPLY CHAIN (MAIDSTONE),id:13291359    ,  35.69
Department of Health,Guys and St Thomas NHS Foundation Trust,04/09/2020,(81100) Dressings,(id:42298) Cardiovascular Services,NHS SUPPLY CHAIN (MAIDSTONE),id:13287744    ,  13.43
Department of Health,Guys and St Thomas NHS Foundation Trust,25/09/2020,(81230) Medical Surgical Supplies & Equipment,(id:42298) Cardiovascular Services,ABBOTT MEDICAL UK LTD,id:13331181   , 384.00
Department of Health,Guys and St Thomas NHS Foundation Trust,18/09/2020,(81230) Medical Surgical Supplies & Equipment,(id:42298) Cardiovascular Services,ABBOTT MEDICAL UK LTD,id:13330931   , 780.00
Department of Health,Guys and St Thomas NHS Foundation Trust,18/09/2020,(81230) Medical Surgical Supplies & Equipment,(id:42298) Cardiovascular Services,TELEFLEX MEDICAL,id:13310315   , 591.36
Department of Health,Guys and St Thomas NHS Foundation Trust,11/09/2020,(81250) Medical Surgical Supplies & Equipment,(id:42298) Cardiovascular Services,MEDTRONIC LTD,id:13305962 ,1758.00
Department of Health,Guys and St Thomas NHS Foundation Trust,22/09/2020,(82600) Uniforms & Clothing,(id:42298) Cardiovascular Services,NHS SUPPLY CHAIN (MAIDSTONE),id:13331277    ,  88.50
Department of Health,Guys and St Thomas NHS Foundation Trust,04/09/2020,(82800) Bedding & Linen,(id:42298) Cardiovascular Services,NHS SUPPLY CHAIN (MAIDSTONE),id:13268734   , 190.44
Department of Health,Guys and St Thomas NHS Foundation Trust,25/09/2020,(81240) Medical Surgical Supplies & Equipment,(id:42298) Cardiovascular Services,MEDTRONIC LTD,id:13338194 ,    14433.60
Department of Health,Guys and St Thomas NHS Foundation Trust,25/09/2020,(81240) Medical Surgical Supplies & Equipment,(id:42298) Cardiovascular Services,MEDTRONIC LTD,id:13339527 ,5160.00
Department of Health,Guys and St Thomas NHS Foundation Trust,25/09/2020,(81240) Medical Surgical Supplies & Equipment,(id:42298) Cardiovascular Services,ABBOTT MEDICAL UK LTD,id:13331394   ,7800.00
Department of Health,Guys and St Thomas NHS Foundation Trust,25/09/2020,(81240) Medical Surgical Supplies & Equipment,(id:42298) Cardiovascular Services,ABBOTT MEDICAL UK LTD,id:13331181   ,    15600.00
Department of Health,Guys and St Thomas NHS Foundation Trust,25/09/2020,(81240) Medical Surgical Supplies & Equipment,(id:42298) Cardiovascular Services,ABBOTT MEDICAL UK LTD,id:13336783   ,    33278.40
Department of Health,Guys and St Thomas NHS Foundation Trust,11/09/2020,(81240) Medical Surgical Supplies & Equipment,(id:42298) Cardiovascular Services,ABBOTT MEDICAL UK LTD,id:13320586   ,7200.00
Department of Health,Guys and St Thomas NHS Foundation Trust,04/09/2020,(83400) Office Equipment,(id:42291) Cardiovascular Services,NHS SUPPLY CHAIN (MAIDSTONE),id:13291359  ,  75.74
Department of Health,Guys and St Thomas NHS Foundation Trust,04/09/2020,(83400) Office Equipment,(id:42291) Cardiovascular Services,NHS SUPPLY CHAIN (MAIDSTONE),id:13269121  ,  90.85
Department of Health,Guys and St Thomas NHS Foundation Trust,25/09/2020,(83400) Office Equipment,(id:42291) Cardiovascular Services,NHS SUPPLY CHAIN (MAIDSTONE),id:13312947  ,  89.40
Department of Health,Guys and St Thomas NHS Foundation Trust,25/09/2020,(83400) Office Equipment,(id:42291) Cardiovascular Services,NHS SUPPLY CHAIN (MAIDSTONE),id:13325094  ,  43.71
Department of Health,Guys and St Thomas NHS Foundation Trust,25/09/2020,(82800) Bedding & Linen,(id:42291) Cardiovascular Services,NHS SUPPLY CHAIN (MAIDSTONE),id:13300894   , 111.57
Department of Health,Guys and St Thomas NHS Foundation Trust,25/09/2020,(82800) Bedding & Linen,(id:42291) Cardiovascular Services,NHS SUPPLY CHAIN (MAIDSTONE),id:13325094   ,   5.62
Department of Health,Guys and St Thomas NHS Foundation Trust,04/09/2020,(82800) Bedding & Linen,(id:42291) Cardiovascular Services,NHS SUPPLY CHAIN (MAIDSTONE),id:13291359   ,  92.13
Department of Health,Guys and St Thomas NHS Foundation Trust,25/09/2020,(82700) Uniforms & Clothing,(id:42291) Cardiovascular Services,NHS SUPPLY CHAIN (MAIDSTONE),id:13325094    ,  52.97
Department of Health,Guys and St Thomas NHS Foundation Trust,04/09/2020,(81100) Dressings,(id:42291) Cardiovascular Services,NHS SUPPLY CHAIN (MAIDSTONE),id:13204335    ,   7.99
Department of Health,Guys and St Thomas NHS Foundation Trust,04/09/2020,(81230) Medical Surgical Supplies & Equipment,(id:42291) Cardiovascular Services,NHS SUPPLY CHAIN (MAIDSTONE),id:13269121 , 309.48
Department of Health,Guys and St Thomas NHS Foundation Trust,25/09/2020,(82000) Provisions & Kitchens,(id:42291) Cardiovascular Services,NHS SUPPLY CHAIN (MAIDSTONE),id:13325094  ,  89.03
Department of Health,Guys and St Thomas NHS Foundation Trust,04/09/2020,(82000) Provisions & Kitchens,(id:42291) Cardiovascular Services,NHS SUPPLY CHAIN (MAIDSTONE),id:13268734  ,  38.64
Department of Health,Guys and St Thomas NHS Foundation Trust,04/09/2020,(81225) Medical Surgical Supplies & Equipment,(id:42291) Cardiovascular Services,NHS SUPPLY CHAIN (MAIDSTONE),id:13287744 ,  18.41
Department of Health,Guys and St Thomas NHS Foundation Trust,25/09/2020,(81225) Medical Surgical Supplies & Equipment,(id:42291) Cardiovascular Services,NHS SUPPLY CHAIN (MAIDSTONE),id:13325094 ,  18.42
Department of Health,Guys and St Thomas NHS Foundation Trust,25/09/2020,(81225) Medical Surgical Supplies & Equipment,(id:42291) Cardiovascular Services,NHS SUPPLY CHAIN (MAIDSTONE),id:13312947 ,  11.05
Department of Health,Guys and St Thomas NHS Foundation Trust,04/09/2020,(81255) Medical Surgical Supplies & Equipment,(id:42291) Cardiovascular Services,NHS SUPPLY CHAIN (MAIDSTONE),id:13269121 ,   1.87
Department of Health,Guys and St Thomas NHS Foundation Trust,04/09/2020,(82800) Bedding & Linen,(id:42290) Cardiovascular Services,NHS SUPPLY CHAIN (MAIDSTONE),id:13287744   ,  85.72
Department of Health,Guys and St Thomas NHS Foundation Trust,04/09/2020,(81200) Medical Surgical Supplies & Equipment,(id:42290) Cardiovascular Services,NHS SUPPLY CHAIN (MAIDSTONE),id:13268734 , 463.01
Department of Health,Guys and St Thomas NHS Foundation Trust,04/09/2020,(81200) Medical Surgical Supplies & Equipment,(id:42290) Cardiovascular Services,NHS SUPPLY CHAIN (MAIDSTONE),id:13204335 , 537.83
Department of Health,Guys and St Thomas NHS Foundation Trust,04/09/2020,(81100) Dressings,(id:42290) Cardiovascular Services,NHS SUPPLY CHAIN (MAIDSTONE),id:13287744    , 182.83
Department of Health,Guys and St Thomas NHS Foundation Trust,25/09/2020,(81100) Dressings,(id:42290) Cardiovascular Services,NHS SUPPLY CHAIN (MAIDSTONE),id:13325094    , 143.27
Department of Health,Guys and St Thomas NHS Foundation Trust,04/09/2020,(50552) Qualified Nursing Staff,(id:42290) Cardiovascular Services,GLOBE LOCUMS LTD,id:13309577  ,1046.30
Department of Health,Guys and St Thomas NHS Foundation Trust,22/09/2020,(81225) Medical Surgical Supplies & Equipment,(id:42290) Cardiovascular Services,NHS SUPPLY CHAIN (MAIDSTONE),id:13331277 ,  24.24
Department of Health,Guys and St Thomas NHS Foundation Trust,04/09/2020,(81225) Medical Surgical Supplies & Equipment,(id:42290) Cardiovascular Services,NHS SUPPLY CHAIN (MAIDSTONE),id:13204335 ,   7.85
Department of Health,Guys and St Thomas NHS Foundation Trust,25/09/2020,(81700) Lab Equipment Purchase,(id:42290) Cardiovascular Services,NHS SUPPLY CHAIN (MAIDSTONE),id:13325094 ,  39.60
Department of Health,Guys and St Thomas NHS Foundation Trust,25/09/2020,(83400) Office Equipment,(id:42293) Cardiovascular Services,NHS SUPPLY CHAIN (MAIDSTONE),id:13325094  ,  12.86
Department of Health,Guys and St Thomas NHS Foundation Trust,04/09/2020,(83400) Office Equipment,(id:42293) Cardiovascular Services,NHS SUPPLY CHAIN (MAIDSTONE),id:13204335  ,   4.81
Department of Health,Guys and St Thomas NHS Foundation Trust,22/09/2020,(83400) Office Equipment,(id:42293) Cardiovascular Services,NHS SUPPLY CHAIN (MAIDSTONE),id:13331277  ,  13.90
Department of Health,Guys and St Thomas NHS Foundation Trust,04/09/2020,(81200) Medical Surgical Supplies & Equipment,(id:42293) Cardiovascular Services,NHS SUPPLY CHAIN (MAIDSTONE),id:13291359 , 871.68
Department of Health,Guys and St Thomas NHS Foundation Trust,04/09/2020,(81200) Medical Surgical Supplies & Equipment,(id:42293) Cardiovascular Services,SQUADRON MEDICAL LTD,id:13287400    , 208.12
Department of Health,Guys and St Thomas NHS Foundation Trust,25/09/2020,(81200) Medical Surgical Supplies & Equipment,(id:42293) Cardiovascular Services,SQUADRON MEDICAL LTD,id:13191196    ,1403.40
Department of Health,Guys and St Thomas NHS Foundation Trust,25/09/2020,(81200) Medical Surgical Supplies & Equipment,(id:42293) Cardiovascular Services,AQUILANT LTD,id:13335856  ,1104.00
Department of Health,Guys and St Thomas NHS Foundation Trust,25/09/2020,(81200) Medical Surgical Supplies & Equipment,(id:42293) Cardiovascular Services,EDWARDS LIFESCIENCES LTD,id:13337813, 566.40
Department of Health,Guys and St Thomas NHS Foundation Trust,11/09/2020,(81200) Medical Surgical Supplies & Equipment,(id:42293) Cardiovascular Services,SQUADRON MEDICAL LTD,id:13297849    , 273.49
Department of Health,Guys and St Thomas NHS Foundation Trust,18/09/2020,(81200) Medical Surgical Supplies & Equipment,(id:42293) Cardiovascular Services,SQUADRON MEDICAL LTD,id:13313670    , 217.78
Department of Health,Guys and St Thomas NHS Foundation Trust,18/09/2020,(81200) Medical Surgical Supplies & Equipment,(id:42293) Cardiovascular Services,SQUADRON MEDICAL LTD,id:13315117    , 568.02
Department of Health,Guys and St Thomas NHS Foundation Trust,18/09/2020,(81200) Medical Surgical Supplies & Equipment,(id:42293) Cardiovascular Services,SQUADRON MEDICAL LTD,id:13317581    ,1115.59
Department of Health,Guys and St Thomas NHS Foundation Trust,18/09/2020,(81200) Medical Surgical Supplies & Equipment,(id:42293) Cardiovascular Services,ATRICURE EUROPE BV(DO NOT RAISE ORDERS IN EUROS),id:13187214 ,3564.00
Department of Health,Guys and St Thomas NHS Foundation Trust,18/09/2020,(81200) Medical Surgical Supplies & Equipment,(id:42293) Cardiovascular Services,AQUILANT LTD,id:13329438  , 877.80
Department of Health,Guys and St Thomas NHS Foundation Trust,18/09/2020,(81200) Medical Surgical Supplies & Equipment,(id:42293) Cardiovascular Services,AQUILANT CRITICAL CARE,id:13325189  , 922.80
Department of Health,Guys and St Thomas NHS Foundation Trust,22/09/2020,(81200) Medical Surgical Supplies & Equipment,(id:42293) Cardiovascular Services,NHS SUPPLY CHAIN (MAIDSTONE),id:13331277 , 521.39
Department of Health,Guys and St Thomas NHS Foundation Trust,04/09/2020,(81100) Dressings,(id:42293) Cardiovascular Services,SQUADRON MEDICAL LTD,id:13289133  , 213.82
Department of Health,Guys and St Thomas NHS Foundation Trust,18/09/2020,(81100) Dressings,(id:42293) Cardiovascular Services,SQUADRON MEDICAL LTD,id:13311939  , 573.98
Department of Health,Guys and St Thomas NHS Foundation Trust,25/09/2020,(81100) Dressings,(id:42293) Cardiovascular Services,SQUADRON MEDICAL LTD,id:13327855  , 208.09
Department of Health,Guys and St Thomas NHS Foundation Trust,04/09/2020,(81000) Surgical Appliances,(id:42293) Cardiovascular Services,NHS SUPPLY CHAIN (MAIDSTONE),id:13269121    ,  99.74
Department of Health,Guys and St Thomas NHS Foundation Trust,18/09/2020,(81280) Medical Surgical Supplies & Equipment,(id:42293) Cardiovascular Services,EDWARDS LIFESCIENCES LTD,id:13326310,2880.00
Department of Health,Guys and St Thomas NHS Foundation Trust,18/09/2020,(81280) Medical Surgical Supplies & Equipment,(id:42293) Cardiovascular Services,EDWARDS LIFESCIENCES LTD,id:13314060,1056.00
Department of Health,Guys and St Thomas NHS Foundation Trust,18/09/2020,(81230) Medical Surgical Supplies & Equipment,(id:42293) Cardiovascular Services,MEDTRONIC LTD,id:13325604 , 330.00
Department of Health,Guys and St Thomas NHS Foundation Trust,04/09/2020,(81200) Medical Surgical Supplies & Equipment,(id:42292) Cardiovascular Services,MAQUET LIMITED,id:13298457, 475.20
Department of Health,Guys and St Thomas NHS Foundation Trust,25/09/2020,(81200) Medical Surgical Supplies & Equipment,(id:42292) Cardiovascular Services,LIVANOVA UK LTD,id:13331376    , 889.06
Department of Health,Guys and St Thomas NHS Foundation Trust,11/09/2020,(81200) Medical Surgical Supplies & Equipment,(id:42292) Cardiovascular Services,LIVANOVA UK LTD,id:13248221    , 608.40
Department of Health,Guys and St Thomas NHS Foundation Trust,25/09/2020,(81100) Dressings,(id:42292) Cardiovascular Services,MAQUET LIMITED,id:13330651   , 366.00
Department of Health,Guys and St Thomas NHS Foundation Trust,04/09/2020,(81270) Medical Surgical Supplies & Equipment,(id:42292) Cardiovascular Services,MAQUET LIMITED,id:13298559,1080.00
Department of Health,Guys and St Thomas NHS Foundation Trust,25/09/2020,(81270) Medical Surgical Supplies & Equipment,(id:42292) Cardiovascular Services,MAQUET LIMITED,id:13330645, 180.00
Department of Health,Guys and St Thomas NHS Foundation Trust,25/09/2020,(81270) Medical Surgical Supplies & Equipment,(id:42292) Cardiovascular Services,MAQUET LIMITED,id:13330651, 540.00
Department of Health,Guys and St Thomas NHS Foundation Trust,04/09/2020,(82700) Uniforms & Clothing,(id:42287) Cardiovascular Services,NHS SUPPLY CHAIN (MAIDSTONE),id:13291359    ,  24.58
Department of Health,Guys and St Thomas NHS Foundation Trust,22/09/2020,(82000) Provisions & Kitchens,(id:42287) Cardiovascular Services,NHS SUPPLY CHAIN (MAIDSTONE),id:13331277  , 492.79
Department of Health,Guys and St Thomas NHS Foundation Trust,04/09/2020,(82800) Bedding & Linen,(id:42287) Cardiovascular Services,NHS SUPPLY CHAIN (MAIDSTONE),id:13269121   , 164.42
Department of Health,Guys and St Thomas NHS Foundation Trust,04/09/2020,(82800) Bedding & Linen,(id:42287) Cardiovascular Services,NHS SUPPLY CHAIN (MAIDSTONE),id:13204335   , 108.65
Department of Health,Guys and St Thomas NHS Foundation Trust,04/09/2020,(82800) Bedding & Linen,(id:42287) Cardiovascular Services,NHS SUPPLY CHAIN (MAIDSTONE),id:13291359   , 111.13
Department of Health,Guys and St Thomas NHS Foundation Trust,04/09/2020,(81100) Dressings,(id:42287) Cardiovascular Services,NHS SUPPLY CHAIN (MAIDSTONE),id:13287744    ,  54.42
Department of Health,Guys and St Thomas NHS Foundation Trust,04/09/2020,(81100) Dressings,(id:42287) Cardiovascular Services,NHS SUPPLY CHAIN (MAIDSTONE),id:13269121    , 121.60
Department of Health,Guys and St Thomas NHS Foundation Trust,25/09/2020,(81700) Lab Equipment Purchase,(id:42287) Cardiovascular Services,NHS SUPPLY CHAIN (MAIDSTONE),id:13325094 ,  74.17
Department of Health,Guys and St Thomas NHS Foundation Trust,25/09/2020,(81700) Lab Equipment Purchase,(id:42287) Cardiovascular Services,NHS SUPPLY CHAIN (MAIDSTONE),id:13312947 ,  88.66
Department of Health,Guys and St Thomas NHS Foundation Trust,04/09/2020,(81700) Lab Equipment Purchase,(id:42287) Cardiovascular Services,NHS SUPPLY CHAIN (MAIDSTONE),id:13268734 ,  18.51
Department of Health,Guys and St Thomas NHS Foundation Trust,04/09/2020,(81700) Lab Equipment Purchase,(id:42287) Cardiovascular Services,NHS SUPPLY CHAIN (MAIDSTONE),id:13287744 ,  50.59
Department of Health,Guys and St Thomas NHS Foundation Trust,04/09/2020,(81255) Medical Surgical Supplies & Equipment,(id:42287) Cardiovascular Services,NHS SUPPLY CHAIN (MAIDSTONE),id:13269121 ,   6.55
Department of Health,Guys and St Thomas NHS Foundation Trust,29/09/2020,(52072) Radiographers,(id:42368) Clinical Imaging & Med Physics,PRICEWATERHOUSECOOPERS LLP,id:13351193,6664.89
Department of Health,Guys and St Thomas NHS Foundation Trust,02/09/2020,(52072) Radiographers,(id:42368) Clinical Imaging & Med Physics,PRICEWATERHOUSECOOPERS LLP,id:13302614,4567.24
Department of Health,Guys and St Thomas NHS Foundation Trust,25/09/2020,(82800) Bedding & Linen,(id:42367) Clinical Imaging & Med Physics,NHS SUPPLY CHAIN (MAIDSTONE),id:13325094 , 596.73
Department of Health,Guys and St Thomas NHS Foundation Trust,11/09/2020,(81100) Dressings,(id:42367) Clinical Imaging & Med Physics,B.N.O.S MEDITECH LIMITED,id:13186414 , 925.67
Department of Health,Guys and St Thomas NHS Foundation Trust,22/09/2020,(81100) Dressings,(id:42367) Clinical Imaging & Med Physics,NHS SUPPLY CHAIN (MAIDSTONE),id:13331277  , 157.59
Department of Health,Guys and St Thomas NHS Foundation Trust,18/09/2020,(81400) Medical Surgical Supplies & Equipment,(id:42367) Clinical Imaging & Med Physics,H & C CONTRACTS LIMITED CIS5,id:13294657    ,6577.84
Department of Health,Guys and St Thomas NHS Foundation Trust,11/09/2020,(81200) Medical Surgical Supplies & Equipment,(id:42367) Clinical Imaging & Med Physics,COOK UK LTD,id:13271509 , 818.40
Department of Health,Guys and St Thomas NHS Foundation Trust,25/09/2020,(81200) Medical Surgical Supplies & Equipment,(id:42367) Clinical Imaging & Med Physics,NHS SUPPLY CHAIN (MAIDSTONE),id:13312947    ,7353.73
Department of Health,Guys and St Thomas NHS Foundation Trust,25/09/2020,(81200) Medical Surgical Supplies & Equipment,(id:42367) Clinical Imaging & Med Physics,NHS SUPPLY CHAIN (MAIDSTONE),id:13325094    ,    15860.06
Department of Health,Guys and St Thomas NHS Foundation Trust,04/09/2020,(81200) Medical Surgical Supplies & Equipment,(id:42367) Clinical Imaging & Med Physics,SQUADRON MEDICAL LTD,id:13284573  ,2205.58
Department of Health,Guys and St Thomas NHS Foundation Trust,11/09/2020,(81200) Medical Surgical Supplies & Equipment,(id:42367) Clinical Imaging & Med Physics,BARD LTD,id:13278127    ,2364.00
Department of Health,Guys and St Thomas NHS Foundation Trust,11/09/2020,(81200) Medical Surgical Supplies & Equipment,(id:42367) Clinical Imaging & Med Physics,MEDTRONIC LTD,id:13318054    ,1140.00
Department of Health,Guys and St Thomas NHS Foundation Trust,18/09/2020,(81200) Medical Surgical Supplies & Equipment,(id:42367) Clinical Imaging & Med Physics,SQUADRON MEDICAL LTD,id:13317138  , 697.70
Department of Health,Guys and St Thomas NHS Foundation Trust,18/09/2020,(81200) Medical Surgical Supplies & Equipment,(id:42367) Clinical Imaging & Med Physics,BOSTON SCIENTIFIC LTD,id:13310237 , 660.00
Department of Health,Guys and St Thomas NHS Foundation Trust,18/09/2020,(81200) Medical Surgical Supplies & Equipment,(id:42367) Clinical Imaging & Med Physics,MEDTRONIC LTD,id:13325341    , 840.00
Department of Health,Guys and St Thomas NHS Foundation Trust,04/09/2020,(81200) Medical Surgical Supplies & Equipment,(id:42367) Clinical Imaging & Med Physics,SQUADRON MEDICAL LTD,id:13284763  ,2725.64
Department of Health,Guys and St Thomas NHS Foundation Trust,04/09/2020,(81200) Medical Surgical Supplies & Equipment,(id:42367) Clinical Imaging & Med Physics,WL GORE & ASSOCIATES (UK) LTD,id:13297637   ,1987.20
Department of Health,Guys and St Thomas NHS Foundation Trust,18/09/2020,(81200) Medical Surgical Supplies & Equipment,(id:42367) Clinical Imaging & Med Physics,ABBOTT MEDICAL UK LTD,id:13324012 ,1080.00
Department of Health,Guys and St Thomas NHS Foundation Trust,25/09/2020,(81200) Medical Surgical Supplies & Equipment,(id:42367) Clinical Imaging & Med Physics,AQUILANT LTD,id:13336555,    -5412.00
Department of Health,Guys and St Thomas NHS Foundation Trust,22/09/2020,(81230) Medical Surgical Supplies & Equipment,(id:42367) Clinical Imaging & Med Physics,NHS SUPPLY CHAIN (MAIDSTONE),id:13331277    , 150.00
Department of Health,Guys and St Thomas NHS Foundation Trust,25/09/2020,(81230) Medical Surgical Supplies & Equipment,(id:42367) Clinical Imaging & Med Physics,SQUADRON MEDICAL LTD,id:13208814  , 514.76
Department of Health,Guys and St Thomas NHS Foundation Trust,25/09/2020,(81230) Medical Surgical Supplies & Equipment,(id:42367) Clinical Imaging & Med Physics,SQUADRON MEDICAL LTD,id:13128851  , 709.67
Department of Health,Guys and St Thomas NHS Foundation Trust,18/09/2020,(81230) Medical Surgical Supplies & Equipment,(id:42367) Clinical Imaging & Med Physics,SQUADRON MEDICAL LTD,id:13191969  , 191.59
Department of Health,Guys and St Thomas NHS Foundation Trust,04/09/2020,(81230) Medical Surgical Supplies & Equipment,(id:42367) Clinical Imaging & Med Physics,SQUADRON MEDICAL LTD,id:13287387  ,  99.92
Department of Health,Guys and St Thomas NHS Foundation Trust,11/09/2020,(81230) Medical Surgical Supplies & Equipment,(id:42367) Clinical Imaging & Med Physics,SQUADRON MEDICAL LTD,id:13299611  ,  38.07
Department of Health,Guys and St Thomas NHS Foundation Trust,22/09/2020,(81225) Medical Surgical Supplies & Equipment,(id:42367) Clinical Imaging & Med Physics,NHS SUPPLY CHAIN (MAIDSTONE),id:13331277    ,  55.56
Department of Health,Guys and St Thomas NHS Foundation Trust,04/09/2020,(81700) Lab Equipment Purchase,(id:42367) Clinical Imaging & Med Physics,NHS SUPPLY CHAIN (MAIDSTONE),id:13269121    ,   6.24
Department of Health,Guys and St Thomas NHS Foundation Trust,04/09/2020,(82800) Bedding & Linen,(id:42366) Clinical Imaging & Med Physics,NHS SUPPLY CHAIN (MAIDSTONE),id:13291359 , 206.14
Department of Health,Guys and St Thomas NHS Foundation Trust,04/09/2020,(82800) Bedding & Linen,(id:42366) Clinical Imaging & Med Physics,NHS SUPPLY CHAIN (MAIDSTONE),id:13268734 , 255.64
Department of Health,Guys and St Thomas NHS Foundation Trust,22/09/2020,(81100) Dressings,(id:42366) Clinical Imaging & Med Physics,NHS SUPPLY CHAIN (MAIDSTONE),id:13331277  , 140.86
Department of Health,Guys and St Thomas NHS Foundation Trust,04/09/2020,(81100) Dressings,(id:42366) Clinical Imaging & Med Physics,NHS SUPPLY CHAIN (MAIDSTONE),id:13268734  ,  98.19
Department of Health,Guys and St Thomas NHS Foundation Trust,25/09/2020,(81200) Medical Surgical Supplies & Equipment,(id:42366) Clinical Imaging & Med Physics,NHS SUPPLY CHAIN (MAIDSTONE),id:13312947    ,4121.90
Department of Health,Guys and St Thomas NHS Foundation Trust,04/09/2020,(81200) Medical Surgical Supplies & Equipment,(id:42366) Clinical Imaging & Med Physics,NHS SUPPLY CHAIN (MAIDSTONE),id:13287744    ,3834.19
Department of Health,Guys and St Thomas NHS Foundation Trust,04/09/2020,(82700) Uniforms & Clothing,(id:42366) Clinical Imaging & Med Physics,NHS SUPPLY CHAIN (MAIDSTONE),id:13204335  ,  31.68
Department of Health,Guys and St Thomas NHS Foundation Trust,04/09/2020,(81100) Dressings,(id:42372) Clinical Imaging & Med Physics,NHS SUPPLY CHAIN (MAIDSTONE),id:13268734  ,  13.64
Department of Health,Guys and St Thomas NHS Foundation Trust,25/09/2020,(81200) Medical Surgical Supplies & Equipment,(id:42372) Clinical Imaging & Med Physics,WICKHAM LABORATORIES LTD,id:13331447   ,1764.00
Department of Health,Guys and St Thomas NHS Foundation Trust,04/09/2020,(81200) Medical Surgical Supplies & Equipment,(id:42372) Clinical Imaging & Med Physics,NHS SUPPLY CHAIN (MAIDSTONE),id:13269121    , 592.08
Department of Health,Guys and St Thomas NHS Foundation Trust,04/09/2020,(81500) X Ray Equipment Purchase,(id:42372) Clinical Imaging & Med Physics,CURIUM PHARMA UK LTD,id:13272774,1717.20
Department of Health,Guys and St Thomas NHS Foundation Trust,25/09/2020,(81500) X Ray Equipment Purchase,(id:42372) Clinical Imaging & Med Physics,ADVANCED ACCELERATOR APPLICATIONS (UK & IRELAND) LTD,id:13337833   ,    12714.00
Department of Health,Guys and St Thomas NHS Foundation Trust,11/09/2020,(83880) Building & Engineering,(id:42381) Clinical Imaging & Med Physics,RS COMPONENTS LTD,id:13305434, 491.00
Department of Health,Guys and St Thomas NHS Foundation Trust,28/09/2020,(81400) Medical Surgical Supplies & Equipment,(id:42381) Clinical Imaging & Med Physics,GSTT PROCUREMENT CARD,id:13349135 ,  65.00
Department of Health,Guys and St Thomas NHS Foundation Trust,22/09/2020,(83400) Office Equipment,(id:42379) Clinical Imaging & Med Physics,NHS SUPPLY CHAIN (MAIDSTONE),id:13331277,  11.04
Department of Health,Guys and St Thomas NHS Foundation Trust,25/09/2020,(81400) Medical Surgical Supplies & Equipment,(id:42379) Clinical Imaging & Med Physics,THERAPY EQUIPMENT LTD,id:13335872 ,1187.70
Department of Health,Guys and St Thomas NHS Foundation Trust,22/09/2020,(81100) Dressings,(id:42379) Clinical Imaging & Med Physics,NHS SUPPLY CHAIN (MAIDSTONE),id:13331277  , 873.60
Department of Health,Guys and St Thomas NHS Foundation Trust,25/09/2020,(81200) Medical Surgical Supplies & Equipment,(id:42379) Clinical Imaging & Med Physics,THERAPY EQUIPMENT LTD,id:13335872 ,  21.00
Department of Health,Guys and St Thomas NHS Foundation Trust,25/09/2020,(81200) Medical Surgical Supplies & Equipment,(id:42379) Clinical Imaging & Med Physics,ZOLL MEDICAL UK LTD,id:13332234   ,    -1836.00
Department of Health,Guys and St Thomas NHS Foundation Trust,15/09/2020,(52062) Radiographers,(id:42377) Clinical Imaging & Med Physics,PRICEWATERHOUSECOOPERS LLP,id:13325204,1268.46
Department of Health,Guys and St Thomas NHS Foundation Trust,29/09/2020,(52062) Radiographers,(id:42377) Clinical Imaging & Med Physics,PRICEWATERHOUSECOOPERS LLP,id:13351193,1263.82
Department of Health,Guys and St Thomas NHS Foundation Trust,08/09/2020,(52062) Radiographers,(id:42377) Clinical Imaging & Med Physics,PRICEWATERHOUSECOOPERS LLP,id:13313818,1009.96
Department of Health,Guys and St Thomas NHS Foundation Trust,04/09/2020,(81200) Medical Surgical Supplies & Equipment,(id:1348419) Clinical Imaging & Med Physics,NHS SUPPLY CHAIN (MAIDSTONE),id:13204335  ,6181.20
Department of Health,Guys and St Thomas NHS Foundation Trust,04/09/2020,(81200) Medical Surgical Supplies & Equipment,(id:1348419) Clinical Imaging & Med Physics,NHS SUPPLY CHAIN (MAIDSTONE),id:13269121  ,5174.40
Department of Health,Guys and St Thomas NHS Foundation Trust,25/09/2020,(81700) Lab Equipment Purchase,(id:1348419) Clinical Imaging & Med Physics,NHS SUPPLY CHAIN (MAIDSTONE),id:13325094  , 105.36
Department of Health,Guys and St Thomas NHS Foundation Trust,04/09/2020,(81275) Medical Surgical Supplies & Equipment,(id:1348419) Clinical Imaging & Med Physics,NHS SUPPLY CHAIN (MAIDSTONE),id:13269121  , 109.20
Department of Health,Guys and St Thomas NHS Foundation Trust,11/09/2020,(82600) Uniforms & Clothing,(id:2625419) Transplant Renal and Urology,SQUADRON MEDICAL LTD,id:13302693,  22.04
Department of Health,Guys and St Thomas NHS Foundation Trust,04/09/2020,(82700) Uniforms & Clothing,(id:42419) Transplant Renal and Urology,NHS SUPPLY CHAIN (MAIDSTONE),id:13204335    ,  31.68
Department of Health,Guys and St Thomas NHS Foundation Trust,25/09/2020,(82000) Provisions & Kitchens,(id:42419) Transplant Renal and Urology,NHS SUPPLY CHAIN (MAIDSTONE),id:13300894  , 153.90
Department of Health,Guys and St Thomas NHS Foundation Trust,18/09/2020,(50552) Qualified Nursing Staff,(id:42419) Transplant Renal and Urology,CONTINENTAL NURSE LTD,id:13328890  ,1000.62
Department of Health,Guys and St Thomas NHS Foundation Trust,25/09/2020,(50552) Qualified Nursing Staff,(id:42419) Transplant Renal and Urology,MSI GROUP LTD,id:13343451, 304.52
Department of Health,Guys and St Thomas NHS Foundation Trust,25/09/2020,(83400) Office Equipment,(id:42419) Transplant Renal and Urology,NHS SUPPLY CHAIN (MAIDSTONE),id:13300894  , 138.43
Department of Health,Guys and St Thomas NHS Foundation Trust,22/09/2020,(83400) Office Equipment,(id:42419) Transplant Renal and Urology,NHS SUPPLY CHAIN (MAIDSTONE),id:13331277  ,  48.97
Department of Health,Guys and St Thomas NHS Foundation Trust,04/09/2020,(83400) Office Equipment,(id:42419) Transplant Renal and Urology,NHS SUPPLY CHAIN (MAIDSTONE),id:13287744  , 307.54
Department of Health,Guys and St Thomas NHS Foundation Trust,25/09/2020,(81700) Lab Equipment Purchase,(id:42419) Transplant Renal and Urology,NHS SUPPLY CHAIN (MAIDSTONE),id:13325094 ,  21.12
Department of Health,Guys and St Thomas NHS Foundation Trust,04/09/2020,(81700) Lab Equipment Purchase,(id:42419) Transplant Renal and Urology,NHS SUPPLY CHAIN (MAIDSTONE),id:13268734 ,  61.52
Department of Health,Guys and St Thomas NHS Foundation Trust,04/09/2020,(81700) Lab Equipment Purchase,(id:42419) Transplant Renal and Urology,NHS SUPPLY CHAIN (MAIDSTONE),id:13287744 ,  55.86
Department of Health,Guys and St Thomas NHS Foundation Trust,22/09/2020,(81200) Medical Surgical Supplies & Equipment,(id:2882419) Transplant Renal and Urology,NHS SUPPLY CHAIN (MAIDSTONE),id:13331277    ,   5.72
Department of Health,Guys and St Thomas NHS Foundation Trust,04/09/2020,(82000) Provisions & Kitchens,(id:969419) Transplant Renal and Urology,NHS SUPPLY CHAIN (MAIDSTONE),id:13291359 ,  10.35
Department of Health,Guys and St Thomas NHS Foundation Trust,25/09/2020,(81100) Dressings,(id:969419) Transplant Renal and Urology,NHS SUPPLY CHAIN (MAIDSTONE),id:13325094   ,  19.49
Department of Health,Guys and St Thomas NHS Foundation Trust,04/09/2020,(83400) Office Equipment,(id:969419) Transplant Renal and Urology,NHS SUPPLY CHAIN (MAIDSTONE),id:13291359 ,   8.52
Department of Health,Guys and St Thomas NHS Foundation Trust,25/09/2020,(81200) Medical Surgical Supplies & Equipment,(id:42450) Transplant Renal and Urology,JOHNSON & JOHNSON MEDICAL LTD,id:13321565, 980.65
Department of Health,Guys and St Thomas NHS Foundation Trust,22/09/2020,(82000) Provisions & Kitchens,(id:42447) Transplant Renal and Urology,NHS SUPPLY CHAIN (MAIDSTONE),id:13331277  ,   4.38
Department of Health,Guys and St Thomas NHS Foundation Trust,25/09/2020,(82800) Bedding & Linen,(id:42447) Transplant Renal and Urology,NHS SUPPLY CHAIN (MAIDSTONE),id:13300894   , 142.29
Department of Health,Guys and St Thomas NHS Foundation Trust,04/09/2020,(81200) Medical Surgical Supplies & Equipment,(id:42447) Transplant Renal and Urology,NHS SUPPLY CHAIN (MAIDSTONE),id:13204335 , 477.38
Department of Health,Guys and St Thomas NHS Foundation Trust,25/09/2020,(81200) Medical Surgical Supplies & Equipment,(id:42447) Transplant Renal and Urology,NHS SUPPLY CHAIN (MAIDSTONE),id:13312947 , 429.20
Department of Health,Guys and St Thomas NHS Foundation Trust,25/09/2020,(81200) Medical Surgical Supplies & Equipment,(id:42447) Transplant Renal and Urology,Q MEDICAL TECHNOLOGIES LTD,id:13335874   , 621.54
Department of Health,Guys and St Thomas NHS Foundation Trust,04/09/2020,(81700) Lab Equipment Purchase,(id:42447) Transplant Renal and Urology,NHS SUPPLY CHAIN (MAIDSTONE),id:13269121 ,  48.35
Department of Health,Guys and St Thomas NHS Foundation Trust,25/09/2020,(81700) Lab Equipment Purchase,(id:42447) Transplant Renal and Urology,NHS SUPPLY CHAIN (MAIDSTONE),id:13300894 ,  90.62
Department of Health,Guys and St Thomas NHS Foundation Trust,18/09/2020,(84656) Establishment,(id:42447) Transplant Renal and Urology,DICT8 LIMITED,id:13318059,1430.16
Department of Health,Guys and St Thomas NHS Foundation Trust,04/09/2020,(82800) Bedding & Linen,(id:42446) Transplant Renal and Urology,NHS SUPPLY CHAIN (MAIDSTONE),id:13268734   ,  52.06
Department of Health,Guys and St Thomas NHS Foundation Trust,11/09/2020,(81200) Medical Surgical Supplies & Equipment,(id:42446) Transplant Renal and Urology,SQUADRON MEDICAL LTD,id:13302809    , 626.28
Department of Health,Guys and St Thomas NHS Foundation Trust,11/09/2020,(81400) Medical Surgical Supplies & Equipment,(id:42446) Transplant Renal and Urology,KARL STORZ ENDOSCOPY UK LTD,id:13316598  ,1183.20
Department of Health,Guys and St Thomas NHS Foundation Trust,25/09/2020,(81400) Medical Surgical Supplies & Equipment,(id:42446) Transplant Renal and Urology,NHS SUPPLY CHAIN (MAIDSTONE),id:13312947 ,1082.08
Department of Health,Guys and St Thomas NHS Foundation Trust,04/09/2020,(81230) Medical Surgical Supplies & Equipment,(id:42446) Transplant Renal and Urology,SQUADRON MEDICAL LTD,id:13297431    ,  77.28
Department of Health,Guys and St Thomas NHS Foundation Trust,18/09/2020,(81230) Medical Surgical Supplies & Equipment,(id:42446) Transplant Renal and Urology,SQUADRON MEDICAL LTD,id:13312129    ,  77.28
Department of Health,Guys and St Thomas NHS Foundation Trust,04/09/2020,(82000) Provisions & Kitchens,(id:42443) Transplant Renal and Urology,NHS SUPPLY CHAIN (MAIDSTONE),id:13287744  , 106.72
Department of Health,Guys and St Thomas NHS Foundation Trust,04/09/2020,(81100) Dressings,(id:42443) Transplant Renal and Urology,NHS SUPPLY CHAIN (MAIDSTONE),id:13287744    , 130.32
Department of Health,Guys and St Thomas NHS Foundation Trust,04/09/2020,(81200) Medical Surgical Supplies & Equipment,(id:42443) Transplant Renal and Urology,NHS SUPPLY CHAIN (MAIDSTONE),id:13268734 , 593.77
Department of Health,Guys and St Thomas NHS Foundation Trust,04/09/2020,(83400) Office Equipment,(id:42443) Transplant Renal and Urology,NHS SUPPLY CHAIN (MAIDSTONE),id:13204335  ,  51.98
Department of Health,Guys and St Thomas NHS Foundation Trust,04/09/2020,(81700) Lab Equipment Purchase,(id:42443) Transplant Renal and Urology,NHS SUPPLY CHAIN (MAIDSTONE),id:13204335 ,  11.86
Department of Health,Guys and St Thomas NHS Foundation Trust,04/09/2020,(82700) Uniforms & Clothing,(id:42442) Transplant Renal and Urology,NHS SUPPLY CHAIN (MAIDSTONE),id:13269121    ,  31.68
Department of Health,Guys and St Thomas NHS Foundation Trust,04/09/2020,(82700) Uniforms & Clothing,(id:42442) Transplant Renal and Urology,NHS SUPPLY CHAIN (MAIDSTONE),id:13291359    ,  79.06
Department of Health,Guys and St Thomas NHS Foundation Trust,25/09/2020,(82700) Uniforms & Clothing,(id:42442) Transplant Renal and Urology,NHS SUPPLY CHAIN (MAIDSTONE),id:13312947    ,  31.68
Department of Health,Guys and St Thomas NHS Foundation Trust,04/09/2020,(82000) Provisions & Kitchens,(id:42442) Transplant Renal and Urology,NHS SUPPLY CHAIN (MAIDSTONE),id:13204335  ,  61.53
Department of Health,Guys and St Thomas NHS Foundation Trust,04/09/2020,(82000) Provisions & Kitchens,(id:42442) Transplant Renal and Urology,NHS SUPPLY CHAIN (MAIDSTONE),id:13268734  , 285.15
Department of Health,Guys and St Thomas NHS Foundation Trust,25/09/2020,(82000) Provisions & Kitchens,(id:42442) Transplant Renal and Urology,NHS SUPPLY CHAIN (MAIDSTONE),id:13312947  ,   7.80
Department of Health,Guys and St Thomas NHS Foundation Trust,22/09/2020,(82000) Provisions & Kitchens,(id:42442) Transplant Renal and Urology,NHS SUPPLY CHAIN (MAIDSTONE),id:13331277  ,  15.60
Department of Health,Guys and St Thomas NHS Foundation Trust,04/09/2020,(82800) Bedding & Linen,(id:42442) Transplant Renal and Urology,NHS SUPPLY CHAIN (MAIDSTONE),id:13269121   ,    15038.88
Department of Health,Guys and St Thomas NHS Foundation Trust,25/09/2020,(82800) Bedding & Linen,(id:42442) Transplant Renal and Urology,NHS SUPPLY CHAIN (MAIDSTONE),id:13312947   , 138.90
Department of Health,Guys and St Thomas NHS Foundation Trust,04/09/2020,(81100) Dressings,(id:42442) Transplant Renal and Urology,NHS SUPPLY CHAIN (MAIDSTONE),id:13269121    , 390.30
Department of Health,Guys and St Thomas NHS Foundation Trust,22/09/2020,(81100) Dressings,(id:42442) Transplant Renal and Urology,NHS SUPPLY CHAIN (MAIDSTONE),id:13331277    , 270.61
Department of Health,Guys and St Thomas NHS Foundation Trust,04/09/2020,(81200) Medical Surgical Supplies & Equipment,(id:42442) Transplant Renal and Urology,NHS SUPPLY CHAIN (MAIDSTONE),id:13291359 , 818.11
Department of Health,Guys and St Thomas NHS Foundation Trust,04/09/2020,(81700) Lab Equipment Purchase,(id:42442) Transplant Renal and Urology,NHS SUPPLY CHAIN (MAIDSTONE),id:13269121 ,  31.59
Department of Health,Guys and St Thomas NHS Foundation Trust,04/09/2020,(81200) Medical Surgical Supplies & Equipment,(id:3671419) Transplant Renal and Urology,NHS SUPPLY CHAIN (MAIDSTONE),id:13269121    , 613.02
Department of Health,Guys and St Thomas NHS Foundation Trust,04/09/2020,(82600) Uniforms & Clothing,(id:2653419) Transplant Renal and Urology,NHS SUPPLY CHAIN (MAIDSTONE),id:13269121  ,  88.50
Department of Health,Guys and St Thomas NHS Foundation Trust,25/09/2020,(83400) Office Equipment,(id:2653419) Transplant Renal and Urology,NHS SUPPLY CHAIN (MAIDSTONE),id:13325094, 703.20
Department of Health,Guys and St Thomas NHS Foundation Trust,04/09/2020,(81200) Medical Surgical Supplies & Equipment,(id:2653419) Transplant Renal and Urology,ARGON MEDICAL DEVICES UK LTD (FORMERLY)MANA-TECH LTD,id:13288506, 783.00
Department of Health,Guys and St Thomas NHS Foundation Trust,25/09/2020,(81200) Medical Surgical Supplies & Equipment,(id:42436) Transplant Renal and Urology,NHS SUPPLY CHAIN (MAIDSTONE),id:13312947 ,  45.88
Department of Health,Guys and St Thomas NHS Foundation Trust,25/09/2020,(82700) Uniforms & Clothing,(id:42435) Transplant Renal and Urology,NHS SUPPLY CHAIN (MAIDSTONE),id:13300894    ,  31.68
Department of Health,Guys and St Thomas NHS Foundation Trust,25/09/2020,(82000) Provisions & Kitchens,(id:42435) Transplant Renal and Urology,NHS SUPPLY CHAIN (MAIDSTONE),id:13300894  , 239.01
Department of Health,Guys and St Thomas NHS Foundation Trust,25/09/2020,(50522) Unqualified Nursing Staff,(id:42435) Transplant Renal and Urology,MSI GROUP LTD,id:13343379   , 249.44
Department of Health,Guys and St Thomas NHS Foundation Trust,04/09/2020,(81100) Dressings,(id:42435) Transplant Renal and Urology,NHS SUPPLY CHAIN (MAIDSTONE),id:13291359    , 280.35
Department of Health,Guys and St Thomas NHS Foundation Trust,25/09/2020,(81200) Medical Surgical Supplies & Equipment,(id:42435) Transplant Renal and Urology,NHS SUPPLY CHAIN (MAIDSTONE),id:13300894 , 818.28
Department of Health,Guys and St Thomas NHS Foundation Trust,25/09/2020,(81700) Lab Equipment Purchase,(id:42435) Transplant Renal and Urology,NHS SUPPLY CHAIN (MAIDSTONE),id:13325094 ,  53.83
Department of Health,Guys and St Thomas NHS Foundation Trust,11/09/2020,(81200) Medical Surgical Supplies & Equipment,(id:42430) Transplant Renal and Urology,LINC MEDICAL SYSTEMS  LTD,id:13320547    , 675.00
Department of Health,Guys and St Thomas NHS Foundation Trust,04/09/2020,(82800) Bedding & Linen,(id:42428) Transplant Renal and Urology,NHS SUPPLY CHAIN (MAIDSTONE),id:13268734   ,  46.82
Department of Health,Guys and St Thomas NHS Foundation Trust,04/09/2020,(81100) Dressings,(id:42428) Transplant Renal and Urology,NHS SUPPLY CHAIN (MAIDSTONE),id:13268734    ,   1.80
Department of Health,Guys and St Thomas NHS Foundation Trust,22/09/2020,(81100) Dressings,(id:42428) Transplant Renal and Urology,NHS SUPPLY CHAIN (MAIDSTONE),id:13331277    ,  18.47
Department of Health,Guys and St Thomas NHS Foundation Trust,04/09/2020,(81200) Medical Surgical Supplies & Equipment,(id:42420) Transplant Renal and Urology,SQUADRON MEDICAL LTD,id:13284561    ,1041.85
Department of Health,Guys and St Thomas NHS Foundation Trust,04/09/2020,(81200) Medical Surgical Supplies & Equipment,(id:42420) Transplant Renal and Urology,MEDTRONIC LTD,id:13297299 , 960.00
Department of Health,Guys and St Thomas NHS Foundation Trust,18/09/2020,(81200) Medical Surgical Supplies & Equipment,(id:42420) Transplant Renal and Urology,FRESENIUS MEDICAL CARE UK LTD,id:13314085,1368.00
Department of Health,Guys and St Thomas NHS Foundation Trust,04/09/2020,(82800) Bedding & Linen,(id:42420) Transplant Renal and Urology,NHS SUPPLY CHAIN (MAIDSTONE),id:13268734   ,  11.23
Department of Health,Guys and St Thomas NHS Foundation Trust,25/09/2020,(82800) Bedding & Linen,(id:42420) Transplant Renal and Urology,NHS SUPPLY CHAIN (MAIDSTONE),id:13300894   , 113.30
Department of Health,Guys and St Thomas NHS Foundation Trust,25/09/2020,(82800) Bedding & Linen,(id:42420) Transplant Renal and Urology,NHS SUPPLY CHAIN (MAIDSTONE),id:13312947   , 113.30
Department of Health,Guys and St Thomas NHS Foundation Trust,04/09/2020,(81100) Dressings,(id:42420) Transplant Renal and Urology,NHS SUPPLY CHAIN (MAIDSTONE),id:13269121    ,  33.48
Department of Health,Guys and St Thomas NHS Foundation Trust,25/09/2020,(82000) Provisions & Kitchens,(id:42420) Transplant Renal and Urology,NHS SUPPLY CHAIN (MAIDSTONE),id:13300894  ,  92.16
Department of Health,Guys and St Thomas NHS Foundation Trust,04/09/2020,(81700) Lab Equipment Purchase,(id:42438) Transplant Renal and Urology,NHS SUPPLY CHAIN (MAIDSTONE),id:13268734 ,  76.10
Department of Health,Guys and St Thomas NHS Foundation Trust,04/09/2020,(81700) Lab Equipment Purchase,(id:42438) Transplant Renal and Urology,NHS SUPPLY CHAIN (MAIDSTONE),id:13204335 , 111.84
Department of Health,Guys and St Thomas NHS Foundation Trust,18/09/2020,(81200) Medical Surgical Supplies & Equipment,(id:42422) Transplant Renal and Urology,NXSTAGE MEDICAL UK LIMITED,id:13325784   , 654.72
Department of Health,Guys and St Thomas NHS Foundation Trust,18/09/2020,(81200) Medical Surgical Supplies & Equipment,(id:42422) Transplant Renal and Urology,NXSTAGE MEDICAL UK LIMITED,id:13325786   , 729.72
